Workbook

Sheet Welcome
B7: Biomass Carbon Calculator
B10: The ‘Biomass Carbon Calculator’ is a greenhouse gas (GHG) lifecycle emission tool developed by Drax for the purpose of calculating wood pellet supply chain GHG emissions in accordance with UK and EU regulatory requirements. The Calculator has been independently verified against the Renewables Obligation Order 2015 for England and Wales (as amended) and Directive (EU) 2018/2001 of the European Parliament and of the Council of 11 December 2018 on the promotion of the use of energy from renewable sources. Verification statements are available on the Drax website. The Calculator is appropriate for modelling supply chain emissions for most wood pellet supply chains, including wood pellet from forestry products, forestry residues, industrial processing residues and wood waste.
B12: Disclaimer Parties who use, copy or else rely on all or any part of the information contained in the Biomass Carbon Calculator and accompanying User Guide in any way whatsoever do so entirely at their own risk and Drax Power Limited (“Drax”) disclaims all and accepts no liability of any kind arising from the use of these documents (including but not limited to direct, indirect or consequential damages) to the maximum extent permitted by law. Drax makes no representation or warranty of any kind that the Biomass Carbon Calculator and/or the User Guide is compatible with any given law, regulation or regulator guidance. Drax is under no obligation to update the information contained in the Carbon Calculator and User Guide, nor notify third parties if updates are so made.

Sheet Dashboard
L1: Key
C2: Reporting Information | F2: Transport Route Selections | L2: Input
C3: Pellet plant | F3: Feedstock travel distance | L3: Calculation
C4: Start of period | F4: Route identifier | L4: Information
C5: End of period | F5: Route definition | H5: =IFERROR(INDEX(Route_definitions,MATCH(Route_selector,Routes,0)),"") ->  | L5: Pulled data
B8: End User
B11: Consignments
B12: Number of feedstock consignments
B29: Consignment information | F29: Supply chain emissions - gCO2eq/MJpellet dry matter | L29: Final emissions
B30: Feedstock | C30: Country | D30: Output tonnes | E30: Output contribution % | F30: Processing at origin | G30: Feedstock transport | H30: Drying | I30: Pelleting and other processing | J30: Pellet transport | K30: Fuel in use | L30: Total emissions gCO2eq/MJpellet | M30: Total emissions gCO2eq/MJelectricity | N30: Total emissions gCO2eq/MJheat
B31: =IF(ISBLANK(Feedstock!D9),"",Feedstock!D9&" - Consignment #"&Feedstock!B9) ->  | C31: =IF(ISBLANK(Feedstock!E9),"",Feedstock!E9) ->  | D31: =IFERROR(IF(ISBLANK(Feedstock!E9),"",Emissions!Z14/(1-Pellet_moisture)),"") ->  | E31: =IFERROR(IF(ISBLANK(Feedstock!E9),"",Emissions_summary_table[[#This Row],[Output tonnes]]/SUM(Emissions_summary_table[Output tonnes])),"") ->  | F31: =Emissions!Q37 ->  | G31: =Emissions!R37 ->  | H31: =Emissions!J60 ->  | I31: =IF(Feedstock!G9=0,"",Pelleting_and_other_processing_emissions) ->  | J31: =IFERROR(IF(Feedstock!G9=0,"",INDEX(Pellet_transport_emissions_table[Total emissions gCO2eq/MJpellet dry matter],MATCH(Route_selector,Pellet_transport_emissions_table[Route],0))),"Select Route") ->  | K31: =IFERROR(IF(Feedstock!G9=0,"",Fuel_in_use_emissions),"") ->  | L31: =IF(Feedstock!G9=0,"",SUM(Emissions_summary_table[[#This Row],[Processing at origin]:[Fuel in use]])) ->  | M31: =IFERROR(Emissions_summary_table[[#This Row],[Total emissions gCO2eq/MJpellet]]/Electrical_efficiency*End_use_electricity_allocation,"") ->  | N31: =IFERROR(Emissions_summary_table[[#This Row],[Total emissions gCO2eq/MJpellet]]/Heat_efficiency*End_use_heat_allocation,"") -> 
B32: =IF(ISBLANK(Feedstock!D10),"",Feedstock!D10&" - Consignment #"&Feedstock!B10) ->  | C32: =IF(ISBLANK(Feedstock!E10),"",Feedstock!E10) ->  | D32: =IFERROR(IF(ISBLANK(Feedstock!E10),"",Emissions!Z15/(1-Pellet_moisture)),"") ->  | E32: =IFERROR(IF(ISBLANK(Feedstock!E10),"",Emissions_summary_table[[#This Row],[Output tonnes]]/SUM(Emissions_summary_table[Output tonnes])),"") ->  | F32: =Emissions!Q38 ->  | G32: =Emissions!R38 ->  | H32: =Emissions!J61 ->  | I32: =IF(Feedstock!G10=0,"",Pelleting_and_other_processing_emissions) ->  | J32: =IFERROR(IF(Feedstock!G10=0,"",INDEX(Pellet_transport_emissions_table[Total emissions gCO2eq/MJpellet dry matter],MATCH(Route_selector,Pellet_transport_emissions_table[Route],0))),"Select Route") ->  | K32: =IFERROR(IF(Feedstock!G10=0,"",Fuel_in_use_emissions),"") ->  | L32: =IF(Feedstock!G10=0,"",SUM(Emissions_summary_table[[#This Row],[Processing at origin]:[Fuel in use]])) ->  | M32: =IFERROR(Emissions_summary_table[[#This Row],[Total emissions gCO2eq/MJpellet]]/Electrical_efficiency*End_use_electricity_allocation,"") ->  | N32: =IFERROR(Emissions_summary_table[[#This Row],[Total emissions gCO2eq/MJpellet]]/Heat_efficiency*End_use_heat_allocation,"") -> 
B33: =IF(ISBLANK(Feedstock!D11),"",Feedstock!D11&" - Consignment #"&Feedstock!B11) ->  | C33: =IF(ISBLANK(Feedstock!E11),"",Feedstock!E11) ->  | D33: =IFERROR(IF(ISBLANK(Feedstock!E11),"",Emissions!Z16/(1-Pellet_moisture)),"") ->  | E33: =IFERROR(IF(ISBLANK(Feedstock!E11),"",Emissions_summary_table[[#This Row],[Output tonnes]]/SUM(Emissions_summary_table[Output tonnes])),"") ->  | F33: =Emissions!Q39 ->  | G33: =Emissions!R39 ->  | H33: =Emissions!J62 ->  | I33: =IF(Feedstock!G11=0,"",Pelleting_and_other_processing_emissions) ->  | J33: =IFERROR(IF(Feedstock!G11=0,"",INDEX(Pellet_transport_emissions_table[Total emissions gCO2eq/MJpellet dry matter],MATCH(Route_selector,Pellet_transport_emissions_table[Route],0))),"Select Route") ->  | K33: =IFERROR(IF(Feedstock!G11=0,"",Fuel_in_use_emissions),"") ->  | L33: =IF(Feedstock!G11=0,"",SUM(Emissions_summary_table[[#This Row],[Processing at origin]:[Fuel in use]])) ->  | M33: =IFERROR(Emissions_summary_table[[#This Row],[Total emissions gCO2eq/MJpellet]]/Electrical_efficiency*End_use_electricity_allocation,"") ->  | N33: =IFERROR(Emissions_summary_table[[#This Row],[Total emissions gCO2eq/MJpellet]]/Heat_efficiency*End_use_heat_allocation,"") -> 
B34: =IF(ISBLANK(Feedstock!D12),"",Feedstock!D12&" - Consignment #"&Feedstock!B12) ->  | C34: =IF(ISBLANK(Feedstock!E12),"",Feedstock!E12) ->  | D34: =IFERROR(IF(ISBLANK(Feedstock!E12),"",Emissions!Z17/(1-Pellet_moisture)),"") ->  | E34: =IFERROR(IF(ISBLANK(Feedstock!E12),"",Emissions_summary_table[[#This Row],[Output tonnes]]/SUM(Emissions_summary_table[Output tonnes])),"") ->  | F34: =Emissions!Q40 ->  | G34: =Emissions!R40 ->  | H34: =Emissions!J63 ->  | I34: =IF(Feedstock!G12=0,"",Pelleting_and_other_processing_emissions) ->  | J34: =IFERROR(IF(Feedstock!G12=0,"",INDEX(Pellet_transport_emissions_table[Total emissions gCO2eq/MJpellet dry matter],MATCH(Route_selector,Pellet_transport_emissions_table[Route],0))),"Select Route") ->  | K34: =IFERROR(IF(Feedstock!G12=0,"",Fuel_in_use_emissions),"") ->  | L34: =IF(Feedstock!G12=0,"",SUM(Emissions_summary_table[[#This Row],[Processing at origin]:[Fuel in use]])) ->  | M34: =IFERROR(Emissions_summary_table[[#This Row],[Total emissions gCO2eq/MJpellet]]/Electrical_efficiency*End_use_electricity_allocation,"") ->  | N34: =IFERROR(Emissions_summary_table[[#This Row],[Total emissions gCO2eq/MJpellet]]/Heat_efficiency*End_use_heat_allocation,"") -> 
B35: =IF(ISBLANK(Feedstock!D13),"",Feedstock!D13&" - Consignment #"&Feedstock!B13) ->  | C35: =IF(ISBLANK(Feedstock!E13),"",Feedstock!E13) ->  | D35: =IFERROR(IF(ISBLANK(Feedstock!E13),"",Emissions!Z18/(1-Pellet_moisture)),"") ->  | E35: =IFERROR(IF(ISBLANK(Feedstock!E13),"",Emissions_summary_table[[#This Row],[Output tonnes]]/SUM(Emissions_summary_table[Output tonnes])),"") ->  | F35: =Emissions!Q41 ->  | G35: =Emissions!R41 ->  | H35: =Emissions!J64 ->  | I35: =IF(Feedstock!G13=0,"",Pelleting_and_other_processing_emissions) ->  | J35: =IFERROR(IF(Feedstock!G13=0,"",INDEX(Pellet_transport_emissions_table[Total emissions gCO2eq/MJpellet dry matter],MATCH(Route_selector,Pellet_transport_emissions_table[Route],0))),"Select Route") ->  | K35: =IFERROR(IF(Feedstock!G13=0,"",Fuel_in_use_emissions),"") ->  | L35: =IF(Feedstock!G13=0,"",SUM(Emissions_summary_table[[#This Row],[Processing at origin]:[Fuel in use]])) ->  | M35: =IFERROR(Emissions_summary_table[[#This Row],[Total emissions gCO2eq/MJpellet]]/Electrical_efficiency*End_use_electricity_allocation,"") ->  | N35: =IFERROR(Emissions_summary_table[[#This Row],[Total emissions gCO2eq/MJpellet]]/Heat_efficiency*End_use_heat_allocation,"") -> 
B36: =IF(ISBLANK(Feedstock!D14),"",Feedstock!D14&" - Consignment #"&Feedstock!B14) ->  | C36: =IF(ISBLANK(Feedstock!E14),"",Feedstock!E14) ->  | D36: =IFERROR(IF(ISBLANK(Feedstock!E14),"",Emissions!Z19/(1-Pellet_moisture)),"") ->  | E36: =IFERROR(IF(ISBLANK(Feedstock!E14),"",Emissions_summary_table[[#This Row],[Output tonnes]]/SUM(Emissions_summary_table[Output tonnes])),"") ->  | F36: =Emissions!Q42 ->  | G36: =Emissions!R42 ->  | H36: =Emissions!J65 ->  | I36: =IF(Feedstock!G14=0,"",Pelleting_and_other_processing_emissions) ->  | J36: =IFERROR(IF(Feedstock!G14=0,"",INDEX(Pellet_transport_emissions_table[Total emissions gCO2eq/MJpellet dry matter],MATCH(Route_selector,Pellet_transport_emissions_table[Route],0))),"Select Route") ->  | K36: =IFERROR(IF(Feedstock!G14=0,"",Fuel_in_use_emissions),"") ->  | L36: =IF(Feedstock!G14=0,"",SUM(Emissions_summary_table[[#This Row],[Processing at origin]:[Fuel in use]])) ->  | M36: =IFERROR(Emissions_summary_table[[#This Row],[Total emissions gCO2eq/MJpellet]]/Electrical_efficiency*End_use_electricity_allocation,"") ->  | N36: =IFERROR(Emissions_summary_table[[#This Row],[Total emissions gCO2eq/MJpellet]]/Heat_efficiency*End_use_heat_allocation,"") -> 
B37: =IF(ISBLANK(Feedstock!D15),"",Feedstock!D15&" - Consignment #"&Feedstock!B15) ->  | C37: =IF(ISBLANK(Feedstock!E15),"",Feedstock!E15) ->  | D37: =IFERROR(IF(ISBLANK(Feedstock!E15),"",Emissions!Z20/(1-Pellet_moisture)),"") ->  | E37: =IFERROR(IF(ISBLANK(Feedstock!E15),"",Emissions_summary_table[[#This Row],[Output tonnes]]/SUM(Emissions_summary_table[Output tonnes])),"") ->  | F37: =Emissions!Q43 ->  | G37: =Emissions!R43 ->  | H37: =Emissions!J66 ->  | I37: =IF(Feedstock!G15=0,"",Pelleting_and_other_processing_emissions) ->  | J37: =IFERROR(IF(Feedstock!G15=0,"",INDEX(Pellet_transport_emissions_table[Total emissions gCO2eq/MJpellet dry matter],MATCH(Route_selector,Pellet_transport_emissions_table[Route],0))),"Select Route") ->  | K37: =IFERROR(IF(Feedstock!G15=0,"",Fuel_in_use_emissions),"") ->  | L37: =IF(Feedstock!G15=0,"",SUM(Emissions_summary_table[[#This Row],[Processing at origin]:[Fuel in use]])) ->  | M37: =IFERROR(Emissions_summary_table[[#This Row],[Total emissions gCO2eq/MJpellet]]/Electrical_efficiency*End_use_electricity_allocation,"") ->  | N37: =IFERROR(Emissions_summary_table[[#This Row],[Total emissions gCO2eq/MJpellet]]/Heat_efficiency*End_use_heat_allocation,"") -> 
B38: =IF(ISBLANK(Feedstock!D16),"",Feedstock!D16&" - Consignment #"&Feedstock!B16) ->  | C38: =IF(ISBLANK(Feedstock!E16),"",Feedstock!E16) ->  | D38: =IFERROR(IF(ISBLANK(Feedstock!E16),"",Emissions!Z21/(1-Pellet_moisture)),"") ->  | E38: =IFERROR(IF(ISBLANK(Feedstock!E16),"",Emissions_summary_table[[#This Row],[Output tonnes]]/SUM(Emissions_summary_table[Output tonnes])),"") ->  | F38: =Emissions!Q44 ->  | G38: =Emissions!R44 ->  | H38: =Emissions!J67 ->  | I38: =IF(Feedstock!G16=0,"",Pelleting_and_other_processing_emissions) ->  | J38: =IFERROR(IF(Feedstock!G16=0,"",INDEX(Pellet_transport_emissions_table[Total emissions gCO2eq/MJpellet dry matter],MATCH(Route_selector,Pellet_transport_emissions_table[Route],0))),"Select Route") ->  | K38: =IFERROR(IF(Feedstock!G16=0,"",Fuel_in_use_emissions),"") ->  | L38: =IF(Feedstock!G16=0,"",SUM(Emissions_summary_table[[#This Row],[Processing at origin]:[Fuel in use]])) ->  | M38: =IFERROR(Emissions_summary_table[[#This Row],[Total emissions gCO2eq/MJpellet]]/Electrical_efficiency*End_use_electricity_allocation,"") ->  | N38: =IFERROR(Emissions_summary_table[[#This Row],[Total emissions gCO2eq/MJpellet]]/Heat_efficiency*End_use_heat_allocation,"") -> 
B39: =IF(ISBLANK(Feedstock!D17),"",Feedstock!D17&" - Consignment #"&Feedstock!B17) ->  | C39: =IF(ISBLANK(Feedstock!E17),"",Feedstock!E17) ->  | D39: =IFERROR(IF(ISBLANK(Feedstock!E17),"",Emissions!Z22/(1-Pellet_moisture)),"") ->  | E39: =IFERROR(IF(ISBLANK(Feedstock!E17),"",Emissions_summary_table[[#This Row],[Output tonnes]]/SUM(Emissions_summary_table[Output tonnes])),"") ->  | F39: =Emissions!Q45 ->  | G39: =Emissions!R45 ->  | H39: =Emissions!J68 ->  | I39: =IF(Feedstock!G17=0,"",Pelleting_and_other_processing_emissions) ->  | J39: =IFERROR(IF(Feedstock!G17=0,"",INDEX(Pellet_transport_emissions_table[Total emissions gCO2eq/MJpellet dry matter],MATCH(Route_selector,Pellet_transport_emissions_table[Route],0))),"Select Route") ->  | K39: =IFERROR(IF(Feedstock!G17=0,"",Fuel_in_use_emissions),"") ->  | L39: =IF(Feedstock!G17=0,"",SUM(Emissions_summary_table[[#This Row],[Processing at origin]:[Fuel in use]])) ->  | M39: =IFERROR(Emissions_summary_table[[#This Row],[Total emissions gCO2eq/MJpellet]]/Electrical_efficiency*End_use_electricity_allocation,"") ->  | N39: =IFERROR(Emissions_summary_table[[#This Row],[Total emissions gCO2eq/MJpellet]]/Heat_efficiency*End_use_heat_allocation,"") -> 
B40: =IF(ISBLANK(Feedstock!D18),"",Feedstock!D18&" - Consignment #"&Feedstock!B18) ->  | C40: =IF(ISBLANK(Feedstock!E18),"",Feedstock!E18) ->  | D40: =IFERROR(IF(ISBLANK(Feedstock!E18),"",Emissions!Z23/(1-Pellet_moisture)),"") ->  | E40: =IFERROR(IF(ISBLANK(Feedstock!E18),"",Emissions_summary_table[[#This Row],[Output tonnes]]/SUM(Emissions_summary_table[Output tonnes])),"") ->  | F40: =Emissions!Q46 ->  | G40: =Emissions!R46 ->  | H40: =Emissions!J69 ->  | I40: =IF(Feedstock!G18=0,"",Pelleting_and_other_processing_emissions) ->  | J40: =IFERROR(IF(Feedstock!G18=0,"",INDEX(Pellet_transport_emissions_table[Total emissions gCO2eq/MJpellet dry matter],MATCH(Route_selector,Pellet_transport_emissions_table[Route],0))),"Select Route") ->  | K40: =IFERROR(IF(Feedstock!G18=0,"",Fuel_in_use_emissions),"") ->  | L40: =IF(Feedstock!G18=0,"",SUM(Emissions_summary_table[[#This Row],[Processing at origin]:[Fuel in use]])) ->  | M40: =IFERROR(Emissions_summary_table[[#This Row],[Total emissions gCO2eq/MJpellet]]/Electrical_efficiency*End_use_electricity_allocation,"") ->  | N40: =IFERROR(Emissions_summary_table[[#This Row],[Total emissions gCO2eq/MJpellet]]/Heat_efficiency*End_use_heat_allocation,"") -> 
B41: =IF(ISBLANK(Feedstock!D19),"",Feedstock!D19&" - Consignment #"&Feedstock!B19) ->  | C41: =IF(ISBLANK(Feedstock!E19),"",Feedstock!E19) ->  | D41: =IFERROR(IF(ISBLANK(Feedstock!E19),"",Emissions!Z24/(1-Pellet_moisture)),"") ->  | E41: =IFERROR(IF(ISBLANK(Feedstock!E19),"",Emissions_summary_table[[#This Row],[Output tonnes]]/SUM(Emissions_summary_table[Output tonnes])),"") ->  | F41: =Emissions!Q47 ->  | G41: =Emissions!R47 ->  | H41: =Emissions!J70 ->  | I41: =IF(Feedstock!G19=0,"",Pelleting_and_other_processing_emissions) ->  | J41: =IFERROR(IF(Feedstock!G19=0,"",INDEX(Pellet_transport_emissions_table[Total emissions gCO2eq/MJpellet dry matter],MATCH(Route_selector,Pellet_transport_emissions_table[Route],0))),"Select Route") ->  | K41: =IFERROR(IF(Feedstock!G19=0,"",Fuel_in_use_emissions),"") ->  | L41: =IF(Feedstock!G19=0,"",SUM(Emissions_summary_table[[#This Row],[Processing at origin]:[Fuel in use]])) ->  | M41: =IFERROR(Emissions_summary_table[[#This Row],[Total emissions gCO2eq/MJpellet]]/Electrical_efficiency*End_use_electricity_allocation,"") ->  | N41: =IFERROR(Emissions_summary_table[[#This Row],[Total emissions gCO2eq/MJpellet]]/Heat_efficiency*End_use_heat_allocation,"") -> 
B42: =IF(ISBLANK(Feedstock!D20),"",Feedstock!D20&" - Consignment #"&Feedstock!B20) ->  | C42: =IF(ISBLANK(Feedstock!E20),"",Feedstock!E20) ->  | D42: =IFERROR(IF(ISBLANK(Feedstock!E20),"",Emissions!Z25/(1-Pellet_moisture)),"") ->  | E42: =IFERROR(IF(ISBLANK(Feedstock!E20),"",Emissions_summary_table[[#This Row],[Output tonnes]]/SUM(Emissions_summary_table[Output tonnes])),"") ->  | F42: =Emissions!Q48 ->  | G42: =Emissions!R48 ->  | H42: =Emissions!J71 ->  | I42: =IF(Feedstock!G20=0,"",Pelleting_and_other_processing_emissions) ->  | J42: =IFERROR(IF(Feedstock!G20=0,"",INDEX(Pellet_transport_emissions_table[Total emissions gCO2eq/MJpellet dry matter],MATCH(Route_selector,Pellet_transport_emissions_table[Route],0))),"Select Route") ->  | K42: =IFERROR(IF(Feedstock!G20=0,"",Fuel_in_use_emissions),"") ->  | L42: =IF(Feedstock!G20=0,"",SUM(Emissions_summary_table[[#This Row],[Processing at origin]:[Fuel in use]])) ->  | M42: =IFERROR(Emissions_summary_table[[#This Row],[Total emissions gCO2eq/MJpellet]]/Electrical_efficiency*End_use_electricity_allocation,"") ->  | N42: =IFERROR(Emissions_summary_table[[#This Row],[Total emissions gCO2eq/MJpellet]]/Heat_efficiency*End_use_heat_allocation,"") -> 
B43: =IF(ISBLANK(Feedstock!D21),"",Feedstock!D21&" - Consignment #"&Feedstock!B21) ->  | C43: =IF(ISBLANK(Feedstock!E21),"",Feedstock!E21) ->  | D43: =IFERROR(IF(ISBLANK(Feedstock!E21),"",Emissions!Z26/(1-Pellet_moisture)),"") ->  | E43: =IFERROR(IF(ISBLANK(Feedstock!E21),"",Emissions_summary_table[[#This Row],[Output tonnes]]/SUM(Emissions_summary_table[Output tonnes])),"") ->  | F43: =Emissions!Q49 ->  | G43: =Emissions!R49 ->  | H43: =Emissions!J72 ->  | I43: =IF(Feedstock!G21=0,"",Pelleting_and_other_processing_emissions) ->  | J43: =IFERROR(IF(Feedstock!G21=0,"",INDEX(Pellet_transport_emissions_table[Total emissions gCO2eq/MJpellet dry matter],MATCH(Route_selector,Pellet_transport_emissions_table[Route],0))),"Select Route") ->  | K43: =IFERROR(IF(Feedstock!G21=0,"",Fuel_in_use_emissions),"") ->  | L43: =IF(Feedstock!G21=0,"",SUM(Emissions_summary_table[[#This Row],[Processing at origin]:[Fuel in use]])) ->  | M43: =IFERROR(Emissions_summary_table[[#This Row],[Total emissions gCO2eq/MJpellet]]/Electrical_efficiency*End_use_electricity_allocation,"") ->  | N43: =IFERROR(Emissions_summary_table[[#This Row],[Total emissions gCO2eq/MJpellet]]/Heat_efficiency*End_use_heat_allocation,"") -> 
B44: =IF(ISBLANK(Feedstock!D22),"",Feedstock!D22&" - Consignment #"&Feedstock!B22) ->  | C44: =IF(ISBLANK(Feedstock!E22),"",Feedstock!E22) ->  | D44: =IFERROR(IF(ISBLANK(Feedstock!E22),"",Emissions!Z27/(1-Pellet_moisture)),"") ->  | E44: =IFERROR(IF(ISBLANK(Feedstock!E22),"",Emissions_summary_table[[#This Row],[Output tonnes]]/SUM(Emissions_summary_table[Output tonnes])),"") ->  | F44: =Emissions!Q50 ->  | G44: =Emissions!R50 ->  | H44: =Emissions!J73 ->  | I44: =IF(Feedstock!G22=0,"",Pelleting_and_other_processing_emissions) ->  | J44: =IFERROR(IF(Feedstock!G22=0,"",INDEX(Pellet_transport_emissions_table[Total emissions gCO2eq/MJpellet dry matter],MATCH(Route_selector,Pellet_transport_emissions_table[Route],0))),"Select Route") ->  | K44: =IFERROR(IF(Feedstock!G22=0,"",Fuel_in_use_emissions),"") ->  | L44: =IF(Feedstock!G22=0,"",SUM(Emissions_summary_table[[#This Row],[Processing at origin]:[Fuel in use]])) ->  | M44: =IFERROR(Emissions_summary_table[[#This Row],[Total emissions gCO2eq/MJpellet]]/Electrical_efficiency*End_use_electricity_allocation,"") ->  | N44: =IFERROR(Emissions_summary_table[[#This Row],[Total emissions gCO2eq/MJpellet]]/Heat_efficiency*End_use_heat_allocation,"") -> 
B45: =IF(ISBLANK(Feedstock!D23),"",Feedstock!D23&" - Consignment #"&Feedstock!B23) ->  | C45: =IF(ISBLANK(Feedstock!E23),"",Feedstock!E23) ->  | D45: =IFERROR(IF(ISBLANK(Feedstock!E23),"",Emissions!Z28/(1-Pellet_moisture)),"") ->  | E45: =IFERROR(IF(ISBLANK(Feedstock!E23),"",Emissions_summary_table[[#This Row],[Output tonnes]]/SUM(Emissions_summary_table[Output tonnes])),"") ->  | F45: =Emissions!Q51 ->  | G45: =Emissions!R51 ->  | H45: =Emissions!J74 ->  | I45: =IF(Feedstock!G23=0,"",Pelleting_and_other_processing_emissions) ->  | J45: =IFERROR(IF(Feedstock!G23=0,"",INDEX(Pellet_transport_emissions_table[Total emissions gCO2eq/MJpellet dry matter],MATCH(Route_selector,Pellet_transport_emissions_table[Route],0))),"Select Route") ->  | K45: =IFERROR(IF(Feedstock!G23=0,"",Fuel_in_use_emissions),"") ->  | L45: =IF(Feedstock!G23=0,"",SUM(Emissions_summary_table[[#This Row],[Processing at origin]:[Fuel in use]])) ->  | M45: =IFERROR(Emissions_summary_table[[#This Row],[Total emissions gCO2eq/MJpellet]]/Electrical_efficiency*End_use_electricity_allocation,"") ->  | N45: =IFERROR(Emissions_summary_table[[#This Row],[Total emissions gCO2eq/MJpellet]]/Heat_efficiency*End_use_heat_allocation,"") -> 
B46: =IF(ISBLANK(Feedstock!D24),"",Feedstock!D24&" - Consignment #"&Feedstock!B24) ->  | C46: =IF(ISBLANK(Feedstock!E24),"",Feedstock!E24) ->  | D46: =IFERROR(IF(ISBLANK(Feedstock!E24),"",Emissions!Z29/(1-Pellet_moisture)),"") ->  | E46: =IFERROR(IF(ISBLANK(Feedstock!E24),"",Emissions_summary_table[[#This Row],[Output tonnes]]/SUM(Emissions_summary_table[Output tonnes])),"") ->  | F46: =Emissions!Q52 ->  | G46: =Emissions!R52 ->  | H46: =Emissions!J75 ->  | I46: =IF(Feedstock!G24=0,"",Pelleting_and_other_processing_emissions) ->  | J46: =IFERROR(IF(Feedstock!G24=0,"",INDEX(Pellet_transport_emissions_table[Total emissions gCO2eq/MJpellet dry matter],MATCH(Route_selector,Pellet_transport_emissions_table[Route],0))),"Select Route") ->  | K46: =IFERROR(IF(Feedstock!G24=0,"",Fuel_in_use_emissions),"") ->  | L46: =IF(Feedstock!G24=0,"",SUM(Emissions_summary_table[[#This Row],[Processing at origin]:[Fuel in use]])) ->  | M46: =IFERROR(Emissions_summary_table[[#This Row],[Total emissions gCO2eq/MJpellet]]/Electrical_efficiency*End_use_electricity_allocation,"") ->  | N46: =IFERROR(Emissions_summary_table[[#This Row],[Total emissions gCO2eq/MJpellet]]/Heat_efficiency*End_use_heat_allocation,"") -> 
B47: =IF(ISBLANK(Feedstock!D25),"",Feedstock!D25&" - Consignment #"&Feedstock!B25) ->  | C47: =IF(ISBLANK(Feedstock!E25),"",Feedstock!E25) ->  | D47: =IFERROR(IF(ISBLANK(Feedstock!E25),"",Emissions!Z30/(1-Pellet_moisture)),"") ->  | E47: =IFERROR(IF(ISBLANK(Feedstock!E25),"",Emissions_summary_table[[#This Row],[Output tonnes]]/SUM(Emissions_summary_table[Output tonnes])),"") ->  | F47: =Emissions!Q53 ->  | G47: =Emissions!R53 ->  | H47: =Emissions!J76 ->  | I47: =IF(Feedstock!G25=0,"",Pelleting_and_other_processing_emissions) ->  | J47: =IFERROR(IF(Feedstock!G25=0,"",INDEX(Pellet_transport_emissions_table[Total emissions gCO2eq/MJpellet dry matter],MATCH(Route_selector,Pellet_transport_emissions_table[Route],0))),"Select Route") ->  | K47: =IFERROR(IF(Feedstock!G25=0,"",Fuel_in_use_emissions),"") ->  | L47: =IF(Feedstock!G25=0,"",SUM(Emissions_summary_table[[#This Row],[Processing at origin]:[Fuel in use]])) ->  | M47: =IFERROR(Emissions_summary_table[[#This Row],[Total emissions gCO2eq/MJpellet]]/Electrical_efficiency*End_use_electricity_allocation,"") ->  | N47: =IFERROR(Emissions_summary_table[[#This Row],[Total emissions gCO2eq/MJpellet]]/Heat_efficiency*End_use_heat_allocation,"") -> 
B48: =IF(ISBLANK(Feedstock!D26),"",Feedstock!D26&" - Consignment #"&Feedstock!B26) ->  | C48: =IF(ISBLANK(Feedstock!E26),"",Feedstock!E26) ->  | D48: =IFERROR(IF(ISBLANK(Feedstock!E26),"",Emissions!Z31/(1-Pellet_moisture)),"") ->  | E48: =IFERROR(IF(ISBLANK(Feedstock!E26),"",Emissions_summary_table[[#This Row],[Output tonnes]]/SUM(Emissions_summary_table[Output tonnes])),"") ->  | F48: =Emissions!Q54 ->  | G48: =Emissions!R54 ->  | H48: =Emissions!J77 ->  | I48: =IF(Feedstock!G26=0,"",Pelleting_and_other_processing_emissions) ->  | J48: =IFERROR(IF(Feedstock!G26=0,"",INDEX(Pellet_transport_emissions_table[Total emissions gCO2eq/MJpellet dry matter],MATCH(Route_selector,Pellet_transport_emissions_table[Route],0))),"Select Route") ->  | K48: =IFERROR(IF(Feedstock!G26=0,"",Fuel_in_use_emissions),"") ->  | L48: =IF(Feedstock!G26=0,"",SUM(Emissions_summary_table[[#This Row],[Processing at origin]:[Fuel in use]])) ->  | M48: =IFERROR(Emissions_summary_table[[#This Row],[Total emissions gCO2eq/MJpellet]]/Electrical_efficiency*End_use_electricity_allocation,"") ->  | N48: =IFERROR(Emissions_summary_table[[#This Row],[Total emissions gCO2eq/MJpellet]]/Heat_efficiency*End_use_heat_allocation,"") -> 
B49: =IF(ISBLANK(Feedstock!D27),"",Feedstock!D27&" - Consignment #"&Feedstock!B27) ->  | C49: =IF(ISBLANK(Feedstock!E27),"",Feedstock!E27) ->  | D49: =IFERROR(IF(ISBLANK(Feedstock!E27),"",Emissions!Z32/(1-Pellet_moisture)),"") ->  | E49: =IFERROR(IF(ISBLANK(Feedstock!E27),"",Emissions_summary_table[[#This Row],[Output tonnes]]/SUM(Emissions_summary_table[Output tonnes])),"") ->  | F49: =Emissions!Q55 ->  | G49: =Emissions!R55 ->  | H49: =Emissions!J78 ->  | I49: =IF(Feedstock!G27=0,"",Pelleting_and_other_processing_emissions) ->  | J49: =IFERROR(IF(Feedstock!G27=0,"",INDEX(Pellet_transport_emissions_table[Total emissions gCO2eq/MJpellet dry matter],MATCH(Route_selector,Pellet_transport_emissions_table[Route],0))),"Select Route") ->  | K49: =IFERROR(IF(Feedstock!G27=0,"",Fuel_in_use_emissions),"") ->  | L49: =IF(Feedstock!G27=0,"",SUM(Emissions_summary_table[[#This Row],[Processing at origin]:[Fuel in use]])) ->  | M49: =IFERROR(Emissions_summary_table[[#This Row],[Total emissions gCO2eq/MJpellet]]/Electrical_efficiency*End_use_electricity_allocation,"") ->  | N49: =IFERROR(Emissions_summary_table[[#This Row],[Total emissions gCO2eq/MJpellet]]/Heat_efficiency*End_use_heat_allocation,"") -> 
B50: =IF(ISBLANK(Feedstock!D28),"",Feedstock!D28&" - Consignment #"&Feedstock!B28) ->  | C50: =IF(ISBLANK(Feedstock!E28),"",Feedstock!E28) ->  | D50: =IFERROR(IF(ISBLANK(Feedstock!E28),"",Emissions!Z33/(1-Pellet_moisture)),"") ->  | E50: =IFERROR(IF(ISBLANK(Feedstock!E28),"",Emissions_summary_table[[#This Row],[Output tonnes]]/SUM(Emissions_summary_table[Output tonnes])),"") ->  | F50: =Emissions!Q56 ->  | G50: =Emissions!R56 ->  | H50: =Emissions!J79 ->  | I50: =IF(Feedstock!G28=0,"",Pelleting_and_other_processing_emissions) ->  | J50: =IFERROR(IF(Feedstock!G28=0,"",INDEX(Pellet_transport_emissions_table[Total emissions gCO2eq/MJpellet dry matter],MATCH(Route_selector,Pellet_transport_emissions_table[Route],0))),"Select Route") ->  | K50: =IFERROR(IF(Feedstock!G28=0,"",Fuel_in_use_emissions),"") ->  | L50: =IF(Feedstock!G28=0,"",SUM(Emissions_summary_table[[#This Row],[Processing at origin]:[Fuel in use]])) ->  | M50: =IFERROR(Emissions_summary_table[[#This Row],[Total emissions gCO2eq/MJpellet]]/Electrical_efficiency*End_use_electricity_allocation,"") ->  | N50: =IFERROR(Emissions_summary_table[[#This Row],[Total emissions gCO2eq/MJpellet]]/Heat_efficiency*End_use_heat_allocation,"") -> 
J52: Weighted average | L52: =IFERROR(SUMPRODUCT(Emissions_summary_table[Total emissions gCO2eq/MJpellet],Emissions_summary_table[Output contribution %]),"") -> 0 | M52: =IFERROR(SUMPRODUCT(Emissions_summary_table[Total emissions gCO2eq/MJelectricity],Emissions_summary_table[Output contribution %]),"") -> 0 | N52: =IFERROR(SUMPRODUCT(Emissions_summary_table[Total emissions gCO2eq/MJheat],Emissions_summary_table[Output contribution %]),"") -> 0
F61: =Emissions!R43 -> 

Sheet Feedstock
J1: Key
J2: Input
J3: Calculation
J4: Information
J5: Pulled data
B8: Consignment # | C8: Feedstock group | D8: Origin | E8: Country | F8: Physical description | G8: Tonnes processed tfeedstock fresh matter* | H8: Moisture % as received | I8: Drying required at pellet plant | J8: Moisture % dryer inlet** | M8: Verified | N8: Auditor comments
B9: 1
B10: 2
B11: 3
B12: 4
B13: 5
B14: 6
B15: 7
B16: 8
B17: 9
B18: 10
B19: 11
B20: 12
B21: 13
B22: 14
B23: 15
B24: 16
B25: 17
B26: 18
B27: 19
B28: 20
B30: Total feedstock tfresh matter* | D30: =SUM(Feedstock_table[Tonnes processed tfeedstock fresh matter*]) -> 0
B31: Total feedstock tdry matter | D31: =SUMPRODUCT(G9:G28,(1-H9:H28)) -> 0
B32: *This is the total tonnage of all feedstock entering the pellet production process, including any material diverted to biomass fuel (eg. bark from debarked stemlogs)
B33: ** Only required for feedstock where moisture content is reduced onsite prior to entering the dryer (e.g. logs seasoned through air drying)
B34: Notes | M34: Verified | N34: Auditor comments

Sheet Upstream
L1: Key
C2: Use actual or disaggregated default values for harvesting and cultivation | L2: Input | O2: Diesel use lookup | U2: Disaggregated default value looklup
L3: Calculation | O3: Process | Q3: Diesel use l/toutput dry matter | R3: Consignment | S3: Diesel use l/toutput fresh matter | U3: Feedstock | Y3: Emissions gCO2eq/MJpellet
C4: Actual values | L4: Information
L5: Pulled data | Q5: =IFERROR(INDEX(Upstream_typicals,MATCH(O5,Upstream_process,0)),"") ->  | S5: =IFERROR($Q$5*(1-INDEX(Feedstock_table[Moisture % as received],MATCH($R$5,Feedstock_table[Consignment '#],0))),"") ->  | Y5: =IFERROR(INDEX(Disaggregated_defaults,MATCH(U5,Feedstock_for_defaults,0)),"") -> 
O6: N.B. Typical values must be adjusted to a fresh matter basis by multiplying by the dry matter content of the feedstock (i.e. 100% - moisture content)
B8: Feedstock group | C8: Origin | D8: Consignment # | E8: Diesel use l/toutput fresh matter* | F8: Additional upstream emissions kgCO2eq/toutput fresh matter** | G8: Disaggregated default value gCO2eq/MJpellet | H8: Journey | I8: Transport mode | J8: Transport fuel | K8: Weighted average distance to mill km | L8: Maximum distance to mill km | O8: Verified | P8: Auditor comments
B9: =IF(ISBLANK(Feedstock!C9),"",Feedstock!C9) ->  | C9: =IF(ISBLANK(Feedstock!D9),"",Feedstock!D9) ->  | D9: =IF(ISBLANK(Feedstock!B9),"",Feedstock!B9) -> 1
B11: =IF(ISBLANK(Feedstock!C10),"",Feedstock!C10) ->  | C11: =IF(ISBLANK(Feedstock!D10),"",Feedstock!D10) ->  | D11: =IF(ISBLANK(Feedstock!B10),"",Feedstock!B10) -> 2
B13: =IF(ISBLANK(Feedstock!C11),"",Feedstock!C11) ->  | C13: =IF(ISBLANK(Feedstock!D11),"",Feedstock!D11) ->  | D13: =IF(ISBLANK(Feedstock!B11),"",Feedstock!B11) -> 3
B15: =IF(ISBLANK(Feedstock!C12),"",Feedstock!C12) ->  | C15: =IF(ISBLANK(Feedstock!D12),"",Feedstock!D12) ->  | D15: =IF(ISBLANK(Feedstock!B12),"",Feedstock!B12) -> 4
B17: =IF(ISBLANK(Feedstock!C13),"",Feedstock!C13) ->  | C17: =IF(ISBLANK(Feedstock!D13),"",Feedstock!D13) ->  | D17: =IF(ISBLANK(Feedstock!B13),"",Feedstock!B13) -> 5
B19: =IF(ISBLANK(Feedstock!C14),"",Feedstock!C14) ->  | C19: =IF(ISBLANK(Feedstock!D14),"",Feedstock!D14) ->  | D19: =IF(ISBLANK(Feedstock!B14),"",Feedstock!B14) -> 6
B21: =IF(ISBLANK(Feedstock!C15),"",Feedstock!C15) ->  | C21: =IF(ISBLANK(Feedstock!D15),"",Feedstock!D15) ->  | D21: =IF(ISBLANK(Feedstock!B15),"",Feedstock!B15) -> 7
B23: =IF(ISBLANK(Feedstock!C16),"",Feedstock!C16) ->  | C23: =IF(ISBLANK(Feedstock!D16),"",Feedstock!D16) ->  | D23: =IF(ISBLANK(Feedstock!B16),"",Feedstock!B16) -> 8
B25: =IF(ISBLANK(Feedstock!C17),"",Feedstock!C17) ->  | C25: =IF(ISBLANK(Feedstock!D17),"",Feedstock!D17) ->  | D25: =IF(ISBLANK(Feedstock!B17),"",Feedstock!B17) -> 9
B27: =IF(ISBLANK(Feedstock!C18),"",Feedstock!C18) ->  | C27: =IF(ISBLANK(Feedstock!D18),"",Feedstock!D18) ->  | D27: =IF(ISBLANK(Feedstock!B18),"",Feedstock!B18) -> 10
B29: =IF(ISBLANK(Feedstock!C19),"",Feedstock!C19) ->  | C29: =IF(ISBLANK(Feedstock!D19),"",Feedstock!D19) ->  | D29: =IF(ISBLANK(Feedstock!B19),"",Feedstock!B19) -> 11
B31: =IF(ISBLANK(Feedstock!C20),"",Feedstock!C20) ->  | C31: =IF(ISBLANK(Feedstock!D20),"",Feedstock!D20) ->  | D31: =IF(ISBLANK(Feedstock!B20),"",Feedstock!B20) -> 12
B33: =IF(ISBLANK(Feedstock!C21),"",Feedstock!C21) ->  | C33: =IF(ISBLANK(Feedstock!D21),"",Feedstock!D21) ->  | D33: =IF(ISBLANK(Feedstock!B21),"",Feedstock!B21) -> 13
B35: =IF(ISBLANK(Feedstock!C22),"",Feedstock!C22) ->  | C35: =IF(ISBLANK(Feedstock!D22),"",Feedstock!D22) ->  | D35: =IF(ISBLANK(Feedstock!B22),"",Feedstock!B22) -> 14
B37: =IF(ISBLANK(Feedstock!C23),"",Feedstock!C23) ->  | C37: =IF(ISBLANK(Feedstock!D23),"",Feedstock!D23) ->  | D37: =IF(ISBLANK(Feedstock!B23),"",Feedstock!B23) -> 15
B39: =IF(ISBLANK(Feedstock!C24),"",Feedstock!C24) ->  | C39: =IF(ISBLANK(Feedstock!D24),"",Feedstock!D24) ->  | D39: =IF(ISBLANK(Feedstock!B24),"",Feedstock!B24) -> 16
B41: =IF(ISBLANK(Feedstock!C25),"",Feedstock!C25) ->  | C41: =IF(ISBLANK(Feedstock!D25),"",Feedstock!D25) ->  | D41: =IF(ISBLANK(Feedstock!B25),"",Feedstock!B25) -> 17
B43: =IF(ISBLANK(Feedstock!C26),"",Feedstock!C26) ->  | C43: =IF(ISBLANK(Feedstock!D26),"",Feedstock!D26) ->  | D43: =IF(ISBLANK(Feedstock!B26),"",Feedstock!B26) -> 18
B45: =IF(ISBLANK(Feedstock!C27),"",Feedstock!C27) ->  | C45: =IF(ISBLANK(Feedstock!D27),"",Feedstock!D27) ->  | D45: =IF(ISBLANK(Feedstock!B27),"",Feedstock!B27) -> 19
B47: =IF(ISBLANK(Feedstock!C28),"",Feedstock!C28) ->  | C47: =IF(ISBLANK(Feedstock!D28),"",Feedstock!D28) ->  | D47: =IF(ISBLANK(Feedstock!B28),"",Feedstock!B28) -> 20
B49: * Diesel used for all forestry operations including cultivation, harvesting, extraction and in-woods chipping; Value requires adjustment for any process losses occurring prior to feedstock transport (e.g. during seasoning or chipping); The typical values for "Diesel for collection of forestry residues including stump harvesting and chipping" and "Diesel for cultivation, harvesting and chipping" already account for default yield losses during seasoning and chipping (See 'Reference values' worksheet for more information).
B50: **'Additional upstream emissions' covers any emissions relating to land use change or any additional inputs required during upstream cultivation and harvesting of biomass. This could include emissions relating to fertiliser application during cultivation, resulting N2O emissions and emissions due to pesticide application.
B51: Notes | O51: Verified | P51: Auditor comments

Sheet Pellet plant
F1: Key
F2: Input | I2: Unit converter
F3: Calculation | I3: Fuel | J3: Input value | K3: Input unit | L3: Output value | M3: Output unit
F4: Information | L4: =IFERROR(IF(Converter_input_unit="kg",Converter_input_value,IF(Converter_input_unit="tonne",Converter_input_value*kgpert,IF(Converter_input_unit="litre",Converter_input_value/lperm3*INDEX(Fossil_fuel_density,MATCH(Converter_fuel,Fossil_fuels,0)),IF(Converter_input_unit="m3",Converter_input_value*INDEX(Fossil_fuel_density,MATCH(Converter_fuel,Fossil_fuels,0)),IF(Converter_input_unit="MJ",Converter_input_value/INDEX(Fossil_fuel_LHV,MATCH(Converter_fuel,Fossil_fuels,0)),IF(Converter_input_unit="GJ",Converter_input_value/INDEX(Fossil_fuel_LHV,MATCH(Converter_fuel,Fossil_fuels,0))*MJperGJ,IF(Converter_input_unit="kWh",Converter_input_value*MJperkWh/INDEX(Fossil_fuel_LHV,MATCH(Converter_fuel,Fossil_fuels,0)),IF(Converter_input_unit="MWh",Converter_input_value*MJperMWh/INDEX(Fossil_fuel_LHV,MATCH(Converter_fuel,Fossil_fuels,0)),IF(Converter_input_unit="mmbtu",Converter_input_value*MJpermmBTU/INDEX(Fossil_fuel_LHV,MATCH(Converter_fuel,Fossil_fuels,0)),""))))))))),"N/A") ->  | M4: kg
F5: Pulled data | L5: =IFERROR(IF(Converter_input_unit="kg",Converter_input_value*INDEX(Fossil_fuel_LHV,MATCH(Converter_fuel,Fossil_fuels,0)),IF(Converter_input_unit="tonne",Converter_input_value*kgpert*INDEX(Fossil_fuel_LHV,MATCH(Converter_fuel,Fossil_fuels,0)),IF(Converter_input_unit="litre",Converter_input_value*INDEX(Fossil_fuel_density,MATCH(Converter_fuel,Fossil_fuels,0))/lperm3*INDEX(Fossil_fuel_LHV,MATCH(Converter_fuel,Fossil_fuels,0)),IF(Converter_input_unit="m3",Converter_input_value*INDEX(Fossil_fuel_density,MATCH(Converter_fuel,Fossil_fuels,0))*INDEX(Fossil_fuel_LHV,MATCH(Converter_fuel,Fossil_fuels,0)),(IF(Converter_input_unit="MJ",Converter_input_value,IF(Converter_input_unit="GJ",Converter_input_value*kgpert,IF(Converter_input_unit="kWh",Converter_input_value*MJperkWh,IF(Converter_input_unit="kWh",Converter_input_value*MJperkWh,IF(Converter_input_unit="MWh",Converter_input_value*MJperMWh,IF(Converter_input_unit="mmbtu",Converter_input_value*MJpermmBTU,""))))))))))),"N/A") ->  | M5: MJ
B8: Pellet plant output
I9: Verified | J9: Auditor comments
B10: Total pellet output tfresh matter
B11: Pellet LHV MJ/kgfresh matter
B12: Moisture at dryer outlet %
B13: Pellet moisture %
B15: Fuel systems
B22: Fossil fuel boiler/burner inputs
B23: Fuel | C23: Consumption choose unit | D23: Unit | I23: Verified | J23: Auditor comments
B27: Fossil fuel boiler/burner outputs | I27: Verified | J27: Auditor comments
B28: Total useable heat output kWhth
B29: Heat for drying kWhth
B30: Heat for other processing kWhth
B31: Heat exported kWhth | C31: =Fossil_boiler_total_heat-Fossil_boiler_drying_heat-Fossil_boiler_other_heat -> 0
B33: Fossil fuel CHP inputs
B34: Fuel | C34: Consumption choose unit | D34: Unit | I34: Verified | J34: Auditor comments
B38: Fossil fuel CHP outputs | I38: Verified | J38: Auditor comments
B39: Total useable heat output kWhth
B40: Heat for drying kWhth
B41: Heat for other processing kWhth
B42: Heat exported kWhth | C42: =Fossil_CHP_total_heat-Fossil_CHP_drying_heat-Fossil_CHP_other_heat -> 0
B43: Temperature of heat at point of delivery °C | D43: For biomass used by UK end users, 150°C should be entered for heat delivered at a temperature below 150°C
B44: Total electricity output kWhe
B45: Electricity for processing kWhe
B46: Electricity exported kWhe | C46: =Fossil_CHP_total_electricity-Fossil_CHP_electricity_processing -> 0
B48: Biomass boiler/burner inputs - diverted from pellet production process
B49: Fuel | C49: Consignment # derived from | D49: Consumption tfresh matter | E49: Moisture % | I49: Verified | J49: Auditor comments
B60: Biomass boiler/burner inputs - imported fuels
B61: Fuel | D61: Consumption tfresh matter | E61: Moisture % | I61: Verified | J61: Auditor comments
B68: Biomass boiler/burner outputs | I68: Verified | J68: Auditor comments
B69: Total useable heat output kWhth
B70: Heat for drying kWhth
B71: Heat for other processing kWhth
B72: Heat exported kWhth | C72: =Biomass_boiler_total_heat-Biomass_boiler_drying_heat-Biomass_boiler_other_heat -> 0
B74: Biomass CHP inputs - diverted from pellet production process
B75: Fuel | C75: Consignment # derived from | D75: Consumption tfresh matter | E75: Moisture % | I75: Verified | J75: Auditor comments
B86: Biomass CHP inputs - imported fuels
B87: Fuel | D87: Consumption tfresh matter | E87: Moisture % | I87: Verified | J87: Auditor comments
B94: Biomass CHP outputs | I94: Verified | J94: Auditor comments
B95: Total useable heat output kWhth
B96: Heat for drying kWhth
B97: Heat for other processing kWhth
B98: Heat exported kWhth | C98: =Biomass_CHP_total_heat-Biomass_CHP_drying_heat-Biomass_CHP_other_heat -> 0
B99: Temperature of heat at point of delivery °C* | D99: For biomass used by UK end users, a value of 150°C should be used for heat delivered at a temperature below 150°C
B100: Total electricity output kWhe
B101: Electricity for processing kWhe
B102: Electricity exported kWhe | C102: =Biomass_CHP_total_electricity-Biomass_CHP_electricity_processing -> 0
B104: Electricity inputs
B106: Grid electricity
B107: Region | C107: Consumption kWh | I107: Verified | J107: Auditor comments
B110: Onsite electricity inputs
B111: Source | C111: Consumption kWh | I111: Verified | J111: Auditor comments
B114: Fossil fuel CHP | C114: =Fossil_CHP_electricity_processing -> 0
B115: Biomass CHP | C115: =Biomass_CHP_electricity_processing -> 0
B117: Additional inputs
B119: Fuel | C119: Consumption litres | I119: Verified | J119: Auditor comments
B120: Diesel
B122: Additional plant fossil requirements
B123: Fuel | C123: Consumption choose unit | D123: Unit | I123: Verified | J123: Auditor comments
B128: Binding agents/Chemicals
B129: Binder/chemical | C129: Consumption tonnes | I129: Verified | J129: Auditor comments
B136: Notes | I136: Verified | J136: Auditor comments

Sheet Pellet transport
E1: Key
E2: Input | H2: Unit converter
E3: Calculation | H3: Input value | I3: Input unit | J3: Output value | K3: Output unit
E4: Information | J4: =IF(I4="miles",H4*kmpermile,IF(I4="nautical miles",H4*kmpernauticalmile,"")) ->  | K4: km
E5: Pulled data
B8: Number of route identifiers
B10: Route definition | D10: Route identifier | H10: Verified | I10: Auditor comments
B22: =IF($D$11="","Insert route identifier",$D$11) -> Insert route identifier
B23: Journey | C23: Mode | D23: Fuel | E23: Distance km | H23: Verified | I23: Auditor comments
B24: Journey 1
B25: Journey 2
B26: Shipping 1
B27: Shipping 2
B28: Journey 3
B29: Journey 4
B31: Electricity (storage & handling)
B32: Region | C32: Consumption kWh/t | H32: Verified | I32: Auditor comments
B36: Fuel (storage & handling)
B37: Fuel | C37: Consumption choose unit | D37: Unit | H37: Verified | I37: Auditor comments
B41: =IF($D$12="","Insert route identifier",$D$12) -> Insert route identifier
B42: Journey | C42: Mode | D42: Fuel | E42: Distance km | H42: Verified | I42: Auditor comments
B43: Journey 1
B44: Journey 2
B45: Shipping 1
B46: Shipping 2
B47: Journey 3
B48: Journey 4
B50: Electricity (storage & handling)
B51: Region | C51: Consumption kWh/t | H51: Verified | I51: Auditor comments
B55: Fuel (storage & handling)
B56: Fuel | C56: Consumption choose unit | D56: Unit | H56: Verified | I56: Auditor comments
B60: =IF($D$13="","Insert route identifier",$D$13) -> Insert route identifier
B61: Journey | C61: Mode | D61: Fuel | E61: Distance km | H61: Verified | I61: Auditor comments
B62: Journey 1
B63: Journey 2
B64: Shipping 1
B65: Shipping 2
B66: Journey 3
B67: Journey 4
B69: Electricity (storage & handling)
B70: Region | C70: Consumption kWh/t | H70: Verified | I70: Auditor comments
B74: Fuel (storage & handling)
B75: Fuel | C75: Consumption choose unit | D75: Unit | H75: Verified | I75: Auditor comments
B79: =IF($D$14="","Insert route identifier",$D$14) -> Insert route identifier
B80: Journey | C80: Mode | D80: Fuel | E80: Distance km | H80: Verified | I80: Auditor comments
B81: Journey 1
B82: Journey 2
B83: Shipping 1
B84: Shipping 2
B85: Journey 3
B86: Journey 4
B88: Electricity (storage & handling)
B89: Region | C89: Consumption kWh/t | H89: Verified | I89: Auditor comments
B93: Fuel (storage & handling)
B94: Fuel | C94: Consumption choose unit | D94: Unit | H94: Verified | I94: Auditor comments
B98: =IF($D$15="","Insert route identifier",$D$15) -> Insert route identifier
B99: Journey | C99: Mode | D99: Fuel | E99: Distance km | H99: Verified | I99: Auditor comments
B100: Journey 1
B101: Journey 2
B102: Shipping 1
B103: Shipping 2
B104: Journey 3
B105: Journey 4
B107: Electricity (storage & handling)
B108: Region | C108: Consumption kWh/t | H108: Verified | I108: Auditor comments
B112: Fuel (storage & handling)
B113: Fuel | C113: Consumption choose unit | D113: Unit | H113: Verified | I113: Auditor comments
B117: =IF($D$16="","Insert route identifier",$D$16) -> Insert route identifier
B118: Journey | C118: Mode | D118: Fuel | E118: Distance km | H118: Verified | I118: Auditor comments
B119: Journey 1
B120: Journey 2
B121: Shipping 1
B122: Shipping 2
B123: Journey 3
B124: Journey 4
B126: Electricity (storage & handling)
B127: Region | C127: Consumption kWh/t | H127: Verified | I127: Auditor comments
B131: Fuel (storage & handling)
B132: Fuel | C132: Consumption choose unit | D132: Unit | H132: Verified | I132: Auditor comments
B136: =IF($D$17="","Insert route identifier",$D$17) -> Insert route identifier
B137: Journey | C137: Mode | D137: Fuel | E137: Distance km | H137: Verified | I137: Auditor comments
B138: Journey 1
B139: Journey 2
B140: Shipping 1
B141: Shipping 2
B142: Journey 3
B143: Journey 4
B145: Electricity (storage & handling)
B146: Region | C146: Consumption kWh/t | H146: Verified | I146: Auditor comments
B150: Fuel (storage & handling)
B151: Fuel | C151: Consumption choose unit | D151: Unit | H151: Verified | I151: Auditor comments
B155: =IF($D$18="","Insert route identifier",$D$18) -> Insert route identifier
B156: Journey | C156: Mode | D156: Fuel | E156: Distance km | H156: Verified | I156: Auditor comments
B157: Journey 1
B158: Journey 2
B159: Shipping 1
B160: Shipping 2
B161: Journey 3
B162: Journey 4
B164: Electricity (storage & handling)
B165: Region | C165: Consumption kWh/t | H165: Verified | I165: Auditor comments
B169: Fuel (storage & handling)
B170: Fuel | C170: Consumption choose unit | D170: Unit | H170: Verified | I170: Auditor comments
B174: =IF($D$19="","Insert route identifier",$D$19) -> Insert route identifier
B175: Journey | C175: Mode | D175: Fuel | E175: Distance km | H175: Verified | I175: Auditor comments
B176: Journey 1
B177: Journey 2
B178: Shipping 1
B179: Shipping 2
B180: Journey 3
B181: Journey 4
B183: Electricity (storage & handling)
B184: Region | C184: Consumption kWh/t | H184: Verified | I184: Auditor comments
B188: Fuel (storage & handling)
B189: Fuel | C189: Consumption choose unit | D189: Unit | H189: Verified | I189: Auditor comments
B193: =IF($D$20="","Insert route identifier",$D$20) -> Insert route identifier
B194: Journey | C194: Mode | D194: Fuel | E194: Distance km | H194: Verified | I194: Auditor comments
B195: Journey 1
B196: Journey 2
B197: Shipping 1
B198: Shipping 2
B199: Journey 3
B200: Journey 4
B202: Electricity (storage & handling)
B203: Region | C203: Consumption kWh/t | H203: Verified | I203: Auditor comments
B207: Fuel (storage & handling)
B208: Fuel | C208: Consumption choose unit | D208: Unit | H208: Verified | I208: Auditor comments
B212: Notes | H212: Verified | I212: Auditor comments

Sheet End use
D1: Key
D2: Input
D3: Calculation
D4: Information
D5: Pulled data
G8: Verified | H8: Comments
B9: Fuel type | C9: Wood pellet
B10: Non-combustion CO2 emissions gCO2eq/MJfuel | C10: =IFERROR(INDEX(Non_CO2_fuel_use_emissions,MATCH(Final_fuel,Final_fuels,0)),"") -> 0.3
B11: Electrical efficiency MJelectricity/MJpellet
B12: Heat efficiency MJuseful heat/MJpellet
B13: Temperature of heat at point of delivery °C
B15: Notes | G15: Verified | H15: Comments

Sheet Standard values
C1: Key
C2: Input
C3: Calculation
C4: Information
C5: Pulled data
B8: Global warming potentials
B9: Gas | C9: GWP gCO2eq/g
B10: CO2 | C10: 1
B11: CH4 | C11: 25
B12: N2O | C12: 298
B14: Conversion factors
B15: Conversion | C15: Conversion factor
B16: MJ per GJ | C16: 1000
B17: g per kg | C17: 1000
B18: kg per tonne | C18: 1000
B19: litre per m3 | C19: 1000
B20: MJ per kWh | C20: 3.6
B21: MJ per MWh | C21: 3600
B22: MJ per mmBTU | C22: 1055.87
B23: km per mile | C23: 1.60934
B24: km per nautical mile | C24: 1.852
B26: Fossil fuels
B27: Fuel | C27: Density kg/m3 | D27: LHV MJ/kg 0% water | E27: Emission factor gCO2eq/MJ | F27: Combustion CH4 and N2O emissions gCO2eq/MJ | G27: Reference | H27: Notes
B28: Hard coal | C28: N/A | D28: 26.5 | E28: 112.3 | G28: 2,1
B29: Lignite | C29: N/A | D29: 9.2 | E29: 116.7 | G29: 2,1
B30: Diesel | C30: 832 | D30: 43.1 | E30: 95.1 | G30: 1
B31: Gasoline | C31: 745 | D31: 43.2 | E31: 93.3 | G31: 1
B32: Heavy fuel oil | C32: 970 | D32: 40.5 | E32: 94.2 | G32: 2,1
B33: Natural gas | C33: N/A | D33: 49.2 | E33: 66 | G33: 2,1
B34: Propane | C34: 493.5 | D34: 46.4 | E34: 73.27 | G34: 9,10,2 | H34: Density at normal temperature and pressure; Emission factor assumed the same as LPG
B35: LPG | C35: N/A | D35: 46 | E35: 73.27 | G35: 2 | K35: Validated | L35: Auditor comments
B36: User value - insert data
B37: User value - insert data
B38: User value - insert data
B40: Fossil fuel CHP flue gas emissions
B41: Fuel | C41: Flue gas emissions gCH4/MJfuel | D41: Flue gas emissions gN2O/MJfuel | E41: Flue gas CH4 and N2O emissions gCO2eq/MJfuel | F41: [N/A.] | G41: Reference | H41: Notes
B42: =B28 -> Hard coal | C42: 0.001 | D42: 0.061 | E42: =C42*CH4GWP+D42*N2OGWP -> 18.203 | G42: 4 | H42: Value conservatively assumed for Bituminous Fluidised Bed Combustor from table 2.6
B43: Lignite | C43: 0.001419916667 | D43: 0.003017222222 | E43: 0.9346301388 | G43: 2
B44: Diesel | C44: 0.0009 | D44: 0.0004 | E44: 0.1417 | G44: 4 | H44: Value assumed for Gasoline/Diesel Oil boilers from table 2.6
B45: Gasoline | C45: 0.0009 | D45: 0.0004 | E45: 0.1417 | G45: 4 | H45: Value assumed for Gasoline/Diesel Oil boilers from table 2.6
B46: Heavy fuel oil | C46: 0.0008 | D46: 0.0003 | E46: 0.1094 | G46: 4 | H46: Value assumed for Residual Fuel Oil/Shale Oil Boilers from table 2.6
B47: Natural gas | C47: 0.0028 | D47: 0.001035 | E47: 0.37843 | G47: 1 | H47: Assumed consistent with natural gas boiler flue gas emissions
B48: =B35 -> LPG | C48: 0.0009 | D48: 0.004 | E48: 1.2145 | G48: 4 | H48: Value for LPG taken from Table 2.7 | K48: Validated | L48: Auditor comments
B49: =B36 -> User value - insert data | E49: 0
B50: User value - insert data | E50: 0
B51: User value - insert data | E51: 0
B53: Fossil fuel boiler flue gas emissions
B54: Fuel | C54: Flue gas emissions gCH4/MJfuel | D54: Flue gas emissions gN2O/MJfuel | E54: Flue gas CH4 and N2O emissions gCO2eq/MJfuel | F54: [N/A.] | G54: Reference | H54: Notes
B55: =B28 -> Hard coal | C55: 0.0001 | D55: 0.061 | E55: =C55*CH4GWP+D55*N2OGWP -> 18.1805 | G55: 4 | H55: Value conservatively assumed for Bituminous Fluidised Bed Combustor from table 2.6
B56: Lignite | C56: 0.001419916667 | D56: 0.003017222222 | E56: 0.9346301388 | G56: 2 | H56: Assumed consistent with lignite CHP flue gas emissions
B57: Diesel | C57: 0.0009 | D57: 0.0004 | E57: 0.1417 | G57: 4 | H57: Value assumed for Gasoline/Diesel Oil boilers from table 2.6
B58: Gasoline | C58: 0.0009 | D58: 0.0004 | E58: 0.1417 | G58: 4 | H58: Value assumed for Gasoline/Diesel Oil boilers from table 2.6
B59: Heavy fuel oil | C59: 0.0008 | D59: 0.0003 | E59: 0.1094 | G59: 4 | H59: Value assumed for Residual Fuel Oil/Shale Oil Boilers from table 2.6
B60: Natural gas | C60: 0.0028 | D60: 0.001035 | E60: 0.37843 | G60: 1 | H60: Derived by multilying g/MJheat values by system efficiency
B61: =B35 -> LPG | C61: 0.0009 | D61: 0.004 | E61: 1.2145 | G61: 4 | H61: Value for LPG taken from Table 2.7 | K61: Validated | L61: Auditor comments
B62: =B36 -> User value - insert data | E62: 0
B63: User value - insert data | E63: 0
B64: User value - insert data | E64: 0
B66: Biomass fuels
B67: Fuel | C67: LHV MJ/kg 0% water | D67: Emission factor gCO2eq/MJ | E67: Bulk density* kg/m3 0% water | F67: [N/A.] | G67: Reference | H67: Notes
B68: Wood chip | C68: 19 | D68: 4.6 | E68: 155 | G68: 1,5 | H68: Emission factor assumed as the most conservative typical value for cultivation, processing and transport of common sources (stemwood, industry residues and forestry residues) within 500km
B69: Wood pellet (woodchip for drying) | C69: 19 | D69: 15.5 | E69: 650 | G69: 1,5 | H69: Emission factor assumed as the most conservative typical value for cultivation, processing and transport of common sources (stemwood, industry residues and forestry residues) within 500km under case 2a (wood chip boiler)
B70: Wood pellet (fossil fuel for drying) | C70: 19 | D70: 28.8 | E70: 650 | G70: 1,5 | H70: Emission factor assumed as the most conservative typical value for cultivation, processing and transport of common sources (stemwood, industry residues and forestry residues) within 500km under case 1 (natural gas boiler)
B71: Sawmill residuals | C71: 19 | D71: 3.3 | E71: 155 | G71: 1,5 | H71: LHV assumed the same as wood pellets and wood chips; Emission factor assumed as typical value processing and transport of industry residue woodchips within 500km. Density assumed the same as Wood Chips
B72: Bark | C72: 19 | D72: 3.3 | E72: 153 | G72: 5,A | H72: LHV assumed the same as wood pellets and wood chips; Emission factor assumed as typical value for processing and transport of industry residue woodchips within 500km | K72: Validated | L72: Auditor comments
B73: User value - insert data
B74: User value - insert data
B75: User value - insert data
B76: User value - insert data
B77: User value - insert data
B78: *Bulk density values are not used in calculator but provided for reference
B80: Biomass CHP flue gas emissions
B81: Fuel | C81: Flue gas emissions gCH4/MJfuel | D81: Flue gas emissions gN2O/MJfuel | E81: Flue gas CH4 and N2O emissions gCO2eq/MJfuel | F81: [N/A.] | G81: Reference | H81: Notes
B82: =B68 -> Wood chip | C82: 0.00296986 | D82: 0.00059332 | E82: =C82*CH4GWP+D82*N2OGWP -> 0.25105586 | G82: 1 | H82: Derived by multiplying g/MJelectricity values by system efficiency
B83: =B69 -> Wood pellet (woodchip for drying) | C83: 0.004872 | D83: 0.0009744 | E83: 0.4121712 | G83: 1 | H83: Derived by multiplying g/MJheat values by system efficiency
B84: =B71 -> Sawmill residuals | C84: 0.004875 | D84: 0.000975 | E84: =C84*CH4GWP+D84*N2OGWP -> 0.412425 | G84: 2 | H84: Assumed consistent with sawdust boiler flue gas emissions
B85: Bark | C85: 0.004875 | D85: 0.000975 | E85: =C85*CH4GWP+D85*N2OGWP -> 0.412425 | G85: 1 | H85: Assumed consistent with sawdust boiler flue gas emissions | K85: Validated | L85: Auditor comments
B86: User value - insert data | E86: 0
B87: User value - insert data | E87: 0
B88: User value - insert data | E88: 0
B89: User value - insert data | E89: =C89*CH4GWP+D89*N2OGWP -> 0
B90: User value - insert data | E90: 0
B92: Biomass boiler flue gas emissions
B93: Fuel | C93: Flue gas emissions gCH4/MJfuel | D93: Flue gas emissions gN2O/MJfuel | E93: Flue gas CH4 and N2O emissions gCO2eq/MJfuel | F93: [N/A.] | G93: Reference | H93: Notes
B94: =B68 -> Wood chip | C94: 0.00296904 | D94: 0.00059363 | E94: =C94*CH4GWP+D94*N2OGWP -> 0.25112774 | G94: 1 | H94: Derived by multiplying g/MJheat values by system efficiency
B95: =B69 -> Wood pellet (woodchip for drying) | C95: 0.00488835 | D95: 0.0009775 | E95: 0.41350375 | G95: 1 | H95: Derived by multiplying g/MJheat values by system efficiency
B96: =B71 -> Sawmill residuals | C96: 0.004875 | D96: 0.000975 | E96: =C96*CH4GWP+D96*N2OGWP -> 0.412425 | G96: 2 | H96: Assumed consistent with sawdust boiler flue gas emissions
B97: Bark | C97: 0.004875 | D97: 0.000975 | E97: =C97*CH4GWP+D97*N2OGWP -> 0.412425 | G97: 1 | H97: Assumed consistent with sawdust boiler flue gas emissions | K97: Validated | L97: Auditor comments
B98: User value - insert data | E98: 0
B99: User value - insert data | E99: 0
B100: User value - insert data | E100: 0
B101: User value - insert data | E101: =C101*CH4GWP+D101*N2OGWP -> 0
B102: User value - insert data | E102: 0
B104: CH4 and N2O emissions from final fuel in use
B105: Fuel | C105: Flue gas CH4 and N2O emissions gCO2eq/MJfuel | D105: [N/A.] | E105: [N/A..] | F105: [N/A...] | G105: Reference | H105: Notes
B106: Wood chip | C106: 0.5 | G106: 5
B107: Wood pellet | C107: 0.3 | G107: 5 | K107: Validated | L107: Auditor comments
B108: Agricultural processing residue | C108: 0.3 | G108: 5
B109: User value - insert data
B111: Electricity - Grid
B112: Source | C112: Emission factor gCO2eq/MJ | D112: [N/A.] | E112: [N/A..] | F112: [N/A...] | G112: Reference | H112: Notes
B113: Austria | C113: 40.89616468 | G113: B
B114: Belarus | C114: 99.18828138 | G114: B
B115: Belgium | C115: 38.5605 | G115: B
B116: Brazil | C116: 35.97222222 | G116: B
B117: Bulgaria | C117: 153.8089246 | G117: B
B118: Canada | C118: 30.55555556 | G118: B
B119: Croatia | C119: 70.7485904 | G119: B
B120: Cyprus | C120: 181.9254173 | G120: B
B121: Czech Republic | C121: 212.2588255 | G121: B
B122: Denmark | C122: 52.03013854 | G122: B
B123: Estonia | C123: 209.3135 | G123: B
B124: Finland | C124: 26.47360424 | G124: B
B125: France | C125: 17.2409502 | G125: B
B126: Germany | C126: 124.7547046 | G126: B
B127: Greece | C127: 105.1118658 | G127: B
B128: Hungary | C128: 75.10387375 | G128: B
B129: Ireland | C129: 97.8215 | G129: B
B130: Italy | C130: 101.17995 | G130: B
B131: Latvia | C131: 41.13183333 | G131: B
B132: Lithuania | C132: 75.3065 | G132: B
B133: Luxemburg | C133: 23.59110794 | G133: B
B134: Malta | C134: 118.5800185 | G134: B
B135: Mexico | C135: 83.33333333 | G135: B
B136: Netherlands | C136: 94.69146506 | G136: B
B137: Norway | C137: 2.31024935 | G137: B
B138: Poland | C138: 243.7806634 | G138: B
B139: Portugal | C139: 43.44666667 | G139: B
B140: Romania | C140: 86.52091514 | G140: B
B141: Russia | C141: 95.44980756 | G141: B
B142: Serbia | C142: 267.5640469 | G142: B
B143: Slovakia | C143: 48.95107353 | G143: B
B144: Slovenia | C144: 75.9145697 | G144: B
B145: Spain | C145: 49.1912264 | G145: B
B146: Sweden | C146: 2.029211208 | G146: B
B147: Switzerland | C147: 0.7711921621 | G147: B
B148: Turkey | C148: 118.3611111 | G148: B
B149: Ukraine | C149: 56.5968967 | G149: B
B150: United Kingdom | C150: 62.49705556 | G150: B
B151: United States | C151: 113.0719221 | G151: B
B152: User value - insert data | K152: Validated | L152: Auditor comments
B153: User value - insert data
B154: User value - insert data
B155: User value - insert data
B156: User value - insert data
B157: User value - insert data
B158: User value - insert data
B159: User value - insert data
B160: User value - insert data
B161: User value - insert data
B162: User value - insert data
B163: User value - insert data
B164: User value - insert data
B165: User value - insert data
B167: Electricity - Onsite
B168: Source | C168: Emission factor gCO2eq/MJ | D168: [N/A.] | E168: [N/A..] | F168: [N/A...] | G168: Reference | H168: Notes
B169: Wind | C169: 0
B170: Solar | C170: 0
B171: User value - insert data
B172: User value - insert data | K172: Validated | L172: Auditor comments
B174: Transport
B175: Transport mode | C175: Fuel efficiency MJ/t.km | D175: Exhaust emissions gCH4/t.km | E175: Exhaust emissions gN2O/t.km | F175: Exhaust CH4 and N2O emissions gCO2eq/t.km | G175: Reference | H175: Notes
B176: Truck for dry product | C176: 0.811 | D176: 0.0034 | E176: 0.0015 | F176: =Transport_table[[#This Row],[Exhaust emissions gCH4/t.km]]*CH4GWP+Transport_table[[#This Row],[Exhaust emissions gN2O/t.km]]*N2OGWP -> 0.532 | G176: 1
B177: Truck for wood chips | C177: 0.84 | D177: 0.0035 | E177: 0.0016 | F177: =Transport_table[[#This Row],[Exhaust emissions gCH4/t.km]]*CH4GWP+Transport_table[[#This Row],[Exhaust emissions gN2O/t.km]]*N2OGWP -> 0.5643 | G177: 2
B178: Truck for wood pellets | C178: 0.88 | D178: 0.0037 | E178: 0.0016 | F178: =Transport_table[[#This Row],[Exhaust emissions gCH4/t.km]]*CH4GWP+Transport_table[[#This Row],[Exhaust emissions gN2O/t.km]]*N2OGWP -> 0.5693 | G178: 2
B179: Inland bulk carrier - 8.8 kt | C179: 0.324 | D179: 0.093 | E179: 0.0004 | F179: =Transport_table[[#This Row],[Exhaust emissions gCH4/t.km]]*CH4GWP+Transport_table[[#This Row],[Exhaust emissions gN2O/t.km]]*N2OGWP -> 2.4442 | G179: 2
B180: Inland ship for oil transport - 1.2kt | C180: 0.504 | D180: 0.03 | E180: 0 | F180: =Transport_table[[#This Row],[Exhaust emissions gCH4/t.km]]*CH4GWP+Transport_table[[#This Row],[Exhaust emissions gN2O/t.km]]*N2OGWP -> 0.75 | G180: 2
B181: Freight train (diesel) | C181: 0.252 | D181: 0.005 | E181: 0.001 | F181: =Transport_table[[#This Row],[Exhaust emissions gCH4/t.km]]*CH4GWP+Transport_table[[#This Row],[Exhaust emissions gN2O/t.km]]*N2OGWP -> 0.423 | G181: 1
B182: Freight train (electric) | C182: 0.21 | D182: 0 | E182: 0 | F182: =Transport_table[[#This Row],[Exhaust emissions gCH4/t.km]]*CH4GWP+Transport_table[[#This Row],[Exhaust emissions gN2O/t.km]]*N2OGWP -> 0 | G182: 2
B183: User value - insert data | F183: =Transport_table[[#This Row],[Exhaust emissions gCH4/t.km]]*CH4GWP+Transport_table[[#This Row],[Exhaust emissions gN2O/t.km]]*N2OGWP -> 0
B184: User value - insert data | F184: =Transport_table[[#This Row],[Exhaust emissions gCH4/t.km]]*CH4GWP+Transport_table[[#This Row],[Exhaust emissions gN2O/t.km]]*N2OGWP -> 0 | K184: Validated | L184: Auditor comments
B185: User value - insert data | F185: =Transport_table[[#This Row],[Exhaust emissions gCH4/t.km]]*CH4GWP+Transport_table[[#This Row],[Exhaust emissions gN2O/t.km]]*N2OGWP -> 0
B187: Transport fuels
B188: Fuel | C188: Density kg/m3 | D188: LHV MJ/kg 0% water | E188: Emission factor gCO2eq/MJ | F188: [N/A.] | G188: Reference | H188: Notes
B189: Diesel | C189: 832 | D189: 43.1 | E189: 95.1 | G189: 2,1
B190: Gasoline | C190: 745 | D190: 43.2 | E190: 92.42 | G190: 2
B191: Heavy fuel oil | C191: 970 | D191: 40.5 | E191: 94.2 | G191: 2,1
B192: Natural gas | C192: N/A | D192: 49.2 | E192: 66 | G192: 2,1
B193: LPG | C193: N/A | D193: 46 | E193: 73.27 | G193: 2
B194: Electricity - US | C194: N/A | D194: N/A | E194: 180 | G194: 3
B195: Electricity - Canada | C195: N/A | D195: N/A | E195: 55 | G195: 3
B196: Electricity - Russia | C196: N/A | D196: N/A | E196: 172 | G196: 3
B197: Electricity - UK | C197: N/A | D197: N/A | E197: 165.5 | G197: 3
B198: User value - insert data
B199: User value - insert data | K199: Validated | L199: Auditor comments
B200: User value - insert data
B201: User value - insert data
B202: User value - insert data
B204: Shipping
B205: Transport mode | C205: Fuel efficiency MJ/t.km | D205: Exhaust CH4 and N2O emissions gCO2eq/t.km | E205: [N/A..] | F205: [N/A...] | G205: Reference | H205: Notes
B206: Handysize bulk carrier - wood chips | C206: 0.2584 | G206: 1,7 | H206: Assumes wood chip density of 220kg/m3 and DWT of 28,000t; Assumes 30% capacity factor
B207: Handysize bulk carrier - wood pellets | C207: 0.1014 | G207: 1,7 | H207: Assumes wood pellet density of 650kg/m3 and DWT of 28,000t; Assumes 30% capacity factor
B208: Handymax bulk carrier - wood chips | C208: 0.2186 | G208: 7 | H208: Assumes wood chip density of 220kg/m3 and DWT of 40,000t; Assumes 30% capacity factor
B209: Handymax bulk carrier - wood pellets | C209: 0.0851 | G209: 7 | H209: Assumes wood pellet density of 650kg/m3 DWT of 40,000t; Assumes 30% capacity factor
B210: Supramax bulk carrier - wood chip | C210: 0.1643 | G210: 1,7 | H210: Assumes wood chip density of 220kg/m3 and DWT of 57,000t; Assumes 30% capacity factor
B211: Supramax bulk carrier - wood pellets | C211: 0.0656 | G211: 1,7 | H211: Assumes wood pellet density of 650kg/m3 DWT of 57,000t; Assumes 30% capacity factor
B212: Product tanker - 22.56kt | C212: 0.09547065 | G212: 2
B213: Product tanker - 15kt | C213: 0.1712259 | G213: 2
B214: Product tanker - 12.617kt | C214: 0.1151496 | G214: 2
B215: Inland bulk carrier - 8.8 kt | C215: 0.324
... 145 more rows

Sheet Reference values
C1: Key
C2: Input
C3: Calculation
C4: Information
C5: Pulled data
B8: RED disaggregated default values for cultivation and harvesting
B9: Feedstock | C9: Emissions gCO2eq/MJ | D9: [NA.] | E9: Reference | F9: Notes
B10: Wood pellet from forest residues | C10: 0 | E10: 5
B11: Wood pellet from industry residues | C11: 0 | E11: 5
B12: Wood pellet from stemwood (natural gas for drying) | C12: 1.1 | E12: 5
B13: Wood pellet from stemwood (wood chip for drying) | C13: 1.4 | E13: 5
B14: Wood pellet from Eucalyptus (natural gas for drying) | C14: 3.9 | E14: 5
B15: Wood pellet from Eucalyptus (wood chip for drying) | C15: 5 | E15: 5
B16: Wood pellet from Eucalyptus (wood chip CHP for drying) | C16: 5.3 | E16: 5
B17: Wood pellet from Poplar (fertilised; natural gas for drying) | C17: 3.4 | E17: 5
B18: Wood pellet from Poplar (fertilised; wood chip for drying) | C18: 4.4 | E18: 5
B19: Wood pellet from Poplar (fertilised; wood chip CHP for drying) | C19: 4.6 | E19: 5
B20: Wood pellet from Poplar (not fertilised; natural gas for drying) | C20: 2 | E20: 5
B21: Wood pellet from Poplar (not fertilised; wood chip for drying) | C21: 2.5 | E21: 5
B22: Wood pellet from Poplar (not fertilised; wood chip CHP for drying) | C22: 2.6 | E22: 5
B24: Wood handling and processing energy requirements for wood chip production from forestry feedstocks
B25: Process | C25: Consumption MJ/MJwood chip | D25: Consumption l/twood chip dry matter | E25: Reference | F25: Notes
B26: Diesel for collection of forestry residues including stump harvesting | C26: 0.012 | D26: =C26/Diesel_LHV/Diesel_density*lperm3*Wood_chip_LHV_default*kgpert -> 6.358200964 | E26: 1
B27: Diesel for cultivation and harvesting of stemwood | C27: 0.0107 | D27: =C27/Diesel_LHV/Diesel_density*lperm3*Wood_chip_LHV_default*kgpert -> 5.669395859 | E27: 1
B28: Diesel for chipping | C28: 0.00336 | D28: =C28/Diesel_LHV/Diesel_density*lperm3*Wood_chip_LHV_default*kgpert -> 1.78029627 | E28: 1
B29: Diesel for collection of forestry residues including stump harvesting and chipping | C29: =C26*1.025*1.053+C28 -> 0.0163119 | D29: =C29/Diesel_LHV/Diesel_density*lperm3*Wood_chip_LHV_default*kgpert -> 8.642861525 | E29: 1 | F29: Collection emissions adjusted for yields of 1.053 MJstemwood per 1 MJstemwood for seasoning and 1.025 MJstemwood per 1 MJ wood chip for chipping
B30: Diesel for cultivation, harvesting and chipping of stemwood | C30: =C27*1.053*1.025+C28 -> 0.0149087775 | D30: =C30/Diesel_LHV/Diesel_density*lperm3*Wood_chip_LHV_default*kgpert -> 7.899416956 | E30: 1 | F30: Cultivation and harvesting emissions adjusted for yields of 1.053 MJstemwood per 1 MJstemwood for seasoning and 1.025 MJstemwood per 1 MJ wood chip for chipping
B32: Wood handling and processing energy requirements for pellets from fresh forest chips
B33: Process | C33: Consumption MJ/MJwood pellet | D33: Unit | E33: Reference | F33: Notes
B34: Heat for drying | C34: 0.185 | D34: MJ/MJwood pellet | E34: 1 | F34: Assumes moisture content of chips is reduced from 50% to 10%
B35: Electricity for pelleting | C35: 0.05 | D35: MJ/MJwood pellet | E35: 1
B36: Diesel for pelleting handling processes | C36: 0.002 | D36: MJ/MJwood pellet | E36: 1
B38: Wood processing feedstock factors
B39: Process | C39: Value | D39: Unit | E39: Reference | F39: Notes
B40: Chipping | C40: 1.025 | D40: MJfeedstock/MJchip | E40: 1
B41: Pelleting | C41: 1.01 | D41: MJchip/MJpellet | E41: 1
B43: Additional upstream emissions
B44: Emission source | C44: Value | D44: Unit | E44: Reference | F44: Notes | I44: Validated | J44: Auditor comments
B45: User value - insert data | D45: kgCO2eq/toutput
B46: User value - insert data | D46: kgCO2eq/toutput
B47: User value - insert data | D47: kgCO2eq/toutput
B48: User value - insert data | D48: kgCO2eq/toutput
B49: User value - insert data | D49: kgCO2eq/toutput
B50: User value - insert data | D50: kgCO2eq/toutput
B51: User value - insert data | D51: kgCO2eq/toutput
B52: User value - insert data | D52: kgCO2eq/toutput
B53: User value - insert data | D53: kgCO2eq/toutput
B54: User value - insert data | D54: kgCO2eq/toutput

Sheet Emissions
D6: Consignment | G6: Emissions | U6: Supporting calculations
U8: Total pellet output tdry matter | X8: =Pellet_tonnes*(1-Pellet_moisture) -> 0
U9: Pellet LHV MJ/kgdry matter | X9: =(Pellet_lhv+Pellet_moisture*2.441)/(1-Pellet_moisture) -> 0
U10: Processing feedstock factor MJfeedstock/MJpellet | X10: =IFERROR(SUM(Mass_balance_table[Consignment input MJfeedstock dry matter])/SUM(Mass_balance_table[Consignment output MJpellet dry matter]),"") -> 
B12: Mass balance | D12: Consignment | U12: Mass Balance | AA12: Energy Balance
D13: Consignment # | E13: Feedstock origin | U13: Consignment delivered tfeedstock fresh matter | V13: Moisture % as received | W13: Consignment delivered tfeedstock dry matter | X13: Consignment for hog fuel tfeedstock dry matter | Y13: Consignment input tfeedstock dry matter | Z13: Consignment output tpellet dry matter | AA13: Feedstock LHV MJ/kg fresh matter | AB13: Feedstock LHV MJ/kg dry matter | AC13: Consignment delivered MJfeedstock dry matter | AD13: Consignment for hog fuel MJfeedstock dry matter | AE13: Consignment input MJfeedstock dry matter | AF13: Consignment output MJpellet dry matter
D14: =IF(ISBLANK(Feedstock!B9),"",Feedstock!B9) -> 1 | E14: =IF(ISBLANK(Feedstock!D9),"",Feedstock!D9) ->  | U14: =IF(ISBLANK(Feedstock!G9),"",Feedstock!G9) ->  | V14: =IF(ISBLANK(Feedstock!H9),"",Feedstock!H9) ->  | W14: =IFERROR(Mass_balance_table[[#This Row],[Consignment delivered tfeedstock fresh matter]]*(1-Mass_balance_table[[#This Row],[Moisture % as received]]),"") ->  | X14: =Y60 -> 0 | Y14: =IFERROR(Mass_balance_table[[#This Row],[Consignment delivered tfeedstock dry matter]]-Mass_balance_table[[#This Row],[Consignment for hog fuel tfeedstock dry matter]],"") ->  | Z14: =IFERROR(Mass_balance_table[[#This Row],[Consignment input tfeedstock dry matter]]/SUM(Mass_balance_table[Consignment input tfeedstock dry matter])*Pellet_tonnes_dry,"") ->  | AA14: =IFERROR(IF(ISBLANK(Feedstock!H9),"",IF((Pellet_lhv_dry*(1-Feedstock!H9)-Feedstock!H9*2.441)<0,0,(Pellet_lhv_dry*(1-Feedstock!H9)-Feedstock!H9*2.441))),"") ->  | AB14: =IFERROR(IF(ISBLANK(Emissions!AA14),"",(Emissions!AA14+Feedstock!H9*2.441)/(1-Feedstock!H9)),"") ->  | AC14: =IFERROR(Mass_balance_table[[#This Row],[Consignment delivered tfeedstock dry matter]]*kgpert*Mass_balance_table[[#This Row],[Feedstock LHV MJ/kg dry matter]],"") ->  | AD14: =IFERROR(Mass_balance_table[[#This Row],[Consignment for hog fuel tfeedstock dry matter]]*kgpert*Mass_balance_table[[#This Row],[Feedstock LHV MJ/kg dry matter]],"") ->  | AE14: =IFERROR(Mass_balance_table[[#This Row],[Consignment delivered MJfeedstock dry matter]]-Mass_balance_table[[#This Row],[Consignment for hog fuel MJfeedstock dry matter]],"") ->  | AF14: =IFERROR(Mass_balance_table[[#This Row],[Consignment output tpellet dry matter]]*kgpert*Pellet_lhv_dry,"") -> 
D15: =IF(ISBLANK(Feedstock!B10),"",Feedstock!B10) -> 2 | E15: =IF(ISBLANK(Feedstock!D10),"",Feedstock!D10) ->  | U15: =IF(ISBLANK(Feedstock!G10),"",Feedstock!G10) ->  | V15: =IF(ISBLANK(Feedstock!H10),"",Feedstock!H10) ->  | W15: =IFERROR(Mass_balance_table[[#This Row],[Consignment delivered tfeedstock fresh matter]]*(1-Mass_balance_table[[#This Row],[Moisture % as received]]),"") ->  | X15: 0 | Y15: =IFERROR(Mass_balance_table[[#This Row],[Consignment delivered tfeedstock dry matter]]-Mass_balance_table[[#This Row],[Consignment for hog fuel tfeedstock dry matter]],"") ->  | Z15: =IFERROR(Mass_balance_table[[#This Row],[Consignment input tfeedstock dry matter]]/SUM(Mass_balance_table[Consignment input tfeedstock dry matter])*Pellet_tonnes_dry,"") ->  | AA15: =IFERROR(IF(ISBLANK(Feedstock!H10),"",IF((Pellet_lhv_dry*(1-Feedstock!H10)-Feedstock!H10*2.441)<0,0,(Pellet_lhv_dry*(1-Feedstock!H10)-Feedstock!H10*2.441))),"") ->  | AB15: =IFERROR(IF(ISBLANK(Emissions!AA15),"",(Emissions!AA15+Feedstock!H10*2.441)/(1-Feedstock!H10)),"") ->  | AC15: =IFERROR(Mass_balance_table[[#This Row],[Consignment delivered tfeedstock dry matter]]*kgpert*Mass_balance_table[[#This Row],[Feedstock LHV MJ/kg dry matter]],"") ->  | AD15: =IFERROR(Mass_balance_table[[#This Row],[Consignment for hog fuel tfeedstock dry matter]]*kgpert*Mass_balance_table[[#This Row],[Feedstock LHV MJ/kg dry matter]],"") ->  | AE15: =IFERROR(Mass_balance_table[[#This Row],[Consignment delivered MJfeedstock dry matter]]-Mass_balance_table[[#This Row],[Consignment for hog fuel MJfeedstock dry matter]],"") ->  | AF15: =IFERROR(Mass_balance_table[[#This Row],[Consignment output tpellet dry matter]]*kgpert*Pellet_lhv_dry,"") -> 
D16: =IF(ISBLANK(Feedstock!B11),"",Feedstock!B11) -> 3 | E16: =IF(ISBLANK(Feedstock!D11),"",Feedstock!D11) ->  | U16: =IF(ISBLANK(Feedstock!G11),"",Feedstock!G11) ->  | V16: =IF(ISBLANK(Feedstock!H11),"",Feedstock!H11) ->  | W16: =IFERROR(Mass_balance_table[[#This Row],[Consignment delivered tfeedstock fresh matter]]*(1-Mass_balance_table[[#This Row],[Moisture % as received]]),"") ->  | X16: 0 | Y16: =IFERROR(Mass_balance_table[[#This Row],[Consignment delivered tfeedstock dry matter]]-Mass_balance_table[[#This Row],[Consignment for hog fuel tfeedstock dry matter]],"") ->  | Z16: =IFERROR(Mass_balance_table[[#This Row],[Consignment input tfeedstock dry matter]]/SUM(Mass_balance_table[Consignment input tfeedstock dry matter])*Pellet_tonnes_dry,"") ->  | AA16: =IFERROR(IF(ISBLANK(Feedstock!H11),"",IF((Pellet_lhv_dry*(1-Feedstock!H11)-Feedstock!H11*2.441)<0,0,(Pellet_lhv_dry*(1-Feedstock!H11)-Feedstock!H11*2.441))),"") ->  | AB16: =IFERROR(IF(ISBLANK(Emissions!AA16),"",(Emissions!AA16+Feedstock!H11*2.441)/(1-Feedstock!H11)),"") ->  | AC16: =IFERROR(Mass_balance_table[[#This Row],[Consignment delivered tfeedstock dry matter]]*kgpert*Mass_balance_table[[#This Row],[Feedstock LHV MJ/kg dry matter]],"") ->  | AD16: =IFERROR(Mass_balance_table[[#This Row],[Consignment for hog fuel tfeedstock dry matter]]*kgpert*Mass_balance_table[[#This Row],[Feedstock LHV MJ/kg dry matter]],"") ->  | AE16: =IFERROR(Mass_balance_table[[#This Row],[Consignment delivered MJfeedstock dry matter]]-Mass_balance_table[[#This Row],[Consignment for hog fuel MJfeedstock dry matter]],"") ->  | AF16: =IFERROR(Mass_balance_table[[#This Row],[Consignment output tpellet dry matter]]*kgpert*Pellet_lhv_dry,"") -> 
D17: =IF(ISBLANK(Feedstock!B12),"",Feedstock!B12) -> 4 | E17: =IF(ISBLANK(Feedstock!D12),"",Feedstock!D12) ->  | U17: =IF(ISBLANK(Feedstock!G12),"",Feedstock!G12) ->  | V17: =IF(ISBLANK(Feedstock!H12),"",Feedstock!H12) ->  | W17: =IFERROR(Mass_balance_table[[#This Row],[Consignment delivered tfeedstock fresh matter]]*(1-Mass_balance_table[[#This Row],[Moisture % as received]]),"") ->  | X17: 0 | Y17: =IFERROR(Mass_balance_table[[#This Row],[Consignment delivered tfeedstock dry matter]]-Mass_balance_table[[#This Row],[Consignment for hog fuel tfeedstock dry matter]],"") ->  | Z17: =IFERROR(Mass_balance_table[[#This Row],[Consignment input tfeedstock dry matter]]/SUM(Mass_balance_table[Consignment input tfeedstock dry matter])*Pellet_tonnes_dry,"") ->  | AA17: =IFERROR(IF(ISBLANK(Feedstock!H12),"",IF((Pellet_lhv_dry*(1-Feedstock!H12)-Feedstock!H12*2.441)<0,0,(Pellet_lhv_dry*(1-Feedstock!H12)-Feedstock!H12*2.441))),"") ->  | AB17: =IFERROR(IF(ISBLANK(Emissions!AA17),"",(Emissions!AA17+Feedstock!H12*2.441)/(1-Feedstock!H12)),"") ->  | AC17: =IFERROR(Mass_balance_table[[#This Row],[Consignment delivered tfeedstock dry matter]]*kgpert*Mass_balance_table[[#This Row],[Feedstock LHV MJ/kg dry matter]],"") ->  | AD17: =IFERROR(Mass_balance_table[[#This Row],[Consignment for hog fuel tfeedstock dry matter]]*kgpert*Mass_balance_table[[#This Row],[Feedstock LHV MJ/kg dry matter]],"") ->  | AE17: =IFERROR(Mass_balance_table[[#This Row],[Consignment delivered MJfeedstock dry matter]]-Mass_balance_table[[#This Row],[Consignment for hog fuel MJfeedstock dry matter]],"") ->  | AF17: =IFERROR(Mass_balance_table[[#This Row],[Consignment output tpellet dry matter]]*kgpert*Pellet_lhv_dry,"") -> 
D18: =IF(ISBLANK(Feedstock!B13),"",Feedstock!B13) -> 5 | E18: =IF(ISBLANK(Feedstock!D13),"",Feedstock!D13) ->  | U18: =IF(ISBLANK(Feedstock!G13),"",Feedstock!G13) ->  | V18: =IF(ISBLANK(Feedstock!H13),"",Feedstock!H13) ->  | W18: =IFERROR(Mass_balance_table[[#This Row],[Consignment delivered tfeedstock fresh matter]]*(1-Mass_balance_table[[#This Row],[Moisture % as received]]),"") ->  | X18: 0 | Y18: =IFERROR(Mass_balance_table[[#This Row],[Consignment delivered tfeedstock dry matter]]-Mass_balance_table[[#This Row],[Consignment for hog fuel tfeedstock dry matter]],"") ->  | Z18: =IFERROR(Mass_balance_table[[#This Row],[Consignment input tfeedstock dry matter]]/SUM(Mass_balance_table[Consignment input tfeedstock dry matter])*Pellet_tonnes_dry,"") ->  | AA18: =IFERROR(IF(ISBLANK(Feedstock!H13),"",IF((Pellet_lhv_dry*(1-Feedstock!H13)-Feedstock!H13*2.441)<0,0,(Pellet_lhv_dry*(1-Feedstock!H13)-Feedstock!H13*2.441))),"") ->  | AB18: =IFERROR(IF(ISBLANK(Emissions!AA18),"",(Emissions!AA18+Feedstock!H13*2.441)/(1-Feedstock!H13)),"") ->  | AC18: =IFERROR(Mass_balance_table[[#This Row],[Consignment delivered tfeedstock dry matter]]*kgpert*Mass_balance_table[[#This Row],[Feedstock LHV MJ/kg dry matter]],"") ->  | AD18: =IFERROR(Mass_balance_table[[#This Row],[Consignment for hog fuel tfeedstock dry matter]]*kgpert*Mass_balance_table[[#This Row],[Feedstock LHV MJ/kg dry matter]],"") ->  | AE18: =IFERROR(Mass_balance_table[[#This Row],[Consignment delivered MJfeedstock dry matter]]-Mass_balance_table[[#This Row],[Consignment for hog fuel MJfeedstock dry matter]],"") ->  | AF18: =IFERROR(Mass_balance_table[[#This Row],[Consignment output tpellet dry matter]]*kgpert*Pellet_lhv_dry,"") -> 
D19: =IF(ISBLANK(Feedstock!B14),"",Feedstock!B14) -> 6 | E19: =IF(ISBLANK(Feedstock!D14),"",Feedstock!D14) ->  | U19: =IF(ISBLANK(Feedstock!G14),"",Feedstock!G14) ->  | V19: =IF(ISBLANK(Feedstock!H14),"",Feedstock!H14) ->  | W19: =IFERROR(Mass_balance_table[[#This Row],[Consignment delivered tfeedstock fresh matter]]*(1-Mass_balance_table[[#This Row],[Moisture % as received]]),"") ->  | X19: 0 | Y19: =IFERROR(Mass_balance_table[[#This Row],[Consignment delivered tfeedstock dry matter]]-Mass_balance_table[[#This Row],[Consignment for hog fuel tfeedstock dry matter]],"") ->  | Z19: =IFERROR(Mass_balance_table[[#This Row],[Consignment input tfeedstock dry matter]]/SUM(Mass_balance_table[Consignment input tfeedstock dry matter])*Pellet_tonnes_dry,"") ->  | AA19: =IFERROR(IF(ISBLANK(Feedstock!H14),"",IF((Pellet_lhv_dry*(1-Feedstock!H14)-Feedstock!H14*2.441)<0,0,(Pellet_lhv_dry*(1-Feedstock!H14)-Feedstock!H14*2.441))),"") ->  | AB19: =IFERROR(IF(ISBLANK(Emissions!AA19),"",(Emissions!AA19+Feedstock!H14*2.441)/(1-Feedstock!H14)),"") ->  | AC19: =IFERROR(Mass_balance_table[[#This Row],[Consignment delivered tfeedstock dry matter]]*kgpert*Mass_balance_table[[#This Row],[Feedstock LHV MJ/kg dry matter]],"") ->  | AD19: =IFERROR(Mass_balance_table[[#This Row],[Consignment for hog fuel tfeedstock dry matter]]*kgpert*Mass_balance_table[[#This Row],[Feedstock LHV MJ/kg dry matter]],"") ->  | AE19: =IFERROR(Mass_balance_table[[#This Row],[Consignment delivered MJfeedstock dry matter]]-Mass_balance_table[[#This Row],[Consignment for hog fuel MJfeedstock dry matter]],"") ->  | AF19: =IFERROR(Mass_balance_table[[#This Row],[Consignment output tpellet dry matter]]*kgpert*Pellet_lhv_dry,"") -> 
D20: =IF(ISBLANK(Feedstock!B15),"",Feedstock!B15) -> 7 | E20: =IF(ISBLANK(Feedstock!D15),"",Feedstock!D15) ->  | U20: =IF(ISBLANK(Feedstock!G15),"",Feedstock!G15) ->  | V20: =IF(ISBLANK(Feedstock!H15),"",Feedstock!H15) ->  | W20: =IFERROR(Mass_balance_table[[#This Row],[Consignment delivered tfeedstock fresh matter]]*(1-Mass_balance_table[[#This Row],[Moisture % as received]]),"") ->  | X20: 0 | Y20: =IFERROR(Mass_balance_table[[#This Row],[Consignment delivered tfeedstock dry matter]]-Mass_balance_table[[#This Row],[Consignment for hog fuel tfeedstock dry matter]],"") ->  | Z20: =IFERROR(Mass_balance_table[[#This Row],[Consignment input tfeedstock dry matter]]/SUM(Mass_balance_table[Consignment input tfeedstock dry matter])*Pellet_tonnes_dry,"") ->  | AA20: =IFERROR(IF(ISBLANK(Feedstock!H15),"",IF((Pellet_lhv_dry*(1-Feedstock!H15)-Feedstock!H15*2.441)<0,0,(Pellet_lhv_dry*(1-Feedstock!H15)-Feedstock!H15*2.441))),"") ->  | AB20: =IFERROR(IF(ISBLANK(Emissions!AA20),"",(Emissions!AA20+Feedstock!H15*2.441)/(1-Feedstock!H15)),"") ->  | AC20: =IFERROR(Mass_balance_table[[#This Row],[Consignment delivered tfeedstock dry matter]]*kgpert*Mass_balance_table[[#This Row],[Feedstock LHV MJ/kg dry matter]],"") ->  | AD20: =IFERROR(Mass_balance_table[[#This Row],[Consignment for hog fuel tfeedstock dry matter]]*kgpert*Mass_balance_table[[#This Row],[Feedstock LHV MJ/kg dry matter]],"") ->  | AE20: =IFERROR(Mass_balance_table[[#This Row],[Consignment delivered MJfeedstock dry matter]]-Mass_balance_table[[#This Row],[Consignment for hog fuel MJfeedstock dry matter]],"") ->  | AF20: =IFERROR(Mass_balance_table[[#This Row],[Consignment output tpellet dry matter]]*kgpert*Pellet_lhv_dry,"") -> 
D21: =IF(ISBLANK(Feedstock!B16),"",Feedstock!B16) -> 8 | E21: =IF(ISBLANK(Feedstock!D16),"",Feedstock!D16) ->  | U21: =IF(ISBLANK(Feedstock!G16),"",Feedstock!G16) ->  | V21: =IF(ISBLANK(Feedstock!H16),"",Feedstock!H16) ->  | W21: =IFERROR(Mass_balance_table[[#This Row],[Consignment delivered tfeedstock fresh matter]]*(1-Mass_balance_table[[#This Row],[Moisture % as received]]),"") ->  | X21: 0 | Y21: =IFERROR(Mass_balance_table[[#This Row],[Consignment delivered tfeedstock dry matter]]-Mass_balance_table[[#This Row],[Consignment for hog fuel tfeedstock dry matter]],"") ->  | Z21: =IFERROR(Mass_balance_table[[#This Row],[Consignment input tfeedstock dry matter]]/SUM(Mass_balance_table[Consignment input tfeedstock dry matter])*Pellet_tonnes_dry,"") ->  | AA21: =IFERROR(IF(ISBLANK(Feedstock!H16),"",IF((Pellet_lhv_dry*(1-Feedstock!H16)-Feedstock!H16*2.441)<0,0,(Pellet_lhv_dry*(1-Feedstock!H16)-Feedstock!H16*2.441))),"") ->  | AB21: =IFERROR(IF(ISBLANK(Emissions!AA21),"",(Emissions!AA21+Feedstock!H16*2.441)/(1-Feedstock!H16)),"") ->  | AC21: =IFERROR(Mass_balance_table[[#This Row],[Consignment delivered tfeedstock dry matter]]*kgpert*Mass_balance_table[[#This Row],[Feedstock LHV MJ/kg dry matter]],"") ->  | AD21: =IFERROR(Mass_balance_table[[#This Row],[Consignment for hog fuel tfeedstock dry matter]]*kgpert*Mass_balance_table[[#This Row],[Feedstock LHV MJ/kg dry matter]],"") ->  | AE21: =IFERROR(Mass_balance_table[[#This Row],[Consignment delivered MJfeedstock dry matter]]-Mass_balance_table[[#This Row],[Consignment for hog fuel MJfeedstock dry matter]],"") ->  | AF21: =IFERROR(Mass_balance_table[[#This Row],[Consignment output tpellet dry matter]]*kgpert*Pellet_lhv_dry,"") -> 
D22: =IF(ISBLANK(Feedstock!B17),"",Feedstock!B17) -> 9 | E22: =IF(ISBLANK(Feedstock!D17),"",Feedstock!D17) ->  | U22: =IF(ISBLANK(Feedstock!G17),"",Feedstock!G17) ->  | V22: =IF(ISBLANK(Feedstock!H17),"",Feedstock!H17) ->  | W22: =IFERROR(Mass_balance_table[[#This Row],[Consignment delivered tfeedstock fresh matter]]*(1-Mass_balance_table[[#This Row],[Moisture % as received]]),"") ->  | X22: 0 | Y22: =IFERROR(Mass_balance_table[[#This Row],[Consignment delivered tfeedstock dry matter]]-Mass_balance_table[[#This Row],[Consignment for hog fuel tfeedstock dry matter]],"") ->  | Z22: =IFERROR(Mass_balance_table[[#This Row],[Consignment input tfeedstock dry matter]]/SUM(Mass_balance_table[Consignment input tfeedstock dry matter])*Pellet_tonnes_dry,"") ->  | AA22: =IFERROR(IF(ISBLANK(Feedstock!H17),"",IF((Pellet_lhv_dry*(1-Feedstock!H17)-Feedstock!H17*2.441)<0,0,(Pellet_lhv_dry*(1-Feedstock!H17)-Feedstock!H17*2.441))),"") ->  | AB22: =IFERROR(IF(ISBLANK(Emissions!AA22),"",(Emissions!AA22+Feedstock!H17*2.441)/(1-Feedstock!H17)),"") ->  | AC22: =IFERROR(Mass_balance_table[[#This Row],[Consignment delivered tfeedstock dry matter]]*kgpert*Mass_balance_table[[#This Row],[Feedstock LHV MJ/kg dry matter]],"") ->  | AD22: =IFERROR(Mass_balance_table[[#This Row],[Consignment for hog fuel tfeedstock dry matter]]*kgpert*Mass_balance_table[[#This Row],[Feedstock LHV MJ/kg dry matter]],"") ->  | AE22: =IFERROR(Mass_balance_table[[#This Row],[Consignment delivered MJfeedstock dry matter]]-Mass_balance_table[[#This Row],[Consignment for hog fuel MJfeedstock dry matter]],"") ->  | AF22: =IFERROR(Mass_balance_table[[#This Row],[Consignment output tpellet dry matter]]*kgpert*Pellet_lhv_dry,"") -> 
D23: =IF(ISBLANK(Feedstock!B18),"",Feedstock!B18) -> 10 | E23: =IF(ISBLANK(Feedstock!D18),"",Feedstock!D18) ->  | U23: =IF(ISBLANK(Feedstock!G18),"",Feedstock!G18) ->  | V23: =IF(ISBLANK(Feedstock!H18),"",Feedstock!H18) ->  | W23: =IFERROR(Mass_balance_table[[#This Row],[Consignment delivered tfeedstock fresh matter]]*(1-Mass_balance_table[[#This Row],[Moisture % as received]]),"") ->  | X23: 0 | Y23: =IFERROR(Mass_balance_table[[#This Row],[Consignment delivered tfeedstock dry matter]]-Mass_balance_table[[#This Row],[Consignment for hog fuel tfeedstock dry matter]],"") ->  | Z23: =IFERROR(Mass_balance_table[[#This Row],[Consignment input tfeedstock dry matter]]/SUM(Mass_balance_table[Consignment input tfeedstock dry matter])*Pellet_tonnes_dry,"") ->  | AA23: =IFERROR(IF(ISBLANK(Feedstock!H18),"",IF((Pellet_lhv_dry*(1-Feedstock!H18)-Feedstock!H18*2.441)<0,0,(Pellet_lhv_dry*(1-Feedstock!H18)-Feedstock!H18*2.441))),"") ->  | AB23: =IFERROR(IF(ISBLANK(Emissions!AA23),"",(Emissions!AA23+Feedstock!H18*2.441)/(1-Feedstock!H18)),"") ->  | AC23: =IFERROR(Mass_balance_table[[#This Row],[Consignment delivered tfeedstock dry matter]]*kgpert*Mass_balance_table[[#This Row],[Feedstock LHV MJ/kg dry matter]],"") ->  | AD23: =IFERROR(Mass_balance_table[[#This Row],[Consignment for hog fuel tfeedstock dry matter]]*kgpert*Mass_balance_table[[#This Row],[Feedstock LHV MJ/kg dry matter]],"") ->  | AE23: =IFERROR(Mass_balance_table[[#This Row],[Consignment delivered MJfeedstock dry matter]]-Mass_balance_table[[#This Row],[Consignment for hog fuel MJfeedstock dry matter]],"") ->  | AF23: =IFERROR(Mass_balance_table[[#This Row],[Consignment output tpellet dry matter]]*kgpert*Pellet_lhv_dry,"") -> 
D24: =IF(ISBLANK(Feedstock!B19),"",Feedstock!B19) -> 11 | E24: =IF(ISBLANK(Feedstock!D19),"",Feedstock!D19) ->  | U24: =IF(ISBLANK(Feedstock!G19),"",Feedstock!G19) ->  | V24: =IF(ISBLANK(Feedstock!H19),"",Feedstock!H19) ->  | W24: =IFERROR(Mass_balance_table[[#This Row],[Consignment delivered tfeedstock fresh matter]]*(1-Mass_balance_table[[#This Row],[Moisture % as received]]),"") ->  | X24: 0 | Y24: =IFERROR(Mass_balance_table[[#This Row],[Consignment delivered tfeedstock dry matter]]-Mass_balance_table[[#This Row],[Consignment for hog fuel tfeedstock dry matter]],"") ->  | Z24: =IFERROR(Mass_balance_table[[#This Row],[Consignment input tfeedstock dry matter]]/SUM(Mass_balance_table[Consignment input tfeedstock dry matter])*Pellet_tonnes_dry,"") ->  | AA24: =IFERROR(IF(ISBLANK(Feedstock!H19),"",IF((Pellet_lhv_dry*(1-Feedstock!H19)-Feedstock!H19*2.441)<0,0,(Pellet_lhv_dry*(1-Feedstock!H19)-Feedstock!H19*2.441))),"") ->  | AB24: =IFERROR(IF(ISBLANK(Emissions!AA24),"",(Emissions!AA24+Feedstock!H19*2.441)/(1-Feedstock!H19)),"") ->  | AC24: =IFERROR(Mass_balance_table[[#This Row],[Consignment delivered tfeedstock dry matter]]*kgpert*Mass_balance_table[[#This Row],[Feedstock LHV MJ/kg dry matter]],"") ->  | AD24: =IFERROR(Mass_balance_table[[#This Row],[Consignment for hog fuel tfeedstock dry matter]]*kgpert*Mass_balance_table[[#This Row],[Feedstock LHV MJ/kg dry matter]],"") ->  | AE24: =IFERROR(Mass_balance_table[[#This Row],[Consignment delivered MJfeedstock dry matter]]-Mass_balance_table[[#This Row],[Consignment for hog fuel MJfeedstock dry matter]],"") ->  | AF24: =IFERROR(Mass_balance_table[[#This Row],[Consignment output tpellet dry matter]]*kgpert*Pellet_lhv_dry,"") -> 
D25: =IF(ISBLANK(Feedstock!B20),"",Feedstock!B20) -> 12 | E25: =IF(ISBLANK(Feedstock!D20),"",Feedstock!D20) ->  | U25: =IF(ISBLANK(Feedstock!G20),"",Feedstock!G20) ->  | V25: =IF(ISBLANK(Feedstock!H20),"",Feedstock!H20) ->  | W25: =IFERROR(Mass_balance_table[[#This Row],[Consignment delivered tfeedstock fresh matter]]*(1-Mass_balance_table[[#This Row],[Moisture % as received]]),"") ->  | X25: 0 | Y25: =IFERROR(Mass_balance_table[[#This Row],[Consignment delivered tfeedstock dry matter]]-Mass_balance_table[[#This Row],[Consignment for hog fuel tfeedstock dry matter]],"") ->  | Z25: =IFERROR(Mass_balance_table[[#This Row],[Consignment input tfeedstock dry matter]]/SUM(Mass_balance_table[Consignment input tfeedstock dry matter])*Pellet_tonnes_dry,"") ->  | AA25: =IFERROR(IF(ISBLANK(Feedstock!H20),"",IF((Pellet_lhv_dry*(1-Feedstock!H20)-Feedstock!H20*2.441)<0,0,(Pellet_lhv_dry*(1-Feedstock!H20)-Feedstock!H20*2.441))),"") ->  | AB25: =IFERROR(IF(ISBLANK(Emissions!AA25),"",(Emissions!AA25+Feedstock!H20*2.441)/(1-Feedstock!H20)),"") ->  | AC25: =IFERROR(Mass_balance_table[[#This Row],[Consignment delivered tfeedstock dry matter]]*kgpert*Mass_balance_table[[#This Row],[Feedstock LHV MJ/kg dry matter]],"") ->  | AD25: =IFERROR(Mass_balance_table[[#This Row],[Consignment for hog fuel tfeedstock dry matter]]*kgpert*Mass_balance_table[[#This Row],[Feedstock LHV MJ/kg dry matter]],"") ->  | AE25: =IFERROR(Mass_balance_table[[#This Row],[Consignment delivered MJfeedstock dry matter]]-Mass_balance_table[[#This Row],[Consignment for hog fuel MJfeedstock dry matter]],"") ->  | AF25: =IFERROR(Mass_balance_table[[#This Row],[Consignment output tpellet dry matter]]*kgpert*Pellet_lhv_dry,"") -> 
D26: =IF(ISBLANK(Feedstock!B21),"",Feedstock!B21) -> 13 | E26: =IF(ISBLANK(Feedstock!D21),"",Feedstock!D21) ->  | U26: =IF(ISBLANK(Feedstock!G21),"",Feedstock!G21) ->  | V26: =IF(ISBLANK(Feedstock!H21),"",Feedstock!H21) ->  | W26: =IFERROR(Mass_balance_table[[#This Row],[Consignment delivered tfeedstock fresh matter]]*(1-Mass_balance_table[[#This Row],[Moisture % as received]]),"") ->  | X26: 0 | Y26: =IFERROR(Mass_balance_table[[#This Row],[Consignment delivered tfeedstock dry matter]]-Mass_balance_table[[#This Row],[Consignment for hog fuel tfeedstock dry matter]],"") ->  | Z26: =IFERROR(Mass_balance_table[[#This Row],[Consignment input tfeedstock dry matter]]/SUM(Mass_balance_table[Consignment input tfeedstock dry matter])*Pellet_tonnes_dry,"") ->  | AA26: =IFERROR(IF(ISBLANK(Feedstock!H21),"",IF((Pellet_lhv_dry*(1-Feedstock!H21)-Feedstock!H21*2.441)<0,0,(Pellet_lhv_dry*(1-Feedstock!H21)-Feedstock!H21*2.441))),"") ->  | AB26: =IFERROR(IF(ISBLANK(Emissions!AA26),"",(Emissions!AA26+Feedstock!H21*2.441)/(1-Feedstock!H21)),"") ->  | AC26: =IFERROR(Mass_balance_table[[#This Row],[Consignment delivered tfeedstock dry matter]]*kgpert*Mass_balance_table[[#This Row],[Feedstock LHV MJ/kg dry matter]],"") ->  | AD26: =IFERROR(Mass_balance_table[[#This Row],[Consignment for hog fuel tfeedstock dry matter]]*kgpert*Mass_balance_table[[#This Row],[Feedstock LHV MJ/kg dry matter]],"") ->  | AE26: =IFERROR(Mass_balance_table[[#This Row],[Consignment delivered MJfeedstock dry matter]]-Mass_balance_table[[#This Row],[Consignment for hog fuel MJfeedstock dry matter]],"") ->  | AF26: =IFERROR(Mass_balance_table[[#This Row],[Consignment output tpellet dry matter]]*kgpert*Pellet_lhv_dry,"") -> 
D27: =IF(ISBLANK(Feedstock!B22),"",Feedstock!B22) -> 14 | E27: =IF(ISBLANK(Feedstock!D22),"",Feedstock!D22) ->  | U27: =IF(ISBLANK(Feedstock!G22),"",Feedstock!G22) ->  | V27: =IF(ISBLANK(Feedstock!H22),"",Feedstock!H22) ->  | W27: =IFERROR(Mass_balance_table[[#This Row],[Consignment delivered tfeedstock fresh matter]]*(1-Mass_balance_table[[#This Row],[Moisture % as received]]),"") ->  | X27: 0 | Y27: =IFERROR(Mass_balance_table[[#This Row],[Consignment delivered tfeedstock dry matter]]-Mass_balance_table[[#This Row],[Consignment for hog fuel tfeedstock dry matter]],"") ->  | Z27: =IFERROR(Mass_balance_table[[#This Row],[Consignment input tfeedstock dry matter]]/SUM(Mass_balance_table[Consignment input tfeedstock dry matter])*Pellet_tonnes_dry,"") ->  | AA27: =IFERROR(IF(ISBLANK(Feedstock!H22),"",IF((Pellet_lhv_dry*(1-Feedstock!H22)-Feedstock!H22*2.441)<0,0,(Pellet_lhv_dry*(1-Feedstock!H22)-Feedstock!H22*2.441))),"") ->  | AB27: =IFERROR(IF(ISBLANK(Emissions!AA27),"",(Emissions!AA27+Feedstock!H22*2.441)/(1-Feedstock!H22)),"") ->  | AC27: =IFERROR(Mass_balance_table[[#This Row],[Consignment delivered tfeedstock dry matter]]*kgpert*Mass_balance_table[[#This Row],[Feedstock LHV MJ/kg dry matter]],"") ->  | AD27: =IFERROR(Mass_balance_table[[#This Row],[Consignment for hog fuel tfeedstock dry matter]]*kgpert*Mass_balance_table[[#This Row],[Feedstock LHV MJ/kg dry matter]],"") ->  | AE27: =IFERROR(Mass_balance_table[[#This Row],[Consignment delivered MJfeedstock dry matter]]-Mass_balance_table[[#This Row],[Consignment for hog fuel MJfeedstock dry matter]],"") ->  | AF27: =IFERROR(Mass_balance_table[[#This Row],[Consignment output tpellet dry matter]]*kgpert*Pellet_lhv_dry,"") -> 
D28: =IF(ISBLANK(Feedstock!B23),"",Feedstock!B23) -> 15 | E28: =IF(ISBLANK(Feedstock!D23),"",Feedstock!D23) ->  | U28: =IF(ISBLANK(Feedstock!G23),"",Feedstock!G23) ->  | V28: =IF(ISBLANK(Feedstock!H23),"",Feedstock!H23) ->  | W28: =IFERROR(Mass_balance_table[[#This Row],[Consignment delivered tfeedstock fresh matter]]*(1-Mass_balance_table[[#This Row],[Moisture % as received]]),"") ->  | X28: 0 | Y28: =IFERROR(Mass_balance_table[[#This Row],[Consignment delivered tfeedstock dry matter]]-Mass_balance_table[[#This Row],[Consignment for hog fuel tfeedstock dry matter]],"") ->  | Z28: =IFERROR(Mass_balance_table[[#This Row],[Consignment input tfeedstock dry matter]]/SUM(Mass_balance_table[Consignment input tfeedstock dry matter])*Pellet_tonnes_dry,"") ->  | AA28: =IFERROR(IF(ISBLANK(Feedstock!H23),"",IF((Pellet_lhv_dry*(1-Feedstock!H23)-Feedstock!H23*2.441)<0,0,(Pellet_lhv_dry*(1-Feedstock!H23)-Feedstock!H23*2.441))),"") ->  | AB28: =IFERROR(IF(ISBLANK(Emissions!AA28),"",(Emissions!AA28+Feedstock!H23*2.441)/(1-Feedstock!H23)),"") ->  | AC28: =IFERROR(Mass_balance_table[[#This Row],[Consignment delivered tfeedstock dry matter]]*kgpert*Mass_balance_table[[#This Row],[Feedstock LHV MJ/kg dry matter]],"") ->  | AD28: =IFERROR(Mass_balance_table[[#This Row],[Consignment for hog fuel tfeedstock dry matter]]*kgpert*Mass_balance_table[[#This Row],[Feedstock LHV MJ/kg dry matter]],"") ->  | AE28: =IFERROR(Mass_balance_table[[#This Row],[Consignment delivered MJfeedstock dry matter]]-Mass_balance_table[[#This Row],[Consignment for hog fuel MJfeedstock dry matter]],"") ->  | AF28: =IFERROR(Mass_balance_table[[#This Row],[Consignment output tpellet dry matter]]*kgpert*Pellet_lhv_dry,"") -> 
D29: =IF(ISBLANK(Feedstock!B24),"",Feedstock!B24) -> 16 | E29: =IF(ISBLANK(Feedstock!D24),"",Feedstock!D24) ->  | U29: =IF(ISBLANK(Feedstock!G24),"",Feedstock!G24) ->  | V29: =IF(ISBLANK(Feedstock!H24),"",Feedstock!H24) ->  | W29: =IFERROR(Mass_balance_table[[#This Row],[Consignment delivered tfeedstock fresh matter]]*(1-Mass_balance_table[[#This Row],[Moisture % as received]]),"") ->  | X29: 0 | Y29: =IFERROR(Mass_balance_table[[#This Row],[Consignment delivered tfeedstock dry matter]]-Mass_balance_table[[#This Row],[Consignment for hog fuel tfeedstock dry matter]],"") ->  | Z29: =IFERROR(Mass_balance_table[[#This Row],[Consignment input tfeedstock dry matter]]/SUM(Mass_balance_table[Consignment input tfeedstock dry matter])*Pellet_tonnes_dry,"") ->  | AA29: =IFERROR(IF(ISBLANK(Feedstock!H24),"",IF((Pellet_lhv_dry*(1-Feedstock!H24)-Feedstock!H24*2.441)<0,0,(Pellet_lhv_dry*(1-Feedstock!H24)-Feedstock!H24*2.441))),"") ->  | AB29: =IFERROR(IF(ISBLANK(Emissions!AA29),"",(Emissions!AA29+Feedstock!H24*2.441)/(1-Feedstock!H24)),"") ->  | AC29: =IFERROR(Mass_balance_table[[#This Row],[Consignment delivered tfeedstock dry matter]]*kgpert*Mass_balance_table[[#This Row],[Feedstock LHV MJ/kg dry matter]],"") ->  | AD29: =IFERROR(Mass_balance_table[[#This Row],[Consignment for hog fuel tfeedstock dry matter]]*kgpert*Mass_balance_table[[#This Row],[Feedstock LHV MJ/kg dry matter]],"") ->  | AE29: =IFERROR(Mass_balance_table[[#This Row],[Consignment delivered MJfeedstock dry matter]]-Mass_balance_table[[#This Row],[Consignment for hog fuel MJfeedstock dry matter]],"") ->  | AF29: =IFERROR(Mass_balance_table[[#This Row],[Consignment output tpellet dry matter]]*kgpert*Pellet_lhv_dry,"") -> 
D30: =IF(ISBLANK(Feedstock!B25),"",Feedstock!B25) -> 17 | E30: =IF(ISBLANK(Feedstock!D25),"",Feedstock!D25) ->  | U30: =IF(ISBLANK(Feedstock!G25),"",Feedstock!G25) ->  | V30: =IF(ISBLANK(Feedstock!H25),"",Feedstock!H25) ->  | W30: =IFERROR(Mass_balance_table[[#This Row],[Consignment delivered tfeedstock fresh matter]]*(1-Mass_balance_table[[#This Row],[Moisture % as received]]),"") ->  | X30: 0 | Y30: =IFERROR(Mass_balance_table[[#This Row],[Consignment delivered tfeedstock dry matter]]-Mass_balance_table[[#This Row],[Consignment for hog fuel tfeedstock dry matter]],"") ->  | Z30: =IFERROR(Mass_balance_table[[#This Row],[Consignment input tfeedstock dry matter]]/SUM(Mass_balance_table[Consignment input tfeedstock dry matter])*Pellet_tonnes_dry,"") ->  | AA30: =IFERROR(IF(ISBLANK(Feedstock!H25),"",IF((Pellet_lhv_dry*(1-Feedstock!H25)-Feedstock!H25*2.441)<0,0,(Pellet_lhv_dry*(1-Feedstock!H25)-Feedstock!H25*2.441))),"") ->  | AB30: =IFERROR(IF(ISBLANK(Emissions!AA30),"",(Emissions!AA30+Feedstock!H25*2.441)/(1-Feedstock!H25)),"") ->  | AC30: =IFERROR(Mass_balance_table[[#This Row],[Consignment delivered tfeedstock dry matter]]*kgpert*Mass_balance_table[[#This Row],[Feedstock LHV MJ/kg dry matter]],"") ->  | AD30: =IFERROR(Mass_balance_table[[#This Row],[Consignment for hog fuel tfeedstock dry matter]]*kgpert*Mass_balance_table[[#This Row],[Feedstock LHV MJ/kg dry matter]],"") ->  | AE30: =IFERROR(Mass_balance_table[[#This Row],[Consignment delivered MJfeedstock dry matter]]-Mass_balance_table[[#This Row],[Consignment for hog fuel MJfeedstock dry matter]],"") ->  | AF30: =IFERROR(Mass_balance_table[[#This Row],[Consignment output tpellet dry matter]]*kgpert*Pellet_lhv_dry,"") -> 
D31: =IF(ISBLANK(Feedstock!B26),"",Feedstock!B26) -> 18 | E31: =IF(ISBLANK(Feedstock!D26),"",Feedstock!D26) ->  | U31: =IF(ISBLANK(Feedstock!G26),"",Feedstock!G26) ->  | V31: =IF(ISBLANK(Feedstock!H26),"",Feedstock!H26) ->  | W31: =IFERROR(Mass_balance_table[[#This Row],[Consignment delivered tfeedstock fresh matter]]*(1-Mass_balance_table[[#This Row],[Moisture % as received]]),"") ->  | X31: 0 | Y31: =IFERROR(Mass_balance_table[[#This Row],[Consignment delivered tfeedstock dry matter]]-Mass_balance_table[[#This Row],[Consignment for hog fuel tfeedstock dry matter]],"") ->  | Z31: =IFERROR(Mass_balance_table[[#This Row],[Consignment input tfeedstock dry matter]]/SUM(Mass_balance_table[Consignment input tfeedstock dry matter])*Pellet_tonnes_dry,"") ->  | AA31: =IFERROR(IF(ISBLANK(Feedstock!H26),"",IF((Pellet_lhv_dry*(1-Feedstock!H26)-Feedstock!H26*2.441)<0,0,(Pellet_lhv_dry*(1-Feedstock!H26)-Feedstock!H26*2.441))),"") ->  | AB31: =IFERROR(IF(ISBLANK(Emissions!AA31),"",(Emissions!AA31+Feedstock!H26*2.441)/(1-Feedstock!H26)),"") ->  | AC31: =IFERROR(Mass_balance_table[[#This Row],[Consignment delivered tfeedstock dry matter]]*kgpert*Mass_balance_table[[#This Row],[Feedstock LHV MJ/kg dry matter]],"") ->  | AD31: =IFERROR(Mass_balance_table[[#This Row],[Consignment for hog fuel tfeedstock dry matter]]*kgpert*Mass_balance_table[[#This Row],[Feedstock LHV MJ/kg dry matter]],"") ->  | AE31: =IFERROR(Mass_balance_table[[#This Row],[Consignment delivered MJfeedstock dry matter]]-Mass_balance_table[[#This Row],[Consignment for hog fuel MJfeedstock dry matter]],"") ->  | AF31: =IFERROR(Mass_balance_table[[#This Row],[Consignment output tpellet dry matter]]*kgpert*Pellet_lhv_dry,"") -> 
D32: =IF(ISBLANK(Feedstock!B27),"",Feedstock!B27) -> 19 | E32: =IF(ISBLANK(Feedstock!D27),"",Feedstock!D27) ->  | U32: =IF(ISBLANK(Feedstock!G27),"",Feedstock!G27) ->  | V32: =IF(ISBLANK(Feedstock!H27),"",Feedstock!H27) ->  | W32: =IFERROR(Mass_balance_table[[#This Row],[Consignment delivered tfeedstock fresh matter]]*(1-Mass_balance_table[[#This Row],[Moisture % as received]]),"") ->  | X32: 0 | Y32: =IFERROR(Mass_balance_table[[#This Row],[Consignment delivered tfeedstock dry matter]]-Mass_balance_table[[#This Row],[Consignment for hog fuel tfeedstock dry matter]],"") ->  | Z32: =IFERROR(Mass_balance_table[[#This Row],[Consignment input tfeedstock dry matter]]/SUM(Mass_balance_table[Consignment input tfeedstock dry matter])*Pellet_tonnes_dry,"") ->  | AA32: =IFERROR(IF(ISBLANK(Feedstock!H27),"",IF((Pellet_lhv_dry*(1-Feedstock!H27)-Feedstock!H27*2.441)<0,0,(Pellet_lhv_dry*(1-Feedstock!H27)-Feedstock!H27*2.441))),"") ->  | AB32: =IFERROR(IF(ISBLANK(Emissions!AA32),"",(Emissions!AA32+Feedstock!H27*2.441)/(1-Feedstock!H27)),"") ->  | AC32: =IFERROR(Mass_balance_table[[#This Row],[Consignment delivered tfeedstock dry matter]]*kgpert*Mass_balance_table[[#This Row],[Feedstock LHV MJ/kg dry matter]],"") ->  | AD32: =IFERROR(Mass_balance_table[[#This Row],[Consignment for hog fuel tfeedstock dry matter]]*kgpert*Mass_balance_table[[#This Row],[Feedstock LHV MJ/kg dry matter]],"") ->  | AE32: =IFERROR(Mass_balance_table[[#This Row],[Consignment delivered MJfeedstock dry matter]]-Mass_balance_table[[#This Row],[Consignment for hog fuel MJfeedstock dry matter]],"") ->  | AF32: =IFERROR(Mass_balance_table[[#This Row],[Consignment output tpellet dry matter]]*kgpert*Pellet_lhv_dry,"") -> 
D33: =IF(ISBLANK(Feedstock!B28),"",Feedstock!B28) -> 20 | E33: =IF(ISBLANK(Feedstock!D28),"",Feedstock!D28) ->  | U33: =IF(ISBLANK(Feedstock!G28),"",Feedstock!G28) ->  | V33: =IF(ISBLANK(Feedstock!H28),"",Feedstock!H28) ->  | W33: =IFERROR(Mass_balance_table[[#This Row],[Consignment delivered tfeedstock fresh matter]]*(1-Mass_balance_table[[#This Row],[Moisture % as received]]),"") ->  | X33: 0 | Y33: =IFERROR(Mass_balance_table[[#This Row],[Consignment delivered tfeedstock dry matter]]-Mass_balance_table[[#This Row],[Consignment for hog fuel tfeedstock dry matter]],"") ->  | Z33: =IFERROR(Mass_balance_table[[#This Row],[Consignment input tfeedstock dry matter]]/SUM(Mass_balance_table[Consignment input tfeedstock dry matter])*Pellet_tonnes_dry,"") ->  | AA33: =IFERROR(IF(ISBLANK(Feedstock!H28),"",IF((Pellet_lhv_dry*(1-Feedstock!H28)-Feedstock!H28*2.441)<0,0,(Pellet_lhv_dry*(1-Feedstock!H28)-Feedstock!H28*2.441))),"") ->  | AB33: =IFERROR(IF(ISBLANK(Emissions!AA33),"",(Emissions!AA33+Feedstock!H28*2.441)/(1-Feedstock!H28)),"") ->  | AC33: =IFERROR(Mass_balance_table[[#This Row],[Consignment delivered tfeedstock dry matter]]*kgpert*Mass_balance_table[[#This Row],[Feedstock LHV MJ/kg dry matter]],"") ->  | AD33: =IFERROR(Mass_balance_table[[#This Row],[Consignment for hog fuel tfeedstock dry matter]]*kgpert*Mass_balance_table[[#This Row],[Feedstock LHV MJ/kg dry matter]],"") ->  | AE33: =IFERROR(Mass_balance_table[[#This Row],[Consignment delivered MJfeedstock dry matter]]-Mass_balance_table[[#This Row],[Consignment for hog fuel MJfeedstock dry matter]],"") ->  | AF33: =IFERROR(Mass_balance_table[[#This Row],[Consignment output tpellet dry matter]]*kgpert*Pellet_lhv_dry,"") -> 
B35: Upstream | D35: Consignment | G35: Upstream emissions | U35: Feedstock data | Z35: Diesel use | AB35: Journey 1 | AJ35: Journey 2 | AR35: Emissions
D36: Consignment # | E36: Feedstock origin | G36: Diesel emissions kgCO2eq/toutput dry matter | H36: Additional emissions kgCO2eq/toutput dry matter | I36: Journey 1 average emissions kgCO2eq/toutput dry matter | J36: Journey 2 average emissions kgCO2eq/toutput dry matter | K36: Journey 1 max emissions kgCO2eq/toutput dry matter | L36: Journey 2 max emissions kgCO2eq/toutput dry matter | M36: Processing at origin emissions kgCO2eq/tfeedstock dry matter | N36: Transport emissions kgCO2eq/tfeedstock dry matter | O36: Total upstream emissions kgCO2eq/tfeedstock dry matter | P36: Disaggregated default value gCO2eq/MJpellet dry matter | Q36: Processing at origin emissions gCO2eq/MJpellet dry matter | R36: Transport emissions gCO2eq/MJpellet dry matter | U36: Consignment delivered tonnesfeedstock fresh matter | V36: Moisture % as received | W36: Calorific value MJ/kg fresh matter | X36: Consignment delivered tonnesfeedstock dry matter | Y36: Consignment delivered MJfeedstock dry matter | Z36: Diesel use Cultivation, harvesting, extraction and chipping MJ/toutput | AA36: Diesel use Cultivation, harvesting, extraction and chipping MJ | AB36: Transport mode | AC36: Transport fuel | AD36: Distance km weighted average | AE36: Distance t.km weighted average | AF36: Fuel consumption MJ weighted average | AG36: Distance km maximum | AH36: Distance t.km maximum | AI36: Fuel consumption MJ maximum | AJ36: Transport mode | AK36: Transport fuel | AL36: Distance km weighted average | AM36: Distance t.km weighted average | AN36: Fuel consumption MJ weighted average | AO36: Distance km maximum | AP36: Distance t.km maximum | AQ36: Fuel consumption MJ maximum | AR36: Diesel emissions kgCO2eq | AS36: Journey 1 average emissions kgCO2eq | AT36: Journey 2 average emissions kgCO2eq | AU36: Journey 1 max emissions kgCO2eq | AV36: Journey 2 max emissions kgCO2eq
D37: =IF(ISBLANK(Feedstock!B9),"",Feedstock!B9) -> 1 | E37: =IF(ISBLANK(Feedstock!D9),"",Feedstock!D9) ->  | G37: =IFERROR(Upstream_total_emissions_table[[#This Row],[Diesel emissions kgCO2eq]]/Feedstock_emissions_table[[#This Row],[Consignment delivered tonnesfeedstock dry matter]],0) -> 0 | H37: =IFERROR(Upstream!F9*U14/W14,"") ->  | I37: =IFERROR(Upstream_total_emissions_table[[#This Row],[Journey 1 average emissions kgCO2eq]]/Feedstock_emissions_table[[#This Row],[Consignment delivered tonnesfeedstock dry matter]],"") ->  | J37: =IFERROR(Upstream_total_emissions_table[[#This Row],[Journey 2 average emissions kgCO2eq]]/Feedstock_emissions_table[[#This Row],[Consignment delivered tonnesfeedstock dry matter]],"") ->  | K37: =IFERROR(Upstream_total_emissions_table[[#This Row],[Journey 1 max emissions kgCO2eq]]/Feedstock_emissions_table[[#This Row],[Consignment delivered tonnesfeedstock dry matter]],"") ->  | L37: =IFERROR(Upstream_total_emissions_table[[#This Row],[Journey 2 max emissions kgCO2eq]]/Feedstock_emissions_table[[#This Row],[Consignment delivered tonnesfeedstock dry matter]],"") ->  | M37: =IFERROR(Upstream_emissions_table[[#This Row],[Diesel emissions kgCO2eq/toutput dry matter]]+Upstream_emissions_table[[#This Row],[Additional emissions kgCO2eq/toutput dry matter]],0) -> 0 | N37: =IFERROR(IF(Distance_selector="weighted average distance",SUM(Upstream_emissions_table[[#This Row],[Journey 1 average emissions kgCO2eq/toutput dry matter]:[Journey 2 average emissions kgCO2eq/toutput dry matter]]),SUM(Upstream_emissions_table[[#This Row],[Journey 1 max emissions kgCO2eq/toutput dry matter]:[Journey 2 max emissions kgCO2eq/toutput dry matter]])),"") -> 0 | O37: =IFERROR(Upstream_emissions_table[[#This Row],[Processing at origin emissions kgCO2eq/tfeedstock dry matter]]*FF_feedstock_transport+Upstream_emissions_table[[#This Row],[Transport emissions kgCO2eq/tfeedstock dry matter]],"") -> 0 | P37: =Upstream!G9 -> 0 | Q37: =IFERROR(IF(Disaggregated_default_selector="actual values",Upstream_emissions_table[[#This Row],[Processing at origin emissions kgCO2eq/tfeedstock dry matter]]/INDEX(Consignment_LHV,MATCH(Consignments_upstream_emissions_table[[#This Row],[Consignment '#]],Consignments_mass_balance_table[Consignment '#],0))*FF_feedstock_transport*FF_processing*FF_pellet_transport,Upstream_emissions_table[[#This Row],[Disaggregated default value gCO2eq/MJpellet dry matter]]),"") ->  | R37: =IFERROR(Upstream_emissions_table[[#This Row],[Transport emissions kgCO2eq/tfeedstock dry matter]]/INDEX(Consignment_LHV,MATCH(Consignments_upstream_emissions_table[[#This Row],[Consignment '#]],Consignments_mass_balance_table[Consignment '#],0))*FF_processing*FF_pellet_transport,"") ->  | U37: =U14 ->  | W37: =IF(ISBLANK(Emissions!AA14),"",Emissions!AA14) ->  | X37: =W14 ->  | Y37: =AC14 ->  | Z37: =IF(ISBLANK(Upstream!E9),"",Upstream!E9/lperm3*Diesel_density*Diesel_LHV) ->  | AA37: =IFERROR(Feedstock_emissions_table[[#This Row],[Consignment delivered tonnesfeedstock fresh matter]]*Upstream_diesel_emissions_table[[#This Row],[Diesel use Cultivation, harvesting, extraction and chipping MJ/toutput]],"") ->  | AB37: =IF(ISBLANK(Upstream!I9),"",Upstream!I9) ->  | AC37: =IF(ISBLANK(Upstream!J9),"",Upstream!J9) ->  | AD37: =IF(ISBLANK(Upstream!K9),"",Upstream!K9) ->  | AE37: =IFERROR(Feedstock_emissions_table[[#This Row],[Consignment delivered tonnesfeedstock fresh matter]]*Journey_1_emissions_table[[#This Row],[Distance km weighted average]],"") ->  | AF37: =IFERROR(Journey_1_emissions_table[[#This Row],[Distance t.km weighted average]]*INDEX(Transport_efficiency,MATCH(Journey_1_emissions_table[[#This Row],[Transport mode]],Transport_mode,0)),"") ->  | AG37: =IF(ISBLANK(Upstream!L9),"",Upstream!L9) ->  | AH37: =IFERROR(Feedstock_emissions_table[[#This Row],[Consignment delivered tonnesfeedstock fresh matter]]*Journey_1_emissions_table[[#This Row],[Distance km maximum]],"") ->  | AI37: =IFERROR(Journey_1_emissions_table[[#This Row],[Distance t.km maximum]]*INDEX(Transport_efficiency,MATCH(Journey_1_emissions_table[[#This Row],[Transport mode]],Transport_mode,0)),"") ->  | AJ37: =IF(ISBLANK(Upstream!I10),"",Upstream!I10) ->  | AK37: =IF(ISBLANK(Upstream!J10),"",Upstream!J10) ->  | AL37: =IF(ISBLANK(Upstream!K10),"",Upstream!K10) ->  | AM37: =IFERROR(Feedstock_emissions_table[[#This Row],[Consignment delivered tonnesfeedstock fresh matter]]*Journey_2_emissions_table[[#This Row],[Distance km weighted average]],"") ->  | AN37: =IFERROR(Journey_2_emissions_table[[#This Row],[Distance t.km weighted average]]*INDEX(Transport_efficiency,MATCH(Journey_2_emissions_table[[#This Row],[Transport mode]],Transport_mode,0)),"") ->  | AO37: =IF(ISBLANK(Upstream!L10),"",Upstream!L10) ->  | AP37: =IFERROR(Feedstock_emissions_table[[#This Row],[Consignment delivered tonnesfeedstock fresh matter]]*Journey_2_emissions_table[[#This Row],[Distance km maximum]],"") ->  | AQ37: =IFERROR(Journey_2_emissions_table[[#This Row],[Distance t.km maximum]]*INDEX(Transport_efficiency,MATCH(Journey_2_emissions_table[[#This Row],[Transport mode]],Transport_mode,0)),"") ->  | AR37: =IFERROR((Upstream_diesel_emissions_table[[#This Row],[Diesel use Cultivation, harvesting, extraction and chipping MJ]]*Diesel_EF+Upstream_diesel_emissions_table[[#This Row],[Diesel use Cultivation, harvesting, extraction and chipping MJ]]*Diesel_combustion_CH4_N2O_emissions)/gperkg,"") ->  | AS37: =IFERROR((Journey_1_emissions_table[[#This Row],[Fuel consumption MJ weighted average]]*INDEX(Transport_fuels_gCO2eq,MATCH(Journey_1_emissions_table[[#This Row],[Transport fuel]],Transport_fuels,0))+Journey_1_emissions_table[[#This Row],[Distance km weighted average]]*INDEX(Transport_exhaust_emissions,MATCH(Journey_1_emissions_table[[#This Row],[Transport mode]],Transport_mode,)))/gperkg,"") ->  | AT37: =IFERROR((Journey_2_emissions_table[[#This Row],[Fuel consumption MJ weighted average]]*INDEX(Transport_fuels_gCO2eq,MATCH(Journey_2_emissions_table[[#This Row],[Transport fuel]],Transport_fuels,0))+Journey_2_emissions_table[[#This Row],[Distance km weighted average]]*INDEX(Transport_exhaust_emissions,MATCH(Journey_2_emissions_table[[#This Row],[Transport mode]],Transport_mode,)))/gperkg,"") ->  | AU37: =IFERROR((Journey_1_emissions_table[[#This Row],[Fuel consumption MJ maximum]]*INDEX(Transport_fuels_gCO2eq,MATCH(Journey_1_emissions_table[[#This Row],[Transport fuel]],Transport_fuels,0))+Journey_1_emissions_table[[#This Row],[Distance km maximum]]*INDEX(Transport_exhaust_emissions,MATCH(Journey_1_emissions_table[[#This Row],[Transport mode]],Transport_mode,)))/gperkg,"") ->  | AV37: =IFERROR((Journey_2_emissions_table[[#This Row],[Fuel consumption MJ maximum]]*INDEX(Transport_fuels_gCO2eq,MATCH(Journey_2_emissions_table[[#This Row],[Transport fuel]],Transport_fuels,0))+Journey_2_emissions_table[[#This Row],[Distance km maximum]]*INDEX(Transport_exhaust_emissions,MATCH(Journey_2_emissions_table[[#This Row],[Transport mode]],Transport_mode,)))/gperkg,"") -> 
D38: =IF(ISBLANK(Feedstock!B10),"",Feedstock!B10) -> 2 | E38: =IF(ISBLANK(Feedstock!D10),"",Feedstock!D10) ->  | G38: =IFERROR(Upstream_total_emissions_table[[#This Row],[Diesel emissions kgCO2eq]]/Feedstock_emissions_table[[#This Row],[Consignment delivered tonnesfeedstock dry matter]],0) -> 0 | H38: =IFERROR(Upstream!F11*U15/W15,"") ->  | I38: =IFERROR(Upstream_total_emissions_table[[#This Row],[Journey 1 average emissions kgCO2eq]]/Feedstock_emissions_table[[#This Row],[Consignment delivered tonnesfeedstock dry matter]],"") ->  | J38: =IFERROR(Upstream_total_emissions_table[[#This Row],[Journey 2 average emissions kgCO2eq]]/Feedstock_emissions_table[[#This Row],[Consignment delivered tonnesfeedstock dry matter]],"") ->  | K38: =IFERROR(Upstream_total_emissions_table[[#This Row],[Journey 1 max emissions kgCO2eq]]/Feedstock_emissions_table[[#This Row],[Consignment delivered tonnesfeedstock dry matter]],"") ->  | L38: =IFERROR(Upstream_total_emissions_table[[#This Row],[Journey 2 max emissions kgCO2eq]]/Feedstock_emissions_table[[#This Row],[Consignment delivered tonnesfeedstock dry matter]],"") ->  | M38: =IFERROR(Upstream_emissions_table[[#This Row],[Diesel emissions kgCO2eq/toutput dry matter]]+Upstream_emissions_table[[#This Row],[Additional emissions kgCO2eq/toutput dry matter]],0) -> 0 | N38: =IFERROR(IF(Distance_selector="weighted average distance",SUM(Upstream_emissions_table[[#This Row],[Journey 1 average emissions kgCO2eq/toutput dry matter]:[Journey 2 average emissions kgCO2eq/toutput dry matter]]),SUM(Upstream_emissions_table[[#This Row],[Journey 1 max emissions kgCO2eq/toutput dry matter]:[Journey 2 max emissions kgCO2eq/toutput dry matter]])),"") -> 0 | O38: =IFERROR(Upstream_emissions_table[[#This Row],[Processing at origin emissions kgCO2eq/tfeedstock dry matter]]*FF_feedstock_transport+Upstream_emissions_table[[#This Row],[Transport emissions kgCO2eq/tfeedstock dry matter]],"") -> 0 | P38: =Upstream!G11 -> 0 | Q38: =IFERROR(IF(Disaggregated_default_selector="actual values",Upstream_emissions_table[[#This Row],[Processing at origin emissions kgCO2eq/tfeedstock dry matter]]/INDEX(Consignment_LHV,MATCH(Consignments_upstream_emissions_table[[#This Row],[Consignment '#]],Consignments_mass_balance_table[Consignment '#],0))*FF_feedstock_transport*FF_processing*FF_pellet_transport,Upstream_emissions_table[[#This Row],[Disaggregated default value gCO2eq/MJpellet dry matter]]),"") ->  | R38: =IFERROR(Upstream_emissions_table[[#This Row],[Transport emissions kgCO2eq/tfeedstock dry matter]]/INDEX(Consignment_LHV,MATCH(Consignments_upstream_emissions_table[[#This Row],[Consignment '#]],Consignments_mass_balance_table[Consignment '#],0))*FF_processing*FF_pellet_transport,"") ->  | W38: =IF(ISBLANK(Emissions!AA15),"",Emissions!AA15) ->  | Z38: =IF(ISBLANK(Upstream!E11),"",Upstream!E11/lperm3*Diesel_density*Diesel_LHV) ->  | AA38: =IFERROR(Feedstock_emissions_table[[#This Row],[Consignment delivered tonnesfeedstock fresh matter]]*Upstream_diesel_emissions_table[[#This Row],[Diesel use Cultivation, harvesting, extraction and chipping MJ/toutput]],"") ->  | AB38: =IF(ISBLANK(Upstream!I11),"",Upstream!I11) ->  | AC38: =IF(ISBLANK(Upstream!J11),"",Upstream!J11) ->  | AD38: =IF(ISBLANK(Upstream!K11),"",Upstream!K11) ->  | AE38: =IFERROR(Feedstock_emissions_table[[#This Row],[Consignment delivered tonnesfeedstock fresh matter]]*Journey_1_emissions_table[[#This Row],[Distance km weighted average]],"") ->  | AF38: =IFERROR(Journey_1_emissions_table[[#This Row],[Distance t.km weighted average]]*INDEX(Transport_efficiency,MATCH(Journey_1_emissions_table[[#This Row],[Transport mode]],Transport_mode,0)),"") ->  | AG38: =IF(ISBLANK(Upstream!L11),"",Upstream!L11) ->  | AH38: =IFERROR(Feedstock_emissions_table[[#This Row],[Consignment delivered tonnesfeedstock fresh matter]]*Journey_1_emissions_table[[#This Row],[Distance km maximum]],"") ->  | AI38: =IFERROR(Journey_1_emissions_table[[#This Row],[Distance t.km maximum]]*INDEX(Transport_efficiency,MATCH(Journey_1_emissions_table[[#This Row],[Transport mode]],Transport_mode,0)),"") ->  | AJ38: =IF(ISBLANK(Upstream!I12),"",Upstream!I12) ->  | AK38: =IF(ISBLANK(Upstream!J12),"",Upstream!J12) ->  | AL38: =IF(ISBLANK(Upstream!K12),"",Upstream!K12) ->  | AM38: =IFERROR(Feedstock_emissions_table[[#This Row],[Consignment delivered tonnesfeedstock fresh matter]]*Journey_2_emissions_table[[#This Row],[Distance km weighted average]],"") ->  | AN38: =IFERROR(Journey_2_emissions_table[[#This Row],[Distance t.km weighted average]]*INDEX(Transport_efficiency,MATCH(Journey_2_emissions_table[[#This Row],[Transport mode]],Transport_mode,0)),"") ->  | AO38: =IF(ISBLANK(Upstream!L12),"",Upstream!L12) ->  | AP38: =IFERROR(Feedstock_emissions_table[[#This Row],[Consignment delivered tonnesfeedstock fresh matter]]*Journey_2_emissions_table[[#This Row],[Distance km maximum]],"") ->  | AQ38: =IFERROR(Journey_2_emissions_table[[#This Row],[Distance t.km maximum]]*INDEX(Transport_efficiency,MATCH(Journey_2_emissions_table[[#This Row],[Transport mode]],Transport_mode,0)),"") ->  | AR38: =IFERROR((Upstream_diesel_emissions_table[[#This Row],[Diesel use Cultivation, harvesting, extraction and chipping MJ]]*Diesel_EF+Upstream_diesel_emissions_table[[#This Row],[Diesel use Cultivation, harvesting, extraction and chipping MJ]]*Diesel_combustion_CH4_N2O_emissions)/gperkg,"") ->  | AS38: =IFERROR((Journey_1_emissions_table[[#This Row],[Fuel consumption MJ weighted average]]*INDEX(Transport_fuels_gCO2eq,MATCH(Journey_1_emissions_table[[#This Row],[Transport fuel]],Transport_fuels,0))+Journey_1_emissions_table[[#This Row],[Distance km weighted average]]*INDEX(Transport_exhaust_emissions,MATCH(Journey_1_emissions_table[[#This Row],[Transport mode]],Transport_mode,)))/gperkg,"") ->  | AT38: =IFERROR((Journey_2_emissions_table[[#This Row],[Fuel consumption MJ weighted average]]*INDEX(Transport_fuels_gCO2eq,MATCH(Journey_2_emissions_table[[#This Row],[Transport fuel]],Transport_fuels,0))+Journey_2_emissions_table[[#This Row],[Distance km weighted average]]*INDEX(Transport_exhaust_emissions,MATCH(Journey_2_emissions_table[[#This Row],[Transport mode]],Transport_mode,)))/gperkg,"") ->  | AU38: =IFERROR((Journey_1_emissions_table[[#This Row],[Fuel consumption MJ maximum]]*INDEX(Transport_fuels_gCO2eq,MATCH(Journey_1_emissions_table[[#This Row],[Transport fuel]],Transport_fuels,0))+Journey_1_emissions_table[[#This Row],[Distance km maximum]]*INDEX(Transport_exhaust_emissions,MATCH(Journey_1_emissions_table[[#This Row],[Transport mode]],Transport_mode,)))/gperkg,"") ->  | AV38: =IFERROR((Journey_2_emissions_table[[#This Row],[Fuel consumption MJ maximum]]*INDEX(Transport_fuels_gCO2eq,MATCH(Journey_2_emissions_table[[#This Row],[Transport fuel]],Transport_fuels,0))+Journey_2_emissions_table[[#This Row],[Distance km maximum]]*INDEX(Transport_exhaust_emissions,MATCH(Journey_2_emissions_table[[#This Row],[Transport mode]],Transport_mode,)))/gperkg,"") -> 
D39: =IF(ISBLANK(Feedstock!B11),"",Feedstock!B11) -> 3 | E39: =IF(ISBLANK(Feedstock!D11),"",Feedstock!D11) ->  | G39: =IFERROR(Upstream_total_emissions_table[[#This Row],[Diesel emissions kgCO2eq]]/Feedstock_emissions_table[[#This Row],[Consignment delivered tonnesfeedstock dry matter]],0) -> 0 | H39: =IFERROR(Upstream!F13*U16/W16,"") ->  | I39: =IFERROR(Upstream_total_emissions_table[[#This Row],[Journey 1 average emissions kgCO2eq]]/Feedstock_emissions_table[[#This Row],[Consignment delivered tonnesfeedstock dry matter]],"") ->  | J39: =IFERROR(Upstream_total_emissions_table[[#This Row],[Journey 2 average emissions kgCO2eq]]/Feedstock_emissions_table[[#This Row],[Consignment delivered tonnesfeedstock dry matter]],"") ->  | K39: =IFERROR(Upstream_total_emissions_table[[#This Row],[Journey 1 max emissions kgCO2eq]]/Feedstock_emissions_table[[#This Row],[Consignment delivered tonnesfeedstock dry matter]],"") ->  | L39: =IFERROR(Upstream_total_emissions_table[[#This Row],[Journey 2 max emissions kgCO2eq]]/Feedstock_emissions_table[[#This Row],[Consignment delivered tonnesfeedstock dry matter]],"") ->  | M39: =IFERROR(Upstream_emissions_table[[#This Row],[Diesel emissions kgCO2eq/toutput dry matter]]+Upstream_emissions_table[[#This Row],[Additional emissions kgCO2eq/toutput dry matter]],0) -> 0 | N39: =IFERROR(IF(Distance_selector="weighted average distance",SUM(Upstream_emissions_table[[#This Row],[Journey 1 average emissions kgCO2eq/toutput dry matter]:[Journey 2 average emissions kgCO2eq/toutput dry matter]]),SUM(Upstream_emissions_table[[#This Row],[Journey 1 max emissions kgCO2eq/toutput dry matter]:[Journey 2 max emissions kgCO2eq/toutput dry matter]])),"") -> 0 | O39: =IFERROR(Upstream_emissions_table[[#This Row],[Processing at origin emissions kgCO2eq/tfeedstock dry matter]]*FF_feedstock_transport+Upstream_emissions_table[[#This Row],[Transport emissions kgCO2eq/tfeedstock dry matter]],"") -> 0 | P39: =Upstream!G13 -> 0 | Q39: =IFERROR(IF(Disaggregated_default_selector="actual values",Upstream_emissions_table[[#This Row],[Processing at origin emissions kgCO2eq/tfeedstock dry matter]]/INDEX(Consignment_LHV,MATCH(Consignments_upstream_emissions_table[[#This Row],[Consignment '#]],Consignments_mass_balance_table[Consignment '#],0))*FF_feedstock_transport*FF_processing*FF_pellet_transport,Upstream_emissions_table[[#This Row],[Disaggregated default value gCO2eq/MJpellet dry matter]]),"") ->  | R39: =IFERROR(Upstream_emissions_table[[#This Row],[Transport emissions kgCO2eq/tfeedstock dry matter]]/INDEX(Consignment_LHV,MATCH(Consignments_upstream_emissions_table[[#This Row],[Consignment '#]],Consignments_mass_balance_table[Consignment '#],0))*FF_processing*FF_pellet_transport,"") ->  | W39: =IF(ISBLANK(Emissions!AA16),"",Emissions!AA16) ->  | Z39: =IF(ISBLANK(Upstream!E13),"",Upstream!E13/lperm3*Diesel_density*Diesel_LHV) ->  | AA39: =IFERROR(Feedstock_emissions_table[[#This Row],[Consignment delivered tonnesfeedstock fresh matter]]*Upstream_diesel_emissions_table[[#This Row],[Diesel use Cultivation, harvesting, extraction and chipping MJ/toutput]],"") ->  | AB39: =IF(ISBLANK(Upstream!I13),"",Upstream!I13) ->  | AC39: =IF(ISBLANK(Upstream!J13),"",Upstream!J13) ->  | AD39: =IF(ISBLANK(Upstream!K13),"",Upstream!K13) ->  | AE39: =IFERROR(Feedstock_emissions_table[[#This Row],[Consignment delivered tonnesfeedstock fresh matter]]*Journey_1_emissions_table[[#This Row],[Distance km weighted average]],"") ->  | AF39: =IFERROR(Journey_1_emissions_table[[#This Row],[Distance t.km weighted average]]*INDEX(Transport_efficiency,MATCH(Journey_1_emissions_table[[#This Row],[Transport mode]],Transport_mode,0)),"") ->  | AG39: =IF(ISBLANK(Upstream!L13),"",Upstream!L13) ->  | AH39: =IFERROR(Feedstock_emissions_table[[#This Row],[Consignment delivered tonnesfeedstock fresh matter]]*Journey_1_emissions_table[[#This Row],[Distance km maximum]],"") ->  | AI39: =IFERROR(Journey_1_emissions_table[[#This Row],[Distance t.km maximum]]*INDEX(Transport_efficiency,MATCH(Journey_1_emissions_table[[#This Row],[Transport mode]],Transport_mode,0)),"") ->  | AJ39: =IF(ISBLANK(Upstream!I14),"",Upstream!I14) ->  | AK39: =IF(ISBLANK(Upstream!J14),"",Upstream!J14) ->  | AL39: =IF(ISBLANK(Upstream!K14),"",Upstream!K14) ->  | AM39: =IFERROR(Feedstock_emissions_table[[#This Row],[Consignment delivered tonnesfeedstock fresh matter]]*Journey_2_emissions_table[[#This Row],[Distance km weighted average]],"") ->  | AN39: =IFERROR(Journey_2_emissions_table[[#This Row],[Distance t.km weighted average]]*INDEX(Transport_efficiency,MATCH(Journey_2_emissions_table[[#This Row],[Transport mode]],Transport_mode,0)),"") ->  | AO39: =IF(ISBLANK(Upstream!L14),"",Upstream!L14) ->  | AP39: =IFERROR(Feedstock_emissions_table[[#This Row],[Consignment delivered tonnesfeedstock fresh matter]]*Journey_2_emissions_table[[#This Row],[Distance km maximum]],"") ->  | AQ39: =IFERROR(Journey_2_emissions_table[[#This Row],[Distance t.km maximum]]*INDEX(Transport_efficiency,MATCH(Journey_2_emissions_table[[#This Row],[Transport mode]],Transport_mode,0)),"") ->  | AR39: =IFERROR((Upstream_diesel_emissions_table[[#This Row],[Diesel use Cultivation, harvesting, extraction and chipping MJ]]*Diesel_EF+Upstream_diesel_emissions_table[[#This Row],[Diesel use Cultivation, harvesting, extraction and chipping MJ]]*Diesel_combustion_CH4_N2O_emissions)/gperkg,"") ->  | AS39: =IFERROR((Journey_1_emissions_table[[#This Row],[Fuel consumption MJ weighted average]]*INDEX(Transport_fuels_gCO2eq,MATCH(Journey_1_emissions_table[[#This Row],[Transport fuel]],Transport_fuels,0))+Journey_1_emissions_table[[#This Row],[Distance km weighted average]]*INDEX(Transport_exhaust_emissions,MATCH(Journey_1_emissions_table[[#This Row],[Transport mode]],Transport_mode,)))/gperkg,"") ->  | AT39: =IFERROR((Journey_2_emissions_table[[#This Row],[Fuel consumption MJ weighted average]]*INDEX(Transport_fuels_gCO2eq,MATCH(Journey_2_emissions_table[[#This Row],[Transport fuel]],Transport_fuels,0))+Journey_2_emissions_table[[#This Row],[Distance km weighted average]]*INDEX(Transport_exhaust_emissions,MATCH(Journey_2_emissions_table[[#This Row],[Transport mode]],Transport_mode,)))/gperkg,"") ->  | AU39: =IFERROR((Journey_1_emissions_table[[#This Row],[Fuel consumption MJ maximum]]*INDEX(Transport_fuels_gCO2eq,MATCH(Journey_1_emissions_table[[#This Row],[Transport fuel]],Transport_fuels,0))+Journey_1_emissions_table[[#This Row],[Distance km maximum]]*INDEX(Transport_exhaust_emissions,MATCH(Journey_1_emissions_table[[#This Row],[Transport mode]],Transport_mode,)))/gperkg,"") ->  | AV39: =IFERROR((Journey_2_emissions_table[[#This Row],[Fuel consumption MJ maximum]]*INDEX(Transport_fuels_gCO2eq,MATCH(Journey_2_emissions_table[[#This Row],[Transport fuel]],Transport_fuels,0))+Journey_2_emissions_table[[#This Row],[Distance km maximum]]*INDEX(Transport_exhaust_emissions,MATCH(Journey_2_emissions_table[[#This Row],[Transport mode]],Transport_mode,)))/gperkg,"") -> 
D40: =IF(ISBLANK(Feedstock!B12),"",Feedstock!B12) -> 4 | E40: =IF(ISBLANK(Feedstock!D12),"",Feedstock!D12) ->  | G40: =IFERROR(Upstream_total_emissions_table[[#This Row],[Diesel emissions kgCO2eq]]/Feedstock_emissions_table[[#This Row],[Consignment delivered tonnesfeedstock dry matter]],0) -> 0 | H40: =IFERROR(Upstream!F15*U17/W17,"") ->  | I40: =IFERROR(Upstream_total_emissions_table[[#This Row],[Journey 1 average emissions kgCO2eq]]/Feedstock_emissions_table[[#This Row],[Consignment delivered tonnesfeedstock dry matter]],"") ->  | J40: =IFERROR(Upstream_total_emissions_table[[#This Row],[Journey 2 average emissions kgCO2eq]]/Feedstock_emissions_table[[#This Row],[Consignment delivered tonnesfeedstock dry matter]],"") ->  | K40: =IFERROR(Upstream_total_emissions_table[[#This Row],[Journey 1 max emissions kgCO2eq]]/Feedstock_emissions_table[[#This Row],[Consignment delivered tonnesfeedstock dry matter]],"") ->  | L40: =IFERROR(Upstream_total_emissions_table[[#This Row],[Journey 2 max emissions kgCO2eq]]/Feedstock_emissions_table[[#This Row],[Consignment delivered tonnesfeedstock dry matter]],"") ->  | M40: =IFERROR(Upstream_emissions_table[[#This Row],[Diesel emissions kgCO2eq/toutput dry matter]]+Upstream_emissions_table[[#This Row],[Additional emissions kgCO2eq/toutput dry matter]],0) -> 0 | N40: =IFERROR(IF(Distance_selector="weighted average distance",SUM(Upstream_emissions_table[[#This Row],[Journey 1 average emissions kgCO2eq/toutput dry matter]:[Journey 2 average emissions kgCO2eq/toutput dry matter]]),SUM(Upstream_emissions_table[[#This Row],[Journey 1 max emissions kgCO2eq/toutput dry matter]:[Journey 2 max emissions kgCO2eq/toutput dry matter]])),"") -> 0 | O40: =IFERROR(Upstream_emissions_table[[#This Row],[Processing at origin emissions kgCO2eq/tfeedstock dry matter]]*FF_feedstock_transport+Upstream_emissions_table[[#This Row],[Transport emissions kgCO2eq/tfeedstock dry matter]],"") -> 0 | P40: =Upstream!G15 -> 0 | Q40: =IFERROR(IF(Disaggregated_default_selector="actual values",Upstream_emissions_table[[#This Row],[Processing at origin emissions kgCO2eq/tfeedstock dry matter]]/INDEX(Consignment_LHV,MATCH(Consignments_upstream_emissions_table[[#This Row],[Consignment '#]],Consignments_mass_balance_table[Consignment '#],0))*FF_feedstock_transport*FF_processing*FF_pellet_transport,Upstream_emissions_table[[#This Row],[Disaggregated default value gCO2eq/MJpellet dry matter]]),"") ->  | R40: =IFERROR(Upstream_emissions_table[[#This Row],[Transport emissions kgCO2eq/tfeedstock dry matter]]/INDEX(Consignment_LHV,MATCH(Consignments_upstream_emissions_table[[#This Row],[Consignment '#]],Consignments_mass_balance_table[Consignment '#],0))*FF_processing*FF_pellet_transport,"") ->  | W40: =IF(ISBLANK(Emissions!AA17),"",Emissions!AA17) ->  | Z40: =IF(ISBLANK(Upstream!E15),"",Upstream!E15/lperm3*Diesel_density*Diesel_LHV) ->  | AA40: =IFERROR(Feedstock_emissions_table[[#This Row],[Consignment delivered tonnesfeedstock fresh matter]]*Upstream_diesel_emissions_table[[#This Row],[Diesel use Cultivation, harvesting, extraction and chipping MJ/toutput]],"") ->  | AB40: =IF(ISBLANK(Upstream!I15),"",Upstream!I15) ->  | AC40: =IF(ISBLANK(Upstream!J15),"",Upstream!J15) ->  | AD40: =IF(ISBLANK(Upstream!K15),"",Upstream!K15) ->  | AE40: =IFERROR(Feedstock_emissions_table[[#This Row],[Consignment delivered tonnesfeedstock fresh matter]]*Journey_1_emissions_table[[#This Row],[Distance km weighted average]],"") ->  | AF40: =IFERROR(Journey_1_emissions_table[[#This Row],[Distance t.km weighted average]]*INDEX(Transport_efficiency,MATCH(Journey_1_emissions_table[[#This Row],[Transport mode]],Transport_mode,0)),"") ->  | AG40: =IF(ISBLANK(Upstream!L15),"",Upstream!L15) ->  | AH40: =IFERROR(Feedstock_emissions_table[[#This Row],[Consignment delivered tonnesfeedstock fresh matter]]*Journey_1_emissions_table[[#This Row],[Distance km maximum]],"") ->  | AI40: =IFERROR(Journey_1_emissions_table[[#This Row],[Distance t.km maximum]]*INDEX(Transport_efficiency,MATCH(Journey_1_emissions_table[[#This Row],[Transport mode]],Transport_mode,0)),"") ->  | AJ40: =IF(ISBLANK(Upstream!I16),"",Upstream!I16) ->  | AK40: =IF(ISBLANK(Upstream!J16),"",Upstream!J16) ->  | AL40: =IF(ISBLANK(Upstream!K16),"",Upstream!K16) ->  | AM40: =IFERROR(Feedstock_emissions_table[[#This Row],[Consignment delivered tonnesfeedstock fresh matter]]*Journey_2_emissions_table[[#This Row],[Distance km weighted average]],"") ->  | AN40: =IFERROR(Journey_2_emissions_table[[#This Row],[Distance t.km weighted average]]*INDEX(Transport_efficiency,MATCH(Journey_2_emissions_table[[#This Row],[Transport mode]],Transport_mode,0)),"") ->  | AO40: =IF(ISBLANK(Upstream!L16),"",Upstream!L16) ->  | AP40: =IFERROR(Feedstock_emissions_table[[#This Row],[Consignment delivered tonnesfeedstock fresh matter]]*Journey_2_emissions_table[[#This Row],[Distance km maximum]],"") ->  | AQ40: =IFERROR(Journey_2_emissions_table[[#This Row],[Distance t.km maximum]]*INDEX(Transport_efficiency,MATCH(Journey_2_emissions_table[[#This Row],[Transport mode]],Transport_mode,0)),"") ->  | AR40: =IFERROR((Upstream_diesel_emissions_table[[#This Row],[Diesel use Cultivation, harvesting, extraction and chipping MJ]]*Diesel_EF+Upstream_diesel_emissions_table[[#This Row],[Diesel use Cultivation, harvesting, extraction and chipping MJ]]*Diesel_combustion_CH4_N2O_emissions)/gperkg,"") ->  | AS40: =IFERROR((Journey_1_emissions_table[[#This Row],[Fuel consumption MJ weighted average]]*INDEX(Transport_fuels_gCO2eq,MATCH(Journey_1_emissions_table[[#This Row],[Transport fuel]],Transport_fuels,0))+Journey_1_emissions_table[[#This Row],[Distance km weighted average]]*INDEX(Transport_exhaust_emissions,MATCH(Journey_1_emissions_table[[#This Row],[Transport mode]],Transport_mode,)))/gperkg,"") ->  | AT40: =IFERROR((Journey_2_emissions_table[[#This Row],[Fuel consumption MJ weighted average]]*INDEX(Transport_fuels_gCO2eq,MATCH(Journey_2_emissions_table[[#This Row],[Transport fuel]],Transport_fuels,0))+Journey_2_emissions_table[[#This Row],[Distance km weighted average]]*INDEX(Transport_exhaust_emissions,MATCH(Journey_2_emissions_table[[#This Row],[Transport mode]],Transport_mode,)))/gperkg,"") ->  | AU40: =IFERROR((Journey_1_emissions_table[[#This Row],[Fuel consumption MJ maximum]]*INDEX(Transport_fuels_gCO2eq,MATCH(Journey_1_emissions_table[[#This Row],[Transport fuel]],Transport_fuels,0))+Journey_1_emissions_table[[#This Row],[Distance km maximum]]*INDEX(Transport_exhaust_emissions,MATCH(Journey_1_emissions_table[[#This Row],[Transport mode]],Transport_mode,)))/gperkg,"") ->  | AV40: =IFERROR((Journey_2_emissions_table[[#This Row],[Fuel consumption MJ maximum]]*INDEX(Transport_fuels_gCO2eq,MATCH(Journey_2_emissions_table[[#This Row],[Transport fuel]],Transport_fuels,0))+Journey_2_emissions_table[[#This Row],[Distance km maximum]]*INDEX(Transport_exhaust_emissions,MATCH(Journey_2_emissions_table[[#This Row],[Transport mode]],Transport_mode,)))/gperkg,"") -> 
D41: =IF(ISBLANK(Feedstock!B13),"",Feedstock!B13) -> 5 | E41: =IF(ISBLANK(Feedstock!D13),"",Feedstock!D13) ->  | G41: =IFERROR(Upstream_total_emissions_table[[#This Row],[Diesel emissions kgCO2eq]]/Feedstock_emissions_table[[#This Row],[Consignment delivered tonnesfeedstock dry matter]],0) -> 0 | H41: =IFERROR(Upstream!F17*U18/W18,"") ->  | I41: =IFERROR(Upstream_total_emissions_table[[#This Row],[Journey 1 average emissions kgCO2eq]]/Feedstock_emissions_table[[#This Row],[Consignment delivered tonnesfeedstock dry matter]],"") ->  | J41: =IFERROR(Upstream_total_emissions_table[[#This Row],[Journey 2 average emissions kgCO2eq]]/Feedstock_emissions_table[[#This Row],[Consignment delivered tonnesfeedstock dry matter]],"") ->  | K41: =IFERROR(Upstream_total_emissions_table[[#This Row],[Journey 1 max emissions kgCO2eq]]/Feedstock_emissions_table[[#This Row],[Consignment delivered tonnesfeedstock dry matter]],"") ->  | L41: =IFERROR(Upstream_total_emissions_table[[#This Row],[Journey 2 max emissions kgCO2eq]]/Feedstock_emissions_table[[#This Row],[Consignment delivered tonnesfeedstock dry matter]],"") ->  | M41: =IFERROR(Upstream_emissions_table[[#This Row],[Diesel emissions kgCO2eq/toutput dry matter]]+Upstream_emissions_table[[#This Row],[Additional emissions kgCO2eq/toutput dry matter]],0) -> 0 | N41: =IFERROR(IF(Distance_selector="weighted average distance",SUM(Upstream_emissions_table[[#This Row],[Journey 1 average emissions kgCO2eq/toutput dry matter]:[Journey 2 average emissions kgCO2eq/toutput dry matter]]),SUM(Upstream_emissions_table[[#This Row],[Journey 1 max emissions kgCO2eq/toutput dry matter]:[Journey 2 max emissions kgCO2eq/toutput dry matter]])),"") -> 0 | O41: =IFERROR(Upstream_emissions_table[[#This Row],[Processing at origin emissions kgCO2eq/tfeedstock dry matter]]*FF_feedstock_transport+Upstream_emissions_table[[#This Row],[Transport emissions kgCO2eq/tfeedstock dry matter]],"") -> 0 | P41: =Upstream!G17 -> 0 | Q41: =IFERROR(IF(Disaggregated_default_selector="actual values",Upstream_emissions_table[[#This Row],[Processing at origin emissions kgCO2eq/tfeedstock dry matter]]/INDEX(Consignment_LHV,MATCH(Consignments_upstream_emissions_table[[#This Row],[Consignment '#]],Consignments_mass_balance_table[Consignment '#],0))*FF_feedstock_transport*FF_processing*FF_pellet_transport,Upstream_emissions_table[[#This Row],[Disaggregated default value gCO2eq/MJpellet dry matter]]),"") ->  | R41: =IFERROR(Upstream_emissions_table[[#This Row],[Transport emissions kgCO2eq/tfeedstock dry matter]]/INDEX(Consignment_LHV,MATCH(Consignments_upstream_emissions_table[[#This Row],[Consignment '#]],Consignments_mass_balance_table[Consignment '#],0))*FF_processing*FF_pellet_transport,"") ->  | W41: =IF(ISBLANK(Emissions!AA18),"",Emissions!AA18) ->  | Z41: =IF(ISBLANK(Upstream!E17),"",Upstream!E17/lperm3*Diesel_density*Diesel_LHV) ->  | AA41: =IFERROR(Feedstock_emissions_table[[#This Row],[Consignment delivered tonnesfeedstock fresh matter]]*Upstream_diesel_emissions_table[[#This Row],[Diesel use Cultivation, harvesting, extraction and chipping MJ/toutput]],"") ->  | AB41: =IF(ISBLANK(Upstream!I17),"",Upstream!I17) ->  | AC41: =IF(ISBLANK(Upstream!J17),"",Upstream!J17) ->  | AD41: =IF(ISBLANK(Upstream!K17),"",Upstream!K17) ->  | AE41: =IFERROR(Feedstock_emissions_table[[#This Row],[Consignment delivered tonnesfeedstock fresh matter]]*Journey_1_emissions_table[[#This Row],[Distance km weighted average]],"") ->  | AF41: =IFERROR(Journey_1_emissions_table[[#This Row],[Distance t.km weighted average]]*INDEX(Transport_efficiency,MATCH(Journey_1_emissions_table[[#This Row],[Transport mode]],Transport_mode,0)),"") ->  | AG41: =IF(ISBLANK(Upstream!L17),"",Upstream!L17) ->  | AH41: =IFERROR(Feedstock_emissions_table[[#This Row],[Consignment delivered tonnesfeedstock fresh matter]]*Journey_1_emissions_table[[#This Row],[Distance km maximum]],"") ->  | AI41: =IFERROR(Journey_1_emissions_table[[#This Row],[Distance t.km maximum]]*INDEX(Transport_efficiency,MATCH(Journey_1_emissions_table[[#This Row],[Transport mode]],Transport_mode,0)),"") ->  | AJ41: =IF(ISBLANK(Upstream!I18),"",Upstream!I18) ->  | AK41: =IF(ISBLANK(Upstream!J18),"",Upstream!J18) ->  | AL41: =IF(ISBLANK(Upstream!K18),"",Upstream!K18) ->  | AM41: =IFERROR(Feedstock_emissions_table[[#This Row],[Consignment delivered tonnesfeedstock fresh matter]]*Journey_2_emissions_table[[#This Row],[Distance km weighted average]],"") ->  | AN41: =IFERROR(Journey_2_emissions_table[[#This Row],[Distance t.km weighted average]]*INDEX(Transport_efficiency,MATCH(Journey_2_emissions_table[[#This Row],[Transport mode]],Transport_mode,0)),"") ->  | AO41: =IF(ISBLANK(Upstream!L18),"",Upstream!L18) ->  | AP41: =IFERROR(Feedstock_emissions_table[[#This Row],[Consignment delivered tonnesfeedstock fresh matter]]*Journey_2_emissions_table[[#This Row],[Distance km maximum]],"") ->  | AQ41: =IFERROR(Journey_2_emissions_table[[#This Row],[Distance t.km maximum]]*INDEX(Transport_efficiency,MATCH(Journey_2_emissions_table[[#This Row],[Transport mode]],Transport_mode,0)),"") ->  | AR41: =IFERROR((Upstream_diesel_emissions_table[[#This Row],[Diesel use Cultivation, harvesting, extraction and chipping MJ]]*Diesel_EF+Upstream_diesel_emissions_table[[#This Row],[Diesel use Cultivation, harvesting, extraction and chipping MJ]]*Diesel_combustion_CH4_N2O_emissions)/gperkg,"") ->  | AS41: =IFERROR((Journey_1_emissions_table[[#This Row],[Fuel consumption MJ weighted average]]*INDEX(Transport_fuels_gCO2eq,MATCH(Journey_1_emissions_table[[#This Row],[Transport fuel]],Transport_fuels,0))+Journey_1_emissions_table[[#This Row],[Distance km weighted average]]*INDEX(Transport_exhaust_emissions,MATCH(Journey_1_emissions_table[[#This Row],[Transport mode]],Transport_mode,)))/gperkg,"") ->  | AT41: =IFERROR((Journey_2_emissions_table[[#This Row],[Fuel consumption MJ weighted average]]*INDEX(Transport_fuels_gCO2eq,MATCH(Journey_2_emissions_table[[#This Row],[Transport fuel]],Transport_fuels,0))+Journey_2_emissions_table[[#This Row],[Distance km weighted average]]*INDEX(Transport_exhaust_emissions,MATCH(Journey_2_emissions_table[[#This Row],[Transport mode]],Transport_mode,)))/gperkg,"") ->  | AU41: =IFERROR((Journey_1_emissions_table[[#This Row],[Fuel consumption MJ maximum]]*INDEX(Transport_fuels_gCO2eq,MATCH(Journey_1_emissions_table[[#This Row],[Transport fuel]],Transport_fuels,0))+Journey_1_emissions_table[[#This Row],[Distance km maximum]]*INDEX(Transport_exhaust_emissions,MATCH(Journey_1_emissions_table[[#This Row],[Transport mode]],Transport_mode,)))/gperkg,"") ->  | AV41: =IFERROR((Journey_2_emissions_table[[#This Row],[Fuel consumption MJ maximum]]*INDEX(Transport_fuels_gCO2eq,MATCH(Journey_2_emissions_table[[#This Row],[Transport fuel]],Transport_fuels,0))+Journey_2_emissions_table[[#This Row],[Distance km maximum]]*INDEX(Transport_exhaust_emissions,MATCH(Journey_2_emissions_table[[#This Row],[Transport mode]],Transport_mode,)))/gperkg,"") -> 
D42: =IF(ISBLANK(Feedstock!B14),"",Feedstock!B14) -> 6 | E42: =IF(ISBLANK(Feedstock!D14),"",Feedstock!D14) ->  | G42: =IFERROR(Upstream_total_emissions_table[[#This Row],[Diesel emissions kgCO2eq]]/Feedstock_emissions_table[[#This Row],[Consignment delivered tonnesfeedstock dry matter]],0) -> 0 | H42: =IFERROR(Upstream!F19*U19/W19,"") ->  | I42: =IFERROR(Upstream_total_emissions_table[[#This Row],[Journey 1 average emissions kgCO2eq]]/Feedstock_emissions_table[[#This Row],[Consignment delivered tonnesfeedstock dry matter]],"") ->  | J42: =IFERROR(Upstream_total_emissions_table[[#This Row],[Journey 2 average emissions kgCO2eq]]/Feedstock_emissions_table[[#This Row],[Consignment delivered tonnesfeedstock dry matter]],"") ->  | K42: =IFERROR(Upstream_total_emissions_table[[#This Row],[Journey 1 max emissions kgCO2eq]]/Feedstock_emissions_table[[#This Row],[Consignment delivered tonnesfeedstock dry matter]],"") ->  | L42: =IFERROR(Upstream_total_emissions_table[[#This Row],[Journey 2 max emissions kgCO2eq]]/Feedstock_emissions_table[[#This Row],[Consignment delivered tonnesfeedstock dry matter]],"") ->  | M42: =IFERROR(Upstream_emissions_table[[#This Row],[Diesel emissions kgCO2eq/toutput dry matter]]+Upstream_emissions_table[[#This Row],[Additional emissions kgCO2eq/toutput dry matter]],0) -> 0 | N42: =IFERROR(IF(Distance_selector="weighted average distance",SUM(Upstream_emissions_table[[#This Row],[Journey 1 average emissions kgCO2eq/toutput dry matter]:[Journey 2 average emissions kgCO2eq/toutput dry matter]]),SUM(Upstream_emissions_table[[#This Row],[Journey 1 max emissions kgCO2eq/toutput dry matter]:[Journey 2 max emissions kgCO2eq/toutput dry matter]])),"") -> 0 | O42: =IFERROR(Upstream_emissions_table[[#This Row],[Processing at origin emissions kgCO2eq/tfeedstock dry matter]]*FF_feedstock_transport+Upstream_emissions_table[[#This Row],[Transport emissions kgCO2eq/tfeedstock dry matter]],"") -> 0 | P42: =Upstream!G19 -> 0 | Q42: =IFERROR(IF(Disaggregated_default_selector="actual values",Upstream_emissions_table[[#This Row],[Processing at origin emissions kgCO2eq/tfeedstock dry matter]]/INDEX(Consignment_LHV,MATCH(Consignments_upstream_emissions_table[[#This Row],[Consignment '#]],Consignments_mass_balance_table[Consignment '#],0))*FF_feedstock_transport*FF_processing*FF_pellet_transport,Upstream_emissions_table[[#This Row],[Disaggregated default value gCO2eq/MJpellet dry matter]]),"") ->  | R42: =IFERROR(Upstream_emissions_table[[#This Row],[Transport emissions kgCO2eq/tfeedstock dry matter]]/INDEX(Consignment_LHV,MATCH(Consignments_upstream_emissions_table[[#This Row],[Consignment '#]],Consignments_mass_balance_table[Consignment '#],0))*FF_processing*FF_pellet_transport,"") ->  | W42: =IF(ISBLANK(Emissions!AA19),"",Emissions!AA19) ->  | Z42: =IF(ISBLANK(Upstream!E19),"",Upstream!E19/lperm3*Diesel_density*Diesel_LHV) ->  | AA42: =IFERROR(Feedstock_emissions_table[[#This Row],[Consignment delivered tonnesfeedstock fresh matter]]*Upstream_diesel_emissions_table[[#This Row],[Diesel use Cultivation, harvesting, extraction and chipping MJ/toutput]],"") ->  | AB42: =IF(ISBLANK(Upstream!I19),"",Upstream!I19) ->  | AC42: =IF(ISBLANK(Upstream!J19),"",Upstream!J19) ->  | AD42: =IF(ISBLANK(Upstream!K19),"",Upstream!K19) ->  | AE42: =IFERROR(Feedstock_emissions_table[[#This Row],[Consignment delivered tonnesfeedstock fresh matter]]*Journey_1_emissions_table[[#This Row],[Distance km weighted average]],"") ->  | AF42: =IFERROR(Journey_1_emissions_table[[#This Row],[Distance t.km weighted average]]*INDEX(Transport_efficiency,MATCH(Journey_1_emissions_table[[#This Row],[Transport mode]],Transport_mode,0)),"") ->  | AG42: =IF(ISBLANK(Upstream!L19),"",Upstream!L19) ->  | AH42: =IFERROR(Feedstock_emissions_table[[#This Row],[Consignment delivered tonnesfeedstock fresh matter]]*Journey_1_emissions_table[[#This Row],[Distance km maximum]],"") ->  | AI42: =IFERROR(Journey_1_emissions_table[[#This Row],[Distance t.km maximum]]*INDEX(Transport_efficiency,MATCH(Journey_1_emissions_table[[#This Row],[Transport mode]],Transport_mode,0)),"") ->  | AJ42: =IF(ISBLANK(Upstream!I20),"",Upstream!I20) ->  | AK42: =IF(ISBLANK(Upstream!J20),"",Upstream!J20) ->  | AL42: =IF(ISBLANK(Upstream!K20),"",Upstream!K20) ->  | AM42: =IFERROR(Feedstock_emissions_table[[#This Row],[Consignment delivered tonnesfeedstock fresh matter]]*Journey_2_emissions_table[[#This Row],[Distance km weighted average]],"") ->  | AN42: =IFERROR(Journey_2_emissions_table[[#This Row],[Distance t.km weighted average]]*INDEX(Transport_efficiency,MATCH(Journey_2_emissions_table[[#This Row],[Transport mode]],Transport_mode,0)),"") ->  | AO42: =IF(ISBLANK(Upstream!L20),"",Upstream!L20) ->  | AP42: =IFERROR(Feedstock_emissions_table[[#This Row],[Consignment delivered tonnesfeedstock fresh matter]]*Journey_2_emissions_table[[#This Row],[Distance km maximum]],"") ->  | AQ42: =IFERROR(Journey_2_emissions_table[[#This Row],[Distance t.km maximum]]*INDEX(Transport_efficiency,MATCH(Journey_2_emissions_table[[#This Row],[Transport mode]],Transport_mode,0)),"") ->  | AR42: =IFERROR((Upstream_diesel_emissions_table[[#This Row],[Diesel use Cultivation, harvesting, extraction and chipping MJ]]*Diesel_EF+Upstream_diesel_emissions_table[[#This Row],[Diesel use Cultivation, harvesting, extraction and chipping MJ]]*Diesel_combustion_CH4_N2O_emissions)/gperkg,"") ->  | AS42: =IFERROR((Journey_1_emissions_table[[#This Row],[Fuel consumption MJ weighted average]]*INDEX(Transport_fuels_gCO2eq,MATCH(Journey_1_emissions_table[[#This Row],[Transport fuel]],Transport_fuels,0))+Journey_1_emissions_table[[#This Row],[Distance km weighted average]]*INDEX(Transport_exhaust_emissions,MATCH(Journey_1_emissions_table[[#This Row],[Transport mode]],Transport_mode,)))/gperkg,"") ->  | AT42: =IFERROR((Journey_2_emissions_table[[#This Row],[Fuel consumption MJ weighted average]]*INDEX(Transport_fuels_gCO2eq,MATCH(Journey_2_emissions_table[[#This Row],[Transport fuel]],Transport_fuels,0))+Journey_2_emissions_table[[#This Row],[Distance km weighted average]]*INDEX(Transport_exhaust_emissions,MATCH(Journey_2_emissions_table[[#This Row],[Transport mode]],Transport_mode,)))/gperkg,"") ->  | AU42: =IFERROR((Journey_1_emissions_table[[#This Row],[Fuel consumption MJ maximum]]*INDEX(Transport_fuels_gCO2eq,MATCH(Journey_1_emissions_table[[#This Row],[Transport fuel]],Transport_fuels,0))+Journey_1_emissions_table[[#This Row],[Distance km maximum]]*INDEX(Transport_exhaust_emissions,MATCH(Journey_1_emissions_table[[#This Row],[Transport mode]],Transport_mode,)))/gperkg,"") ->  | AV42: =IFERROR((Journey_2_emissions_table[[#This Row],[Fuel consumption MJ maximum]]*INDEX(Transport_fuels_gCO2eq,MATCH(Journey_2_emissions_table[[#This Row],[Transport fuel]],Transport_fuels,0))+Journey_2_emissions_table[[#This Row],[Distance km maximum]]*INDEX(Transport_exhaust_emissions,MATCH(Journey_2_emissions_table[[#This Row],[Transport mode]],Transport_mode,)))/gperkg,"") -> 
D43: =IF(ISBLANK(Feedstock!B15),"",Feedstock!B15) -> 7 | E43: =IF(ISBLANK(Feedstock!D15),"",Feedstock!D15) ->  | G43: =IFERROR(Upstream_total_emissions_table[[#This Row],[Diesel emissions kgCO2eq]]/Feedstock_emissions_table[[#This Row],[Consignment delivered tonnesfeedstock dry matter]],0) -> 0 | H43: =IFERROR(Upstream!F21*U20/W20,"") ->  | I43: =IFERROR(Upstream_total_emissions_table[[#This Row],[Journey 1 average emissions kgCO2eq]]/Feedstock_emissions_table[[#This Row],[Consignment delivered tonnesfeedstock dry matter]],"") ->  | J43: =IFERROR(Upstream_total_emissions_table[[#This Row],[Journey 2 average emissions kgCO2eq]]/Feedstock_emissions_table[[#This Row],[Consignment delivered tonnesfeedstock dry matter]],"") ->  | K43: =IFERROR(Upstream_total_emissions_table[[#This Row],[Journey 1 max emissions kgCO2eq]]/Feedstock_emissions_table[[#This Row],[Consignment delivered tonnesfeedstock dry matter]],"") ->  | L43: =IFERROR(Upstream_total_emissions_table[[#This Row],[Journey 2 max emissions kgCO2eq]]/Feedstock_emissions_table[[#This Row],[Consignment delivered tonnesfeedstock dry matter]],"") ->  | M43: =IFERROR(Upstream_emissions_table[[#This Row],[Diesel emissions kgCO2eq/toutput dry matter]]+Upstream_emissions_table[[#This Row],[Additional emissions kgCO2eq/toutput dry matter]],0) -> 0 | N43: =IFERROR(IF(Distance_selector="weighted average distance",SUM(Upstream_emissions_table[[#This Row],[Journey 1 average emissions kgCO2eq/toutput dry matter]:[Journey 2 average emissions kgCO2eq/toutput dry matter]]),SUM(Upstream_emissions_table[[#This Row],[Journey 1 max emissions kgCO2eq/toutput dry matter]:[Journey 2 max emissions kgCO2eq/toutput dry matter]])),"") -> 0 | O43: =IFERROR(Upstream_emissions_table[[#This Row],[Processing at origin emissions kgCO2eq/tfeedstock dry matter]]*FF_feedstock_transport+Upstream_emissions_table[[#This Row],[Transport emissions kgCO2eq/tfeedstock dry matter]],"") -> 0 | P43: =Upstream!G21 -> 0 | Q43: =IFERROR(IF(Disaggregated_default_selector="actual values",Upstream_emissions_table[[#This Row],[Processing at origin emissions kgCO2eq/tfeedstock dry matter]]/INDEX(Consignment_LHV,MATCH(Consignments_upstream_emissions_table[[#This Row],[Consignment '#]],Consignments_mass_balance_table[Consignment '#],0))*FF_feedstock_transport*FF_processing*FF_pellet_transport,Upstream_emissions_table[[#This Row],[Disaggregated default value gCO2eq/MJpellet dry matter]]),"") ->  | R43: =IFERROR(Upstream_emissions_table[[#This Row],[Transport emissions kgCO2eq/tfeedstock dry matter]]/INDEX(Consignment_LHV,MATCH(Consignments_upstream_emissions_table[[#This Row],[Consignment '#]],Consignments_mass_balance_table[Consignment '#],0))*FF_processing*FF_pellet_transport,"") ->  | W43: =IF(ISBLANK(Emissions!AA20),"",Emissions!AA20) ->  | Z43: =IF(ISBLANK(Upstream!E21),"",Upstream!E21/lperm3*Diesel_density*Diesel_LHV) ->  | AA43: =IFERROR(Feedstock_emissions_table[[#This Row],[Consignment delivered tonnesfeedstock fresh matter]]*Upstream_diesel_emissions_table[[#This Row],[Diesel use Cultivation, harvesting, extraction and chipping MJ/toutput]],"") ->  | AB43: =IF(ISBLANK(Upstream!I21),"",Upstream!I21) ->  | AC43: =IF(ISBLANK(Upstream!J21),"",Upstream!J21) ->  | AD43: =IF(ISBLANK(Upstream!K21),"",Upstream!K21) ->  | AE43: =IFERROR(Feedstock_emissions_table[[#This Row],[Consignment delivered tonnesfeedstock fresh matter]]*Journey_1_emissions_table[[#This Row],[Distance km weighted average]],"") ->  | AF43: =IFERROR(Journey_1_emissions_table[[#This Row],[Distance t.km weighted average]]*INDEX(Transport_efficiency,MATCH(Journey_1_emissions_table[[#This Row],[Transport mode]],Transport_mode,0)),"") ->  | AG43: =IF(ISBLANK(Upstream!L21),"",Upstream!L21) ->  | AH43: =IFERROR(Feedstock_emissions_table[[#This Row],[Consignment delivered tonnesfeedstock fresh matter]]*Journey_1_emissions_table[[#This Row],[Distance km maximum]],"") ->  | AI43: =IFERROR(Journey_1_emissions_table[[#This Row],[Distance t.km maximum]]*INDEX(Transport_efficiency,MATCH(Journey_1_emissions_table[[#This Row],[Transport mode]],Transport_mode,0)),"") ->  | AJ43: =IF(ISBLANK(Upstream!I22),"",Upstream!I22) ->  | AK43: =IF(ISBLANK(Upstream!J22),"",Upstream!J22) ->  | AL43: =IF(ISBLANK(Upstream!K22),"",Upstream!K22) ->  | AM43: =IFERROR(Feedstock_emissions_table[[#This Row],[Consignment delivered tonnesfeedstock fresh matter]]*Journey_2_emissions_table[[#This Row],[Distance km weighted average]],"") ->  | AN43: =IFERROR(Journey_2_emissions_table[[#This Row],[Distance t.km weighted average]]*INDEX(Transport_efficiency,MATCH(Journey_2_emissions_table[[#This Row],[Transport mode]],Transport_mode,0)),"") ->  | AO43: =IF(ISBLANK(Upstream!L22),"",Upstream!L22) ->  | AP43: =IFERROR(Feedstock_emissions_table[[#This Row],[Consignment delivered tonnesfeedstock fresh matter]]*Journey_2_emissions_table[[#This Row],[Distance km maximum]],"") ->  | AQ43: =IFERROR(Journey_2_emissions_table[[#This Row],[Distance t.km maximum]]*INDEX(Transport_efficiency,MATCH(Journey_2_emissions_table[[#This Row],[Transport mode]],Transport_mode,0)),"") ->  | AR43: =IFERROR((Upstream_diesel_emissions_table[[#This Row],[Diesel use Cultivation, harvesting, extraction and chipping MJ]]*Diesel_EF+Upstream_diesel_emissions_table[[#This Row],[Diesel use Cultivation, harvesting, extraction and chipping MJ]]*Diesel_combustion_CH4_N2O_emissions)/gperkg,"") ->  | AS43: =IFERROR((Journey_1_emissions_table[[#This Row],[Fuel consumption MJ weighted average]]*INDEX(Transport_fuels_gCO2eq,MATCH(Journey_1_emissions_table[[#This Row],[Transport fuel]],Transport_fuels,0))+Journey_1_emissions_table[[#This Row],[Distance km weighted average]]*INDEX(Transport_exhaust_emissions,MATCH(Journey_1_emissions_table[[#This Row],[Transport mode]],Transport_mode,)))/gperkg,"") ->  | AT43: =IFERROR((Journey_2_emissions_table[[#This Row],[Fuel consumption MJ weighted average]]*INDEX(Transport_fuels_gCO2eq,MATCH(Journey_2_emissions_table[[#This Row],[Transport fuel]],Transport_fuels,0))+Journey_2_emissions_table[[#This Row],[Distance km weighted average]]*INDEX(Transport_exhaust_emissions,MATCH(Journey_2_emissions_table[[#This Row],[Transport mode]],Transport_mode,)))/gperkg,"") ->  | AU43: =IFERROR((Journey_1_emissions_table[[#This Row],[Fuel consumption MJ maximum]]*INDEX(Transport_fuels_gCO2eq,MATCH(Journey_1_emissions_table[[#This Row],[Transport fuel]],Transport_fuels,0))+Journey_1_emissions_table[[#This Row],[Distance km maximum]]*INDEX(Transport_exhaust_emissions,MATCH(Journey_1_emissions_table[[#This Row],[Transport mode]],Transport_mode,)))/gperkg,"") ->  | AV43: =IFERROR((Journey_2_emissions_table[[#This Row],[Fuel consumption MJ maximum]]*INDEX(Transport_fuels_gCO2eq,MATCH(Journey_2_emissions_table[[#This Row],[Transport fuel]],Transport_fuels,0))+Journey_2_emissions_table[[#This Row],[Distance km maximum]]*INDEX(Transport_exhaust_emissions,MATCH(Journey_2_emissions_table[[#This Row],[Transport mode]],Transport_mode,)))/gperkg,"") -> 
D44: =IF(ISBLANK(Feedstock!B16),"",Feedstock!B16) -> 8 | E44: =IF(ISBLANK(Feedstock!D16),"",Feedstock!D16) ->  | G44: =IFERROR(Upstream_total_emissions_table[[#This Row],[Diesel emissions kgCO2eq]]/Feedstock_emissions_table[[#This Row],[Consignment delivered tonnesfeedstock dry matter]],0) -> 0 | H44: =IFERROR(Upstream!F23*U21/W21,"") ->  | I44: =IFERROR(Upstream_total_emissions_table[[#This Row],[Journey 1 average emissions kgCO2eq]]/Feedstock_emissions_table[[#This Row],[Consignment delivered tonnesfeedstock dry matter]],"") ->  | J44: =IFERROR(Upstream_total_emissions_table[[#This Row],[Journey 2 average emissions kgCO2eq]]/Feedstock_emissions_table[[#This Row],[Consignment delivered tonnesfeedstock dry matter]],"") ->  | K44: =IFERROR(Upstream_total_emissions_table[[#This Row],[Journey 1 max emissions kgCO2eq]]/Feedstock_emissions_table[[#This Row],[Consignment delivered tonnesfeedstock dry matter]],"") ->  | L44: =IFERROR(Upstream_total_emissions_table[[#This Row],[Journey 2 max emissions kgCO2eq]]/Feedstock_emissions_table[[#This Row],[Consignment delivered tonnesfeedstock dry matter]],"") ->  | M44: =IFERROR(Upstream_emissions_table[[#This Row],[Diesel emissions kgCO2eq/toutput dry matter]]+Upstream_emissions_table[[#This Row],[Additional emissions kgCO2eq/toutput dry matter]],0) -> 0 | N44: =IFERROR(IF(Distance_selector="weighted average distance",SUM(Upstream_emissions_table[[#This Row],[Journey 1 average emissions kgCO2eq/toutput dry matter]:[Journey 2 average emissions kgCO2eq/toutput dry matter]]),SUM(Upstream_emissions_table[[#This Row],[Journey 1 max emissions kgCO2eq/toutput dry matter]:[Journey 2 max emissions kgCO2eq/toutput dry matter]])),"") -> 0 | O44: =IFERROR(Upstream_emissions_table[[#This Row],[Processing at origin emissions kgCO2eq/tfeedstock dry matter]]*FF_feedstock_transport+Upstream_emissions_table[[#This Row],[Transport emissions kgCO2eq/tfeedstock dry matter]],"") -> 0 | P44: =Upstream!G23 -> 0 | Q44: =IFERROR(IF(Disaggregated_default_selector="actual values",Upstream_emissions_table[[#This Row],[Processing at origin emissions kgCO2eq/tfeedstock dry matter]]/INDEX(Consignment_LHV,MATCH(Consignments_upstream_emissions_table[[#This Row],[Consignment '#]],Consignments_mass_balance_table[Consignment '#],0))*FF_feedstock_transport*FF_processing*FF_pellet_transport,Upstream_emissions_table[[#This Row],[Disaggregated default value gCO2eq/MJpellet dry matter]]),"") ->  | R44: =IFERROR(Upstream_emissions_table[[#This Row],[Transport emissions kgCO2eq/tfeedstock dry matter]]/INDEX(Consignment_LHV,MATCH(Consignments_upstream_emissions_table[[#This Row],[Consignment '#]],Consignments_mass_balance_table[Consignment '#],0))*FF_processing*FF_pellet_transport,"") ->  | W44: =IF(ISBLANK(Emissions!AA21),"",Emissions!AA21) ->  | Z44: =IF(ISBLANK(Upstream!E23),"",Upstream!E23/lperm3*Diesel_density*Diesel_LHV) ->  | AA44: =IFERROR(Feedstock_emissions_table[[#This Row],[Consignment delivered tonnesfeedstock fresh matter]]*Upstream_diesel_emissions_table[[#This Row],[Diesel use Cultivation, harvesting, extraction and chipping MJ/toutput]],"") ->  | AB44: =IF(ISBLANK(Upstream!I23),"",Upstream!I23) ->  | AC44: =IF(ISBLANK(Upstream!J23),"",Upstream!J23) ->  | AD44: =IF(ISBLANK(Upstream!K23),"",Upstream!K23) ->  | AE44: =IFERROR(Feedstock_emissions_table[[#This Row],[Consignment delivered tonnesfeedstock fresh matter]]*Journey_1_emissions_table[[#This Row],[Distance km weighted average]],"") ->  | AF44: =IFERROR(Journey_1_emissions_table[[#This Row],[Distance t.km weighted average]]*INDEX(Transport_efficiency,MATCH(Journey_1_emissions_table[[#This Row],[Transport mode]],Transport_mode,0)),"") ->  | AG44: =IF(ISBLANK(Upstream!L23),"",Upstream!L23) ->  | AH44: =IFERROR(Feedstock_emissions_table[[#This Row],[Consignment delivered tonnesfeedstock fresh matter]]*Journey_1_emissions_table[[#This Row],[Distance km maximum]],"") ->  | AI44: =IFERROR(Journey_1_emissions_table[[#This Row],[Distance t.km maximum]]*INDEX(Transport_efficiency,MATCH(Journey_1_emissions_table[[#This Row],[Transport mode]],Transport_mode,0)),"") ->  | AJ44: =IF(ISBLANK(Upstream!I24),"",Upstream!I24) ->  | AK44: =IF(ISBLANK(Upstream!J24),"",Upstream!J24) ->  | AL44: =IF(ISBLANK(Upstream!K24),"",Upstream!K24) ->  | AM44: =IFERROR(Feedstock_emissions_table[[#This Row],[Consignment delivered tonnesfeedstock fresh matter]]*Journey_2_emissions_table[[#This Row],[Distance km weighted average]],"") ->  | AN44: =IFERROR(Journey_2_emissions_table[[#This Row],[Distance t.km weighted average]]*INDEX(Transport_efficiency,MATCH(Journey_2_emissions_table[[#This Row],[Transport mode]],Transport_mode,0)),"") ->  | AO44: =IF(ISBLANK(Upstream!L24),"",Upstream!L24) ->  | AP44: =IFERROR(Feedstock_emissions_table[[#This Row],[Consignment delivered tonnesfeedstock fresh matter]]*Journey_2_emissions_table[[#This Row],[Distance km maximum]],"") ->  | AQ44: =IFERROR(Journey_2_emissions_table[[#This Row],[Distance t.km maximum]]*INDEX(Transport_efficiency,MATCH(Journey_2_emissions_table[[#This Row],[Transport mode]],Transport_mode,0)),"") ->  | AR44: =IFERROR((Upstream_diesel_emissions_table[[#This Row],[Diesel use Cultivation, harvesting, extraction and chipping MJ]]*Diesel_EF+Upstream_diesel_emissions_table[[#This Row],[Diesel use Cultivation, harvesting, extraction and chipping MJ]]*Diesel_combustion_CH4_N2O_emissions)/gperkg,"") ->  | AS44: =IFERROR((Journey_1_emissions_table[[#This Row],[Fuel consumption MJ weighted average]]*INDEX(Transport_fuels_gCO2eq,MATCH(Journey_1_emissions_table[[#This Row],[Transport fuel]],Transport_fuels,0))+Journey_1_emissions_table[[#This Row],[Distance km weighted average]]*INDEX(Transport_exhaust_emissions,MATCH(Journey_1_emissions_table[[#This Row],[Transport mode]],Transport_mode,)))/gperkg,"") ->  | AT44: =IFERROR((Journey_2_emissions_table[[#This Row],[Fuel consumption MJ weighted average]]*INDEX(Transport_fuels_gCO2eq,MATCH(Journey_2_emissions_table[[#This Row],[Transport fuel]],Transport_fuels,0))+Journey_2_emissions_table[[#This Row],[Distance km weighted average]]*INDEX(Transport_exhaust_emissions,MATCH(Journey_2_emissions_table[[#This Row],[Transport mode]],Transport_mode,)))/gperkg,"") ->  | AU44: =IFERROR((Journey_1_emissions_table[[#This Row],[Fuel consumption MJ maximum]]*INDEX(Transport_fuels_gCO2eq,MATCH(Journey_1_emissions_table[[#This Row],[Transport fuel]],Transport_fuels,0))+Journey_1_emissions_table[[#This Row],[Distance km maximum]]*INDEX(Transport_exhaust_emissions,MATCH(Journey_1_emissions_table[[#This Row],[Transport mode]],Transport_mode,)))/gperkg,"") ->  | AV44: =IFERROR((Journey_2_emissions_table[[#This Row],[Fuel consumption MJ maximum]]*INDEX(Transport_fuels_gCO2eq,MATCH(Journey_2_emissions_table[[#This Row],[Transport fuel]],Transport_fuels,0))+Journey_2_emissions_table[[#This Row],[Distance km maximum]]*INDEX(Transport_exhaust_emissions,MATCH(Journey_2_emissions_table[[#This Row],[Transport mode]],Transport_mode,)))/gperkg,"") -> 
D45: =IF(ISBLANK(Feedstock!B17),"",Feedstock!B17) -> 9 | E45: =IF(ISBLANK(Feedstock!D17),"",Feedstock!D17) ->  | G45: =IFERROR(Upstream_total_emissions_table[[#This Row],[Diesel emissions kgCO2eq]]/Feedstock_emissions_table[[#This Row],[Consignment delivered tonnesfeedstock dry matter]],0) -> 0 | H45: =IFERROR(Upstream!F25*U22/W22,"") ->  | I45: =IFERROR(Upstream_total_emissions_table[[#This Row],[Journey 1 average emissions kgCO2eq]]/Feedstock_emissions_table[[#This Row],[Consignment delivered tonnesfeedstock dry matter]],"") ->  | J45: =IFERROR(Upstream_total_emissions_table[[#This Row],[Journey 2 average emissions kgCO2eq]]/Feedstock_emissions_table[[#This Row],[Consignment delivered tonnesfeedstock dry matter]],"") ->  | K45: =IFERROR(Upstream_total_emissions_table[[#This Row],[Journey 1 max emissions kgCO2eq]]/Feedstock_emissions_table[[#This Row],[Consignment delivered tonnesfeedstock dry matter]],"") ->  | L45: =IFERROR(Upstream_total_emissions_table[[#This Row],[Journey 2 max emissions kgCO2eq]]/Feedstock_emissions_table[[#This Row],[Consignment delivered tonnesfeedstock dry matter]],"") ->  | M45: =IFERROR(Upstream_emissions_table[[#This Row],[Diesel emissions kgCO2eq/toutput dry matter]]+Upstream_emissions_table[[#This Row],[Additional emissions kgCO2eq/toutput dry matter]],0) -> 0 | N45: =IFERROR(IF(Distance_selector="weighted average distance",SUM(Upstream_emissions_table[[#This Row],[Journey 1 average emissions kgCO2eq/toutput dry matter]:[Journey 2 average emissions kgCO2eq/toutput dry matter]]),SUM(Upstream_emissions_table[[#This Row],[Journey 1 max emissions kgCO2eq/toutput dry matter]:[Journey 2 max emissions kgCO2eq/toutput dry matter]])),"") -> 0 | O45: =IFERROR(Upstream_emissions_table[[#This Row],[Processing at origin emissions kgCO2eq/tfeedstock dry matter]]*FF_feedstock_transport+Upstream_emissions_table[[#This Row],[Transport emissions kgCO2eq/tfeedstock dry matter]],"") -> 0 | P45: =Upstream!G25 -> 0 | Q45: =IFERROR(IF(Disaggregated_default_selector="actual values",Upstream_emissions_table[[#This Row],[Processing at origin emissions kgCO2eq/tfeedstock dry matter]]/INDEX(Consignment_LHV,MATCH(Consignments_upstream_emissions_table[[#This Row],[Consignment '#]],Consignments_mass_balance_table[Consignment '#],0))*FF_feedstock_transport*FF_processing*FF_pellet_transport,Upstream_emissions_table[[#This Row],[Disaggregated default value gCO2eq/MJpellet dry matter]]),"") ->  | R45: =IFERROR(Upstream_emissions_table[[#This Row],[Transport emissions kgCO2eq/tfeedstock dry matter]]/INDEX(Consignment_LHV,MATCH(Consignments_upstream_emissions_table[[#This Row],[Consignment '#]],Consignments_mass_balance_table[Consignment '#],0))*FF_processing*FF_pellet_transport,"") ->  | W45: =IF(ISBLANK(Emissions!AA22),"",Emissions!AA22) ->  | Z45: =IF(ISBLANK(Upstream!E25),"",Upstream!E25/lperm3*Diesel_density*Diesel_LHV) ->  | AA45: =IFERROR(Feedstock_emissions_table[[#This Row],[Consignment delivered tonnesfeedstock fresh matter]]*Upstream_diesel_emissions_table[[#This Row],[Diesel use Cultivation, harvesting, extraction and chipping MJ/toutput]],"") ->  | AB45: =IF(ISBLANK(Upstream!I25),"",Upstream!I25) ->  | AC45: =IF(ISBLANK(Upstream!J25),"",Upstream!J25) ->  | AD45: =IF(ISBLANK(Upstream!K25),"",Upstream!K25) ->  | AE45: =IFERROR(Feedstock_emissions_table[[#This Row],[Consignment delivered tonnesfeedstock fresh matter]]*Journey_1_emissions_table[[#This Row],[Distance km weighted average]],"") ->  | AF45: =IFERROR(Journey_1_emissions_table[[#This Row],[Distance t.km weighted average]]*INDEX(Transport_efficiency,MATCH(Journey_1_emissions_table[[#This Row],[Transport mode]],Transport_mode,0)),"") ->  | AG45: =IF(ISBLANK(Upstream!L25),"",Upstream!L25) ->  | AH45: =IFERROR(Feedstock_emissions_table[[#This Row],[Consignment delivered tonnesfeedstock fresh matter]]*Journey_1_emissions_table[[#This Row],[Distance km maximum]],"") ->  | AI45: =IFERROR(Journey_1_emissions_table[[#This Row],[Distance t.km maximum]]*INDEX(Transport_efficiency,MATCH(Journey_1_emissions_table[[#This Row],[Transport mode]],Transport_mode,0)),"") ->  | AJ45: =IF(ISBLANK(Upstream!I26),"",Upstream!I26) ->  | AK45: =IF(ISBLANK(Upstream!J26),"",Upstream!J26) ->  | AL45: =IF(ISBLANK(Upstream!K26),"",Upstream!K26) ->  | AM45: =IFERROR(Feedstock_emissions_table[[#This Row],[Consignment delivered tonnesfeedstock fresh matter]]*Journey_2_emissions_table[[#This Row],[Distance km weighted average]],"") ->  | AN45: =IFERROR(Journey_2_emissions_table[[#This Row],[Distance t.km weighted average]]*INDEX(Transport_efficiency,MATCH(Journey_2_emissions_table[[#This Row],[Transport mode]],Transport_mode,0)),"") ->  | AO45: =IF(ISBLANK(Upstream!L26),"",Upstream!L26) ->  | AP45: =IFERROR(Feedstock_emissions_table[[#This Row],[Consignment delivered tonnesfeedstock fresh matter]]*Journey_2_emissions_table[[#This Row],[Distance km maximum]],"") ->  | AQ45: =IFERROR(Journey_2_emissions_table[[#This Row],[Distance t.km maximum]]*INDEX(Transport_efficiency,MATCH(Journey_2_emissions_table[[#This Row],[Transport mode]],Transport_mode,0)),"") ->  | AR45: =IFERROR((Upstream_diesel_emissions_table[[#This Row],[Diesel use Cultivation, harvesting, extraction and chipping MJ]]*Diesel_EF+Upstream_diesel_emissions_table[[#This Row],[Diesel use Cultivation, harvesting, extraction and chipping MJ]]*Diesel_combustion_CH4_N2O_emissions)/gperkg,"") ->  | AS45: =IFERROR((Journey_1_emissions_table[[#This Row],[Fuel consumption MJ weighted average]]*INDEX(Transport_fuels_gCO2eq,MATCH(Journey_1_emissions_table[[#This Row],[Transport fuel]],Transport_fuels,0))+Journey_1_emissions_table[[#This Row],[Distance km weighted average]]*INDEX(Transport_exhaust_emissions,MATCH(Journey_1_emissions_table[[#This Row],[Transport mode]],Transport_mode,)))/gperkg,"") ->  | AT45: =IFERROR((Journey_2_emissions_table[[#This Row],[Fuel consumption MJ weighted average]]*INDEX(Transport_fuels_gCO2eq,MATCH(Journey_2_emissions_table[[#This Row],[Transport fuel]],Transport_fuels,0))+Journey_2_emissions_table[[#This Row],[Distance km weighted average]]*INDEX(Transport_exhaust_emissions,MATCH(Journey_2_emissions_table[[#This Row],[Transport mode]],Transport_mode,)))/gperkg,"") ->  | AU45: =IFERROR((Journey_1_emissions_table[[#This Row],[Fuel consumption MJ maximum]]*INDEX(Transport_fuels_gCO2eq,MATCH(Journey_1_emissions_table[[#This Row],[Transport fuel]],Transport_fuels,0))+Journey_1_emissions_table[[#This Row],[Distance km maximum]]*INDEX(Transport_exhaust_emissions,MATCH(Journey_1_emissions_table[[#This Row],[Transport mode]],Transport_mode,)))/gperkg,"") ->  | AV45: =IFERROR((Journey_2_emissions_table[[#This Row],[Fuel consumption MJ maximum]]*INDEX(Transport_fuels_gCO2eq,MATCH(Journey_2_emissions_table[[#This Row],[Transport fuel]],Transport_fuels,0))+Journey_2_emissions_table[[#This Row],[Distance km maximum]]*INDEX(Transport_exhaust_emissions,MATCH(Journey_2_emissions_table[[#This Row],[Transport mode]],Transport_mode,)))/gperkg,"") -> 
D46: =IF(ISBLANK(Feedstock!B18),"",Feedstock!B18) -> 10 | E46: =IF(ISBLANK(Feedstock!D18),"",Feedstock!D18) ->  | G46: =IFERROR(Upstream_total_emissions_table[[#This Row],[Diesel emissions kgCO2eq]]/Feedstock_emissions_table[[#This Row],[Consignment delivered tonnesfeedstock dry matter]],0) -> 0 | H46: =IFERROR(Upstream!F27*U23/W23,"") ->  | I46: =IFERROR(Upstream_total_emissions_table[[#This Row],[Journey 1 average emissions kgCO2eq]]/Feedstock_emissions_table[[#This Row],[Consignment delivered tonnesfeedstock dry matter]],"") ->  | J46: =IFERROR(Upstream_total_emissions_table[[#This Row],[Journey 2 average emissions kgCO2eq]]/Feedstock_emissions_table[[#This Row],[Consignment delivered tonnesfeedstock dry matter]],"") ->  | K46: =IFERROR(Upstream_total_emissions_table[[#This Row],[Journey 1 max emissions kgCO2eq]]/Feedstock_emissions_table[[#This Row],[Consignment delivered tonnesfeedstock dry matter]],"") ->  | L46: =IFERROR(Upstream_total_emissions_table[[#This Row],[Journey 2 max emissions kgCO2eq]]/Feedstock_emissions_table[[#This Row],[Consignment delivered tonnesfeedstock dry matter]],"") ->  | M46: =IFERROR(Upstream_emissions_table[[#This Row],[Diesel emissions kgCO2eq/toutput dry matter]]+Upstream_emissions_table[[#This Row],[Additional emissions kgCO2eq/toutput dry matter]],0) -> 0 | N46: =IFERROR(IF(Distance_selector="weighted average distance",SUM(Upstream_emissions_table[[#This Row],[Journey 1 average emissions kgCO2eq/toutput dry matter]:[Journey 2 average emissions kgCO2eq/toutput dry matter]]),SUM(Upstream_emissions_table[[#This Row],[Journey 1 max emissions kgCO2eq/toutput dry matter]:[Journey 2 max emissions kgCO2eq/toutput dry matter]])),"") -> 0 | O46: =IFERROR(Upstream_emissions_table[[#This Row],[Processing at origin emissions kgCO2eq/tfeedstock dry matter]]*FF_feedstock_transport+Upstream_emissions_table[[#This Row],[Transport emissions kgCO2eq/tfeedstock dry matter]],"") -> 0 | P46: =Upstream!G27 -> 0 | Q46: =IFERROR(IF(Disaggregated_default_selector="actual values",Upstream_emissions_table[[#This Row],[Processing at origin emissions kgCO2eq/tfeedstock dry matter]]/INDEX(Consignment_LHV,MATCH(Consignments_upstream_emissions_table[[#This Row],[Consignment '#]],Consignments_mass_balance_table[Consignment '#],0))*FF_feedstock_transport*FF_processing*FF_pellet_transport,Upstream_emissions_table[[#This Row],[Disaggregated default value gCO2eq/MJpellet dry matter]]),"") ->  | R46: =IFERROR(Upstream_emissions_table[[#This Row],[Transport emissions kgCO2eq/tfeedstock dry matter]]/INDEX(Consignment_LHV,MATCH(Consignments_upstream_emissions_table[[#This Row],[Consignment '#]],Consignments_mass_balance_table[Consignment '#],0))*FF_processing*FF_pellet_transport,"") ->  | W46: =IF(ISBLANK(Emissions!AA23),"",Emissions!AA23) ->  | Z46: =IF(ISBLANK(Upstream!E27),"",Upstream!E27/lperm3*Diesel_density*Diesel_LHV) ->  | AA46: =IFERROR(Feedstock_emissions_table[[#This Row],[Consignment delivered tonnesfeedstock fresh matter]]*Upstream_diesel_emissions_table[[#This Row],[Diesel use Cultivation, harvesting, extraction and chipping MJ/toutput]],"") ->  | AB46: =IF(ISBLANK(Upstream!I27),"",Upstream!I27) ->  | AC46: =IF(ISBLANK(Upstream!J27),"",Upstream!J27) ->  | AD46: =IF(ISBLANK(Upstream!K27),"",Upstream!K27) ->  | AE46: =IFERROR(Feedstock_emissions_table[[#This Row],[Consignment delivered tonnesfeedstock fresh matter]]*Journey_1_emissions_table[[#This Row],[Distance km weighted average]],"") ->  | AF46: =IFERROR(Journey_1_emissions_table[[#This Row],[Distance t.km weighted average]]*INDEX(Transport_efficiency,MATCH(Journey_1_emissions_table[[#This Row],[Transport mode]],Transport_mode,0)),"") ->  | AG46: =IF(ISBLANK(Upstream!L27),"",Upstream!L27) ->  | AH46: =IFERROR(Feedstock_emissions_table[[#This Row],[Consignment delivered tonnesfeedstock fresh matter]]*Journey_1_emissions_table[[#This Row],[Distance km maximum]],"") ->  | AI46: =IFERROR(Journey_1_emissions_table[[#This Row],[Distance t.km maximum]]*INDEX(Transport_efficiency,MATCH(Journey_1_emissions_table[[#This Row],[Transport mode]],Transport_mode,0)),"") ->  | AJ46: =IF(ISBLANK(Upstream!I28),"",Upstream!I28) ->  | AK46: =IF(ISBLANK(Upstream!J28),"",Upstream!J28) ->  | AL46: =IF(ISBLANK(Upstream!K28),"",Upstream!K28) ->  | AM46: =IFERROR(Feedstock_emissions_table[[#This Row],[Consignment delivered tonnesfeedstock fresh matter]]*Journey_2_emissions_table[[#This Row],[Distance km weighted average]],"") ->  | AN46: =IFERROR(Journey_2_emissions_table[[#This Row],[Distance t.km weighted average]]*INDEX(Transport_efficiency,MATCH(Journey_2_emissions_table[[#This Row],[Transport mode]],Transport_mode,0)),"") ->  | AO46: =IF(ISBLANK(Upstream!L28),"",Upstream!L28) ->  | AP46: =IFERROR(Feedstock_emissions_table[[#This Row],[Consignment delivered tonnesfeedstock fresh matter]]*Journey_2_emissions_table[[#This Row],[Distance km maximum]],"") ->  | AQ46: =IFERROR(Journey_2_emissions_table[[#This Row],[Distance t.km maximum]]*INDEX(Transport_efficiency,MATCH(Journey_2_emissions_table[[#This Row],[Transport mode]],Transport_mode,0)),"") ->  | AR46: =IFERROR((Upstream_diesel_emissions_table[[#This Row],[Diesel use Cultivation, harvesting, extraction and chipping MJ]]*Diesel_EF+Upstream_diesel_emissions_table[[#This Row],[Diesel use Cultivation, harvesting, extraction and chipping MJ]]*Diesel_combustion_CH4_N2O_emissions)/gperkg,"") ->  | AS46: =IFERROR((Journey_1_emissions_table[[#This Row],[Fuel consumption MJ weighted average]]*INDEX(Transport_fuels_gCO2eq,MATCH(Journey_1_emissions_table[[#This Row],[Transport fuel]],Transport_fuels,0))+Journey_1_emissions_table[[#This Row],[Distance km weighted average]]*INDEX(Transport_exhaust_emissions,MATCH(Journey_1_emissions_table[[#This Row],[Transport mode]],Transport_mode,)))/gperkg,"") ->  | AT46: =IFERROR((Journey_2_emissions_table[[#This Row],[Fuel consumption MJ weighted average]]*INDEX(Transport_fuels_gCO2eq,MATCH(Journey_2_emissions_table[[#This Row],[Transport fuel]],Transport_fuels,0))+Journey_2_emissions_table[[#This Row],[Distance km weighted average]]*INDEX(Transport_exhaust_emissions,MATCH(Journey_2_emissions_table[[#This Row],[Transport mode]],Transport_mode,)))/gperkg,"") ->  | AU46: =IFERROR((Journey_1_emissions_table[[#This Row],[Fuel consumption MJ maximum]]*INDEX(Transport_fuels_gCO2eq,MATCH(Journey_1_emissions_table[[#This Row],[Transport fuel]],Transport_fuels,0))+Journey_1_emissions_table[[#This Row],[Distance km maximum]]*INDEX(Transport_exhaust_emissions,MATCH(Journey_1_emissions_table[[#This Row],[Transport mode]],Transport_mode,)))/gperkg,"") ->  | AV46: =IFERROR((Journey_2_emissions_table[[#This Row],[Fuel consumption MJ maximum]]*INDEX(Transport_fuels_gCO2eq,MATCH(Journey_2_emissions_table[[#This Row],[Transport fuel]],Transport_fuels,0))+Journey_2_emissions_table[[#This Row],[Distance km maximum]]*INDEX(Transport_exhaust_emissions,MATCH(Journey_2_emissions_table[[#This Row],[Transport mode]],Transport_mode,)))/gperkg,"") -> 
D47: =IF(ISBLANK(Feedstock!B19),"",Feedstock!B19) -> 11 | E47: =IF(ISBLANK(Feedstock!D19),"",Feedstock!D19) ->  | G47: =IFERROR(Upstream_total_emissions_table[[#This Row],[Diesel emissions kgCO2eq]]/Feedstock_emissions_table[[#This Row],[Consignment delivered tonnesfeedstock dry matter]],0) -> 0 | H47: =IFERROR(Upstream!F29*U24/W24,"") ->  | I47: =IFERROR(Upstream_total_emissions_table[[#This Row],[Journey 1 average emissions kgCO2eq]]/Feedstock_emissions_table[[#This Row],[Consignment delivered tonnesfeedstock dry matter]],"") ->  | J47: =IFERROR(Upstream_total_emissions_table[[#This Row],[Journey 2 average emissions kgCO2eq]]/Feedstock_emissions_table[[#This Row],[Consignment delivered tonnesfeedstock dry matter]],"") ->  | K47: =IFERROR(Upstream_total_emissions_table[[#This Row],[Journey 1 max emissions kgCO2eq]]/Feedstock_emissions_table[[#This Row],[Consignment delivered tonnesfeedstock dry matter]],"") ->  | L47: =IFERROR(Upstream_total_emissions_table[[#This Row],[Journey 2 max emissions kgCO2eq]]/Feedstock_emissions_table[[#This Row],[Consignment delivered tonnesfeedstock dry matter]],"") ->  | M47: =IFERROR(Upstream_emissions_table[[#This Row],[Diesel emissions kgCO2eq/toutput dry matter]]+Upstream_emissions_table[[#This Row],[Additional emissions kgCO2eq/toutput dry matter]],0) -> 0 | N47: =IFERROR(IF(Distance_selector="weighted average distance",SUM(Upstream_emissions_table[[#This Row],[Journey 1 average emissions kgCO2eq/toutput dry matter]:[Journey 2 average emissions kgCO2eq/toutput dry matter]]),SUM(Upstream_emissions_table[[#This Row],[Journey 1 max emissions kgCO2eq/toutput dry matter]:[Journey 2 max emissions kgCO2eq/toutput dry matter]])),"") -> 0 | O47: =IFERROR(Upstream_emissions_table[[#This Row],[Processing at origin emissions kgCO2eq/tfeedstock dry matter]]*FF_feedstock_transport+Upstream_emissions_table[[#This Row],[Transport emissions kgCO2eq/tfeedstock dry matter]],"") -> 0 | P47: =Upstream!G29 -> 0 | Q47: =IFERROR(IF(Disaggregated_default_selector="actual values",Upstream_emissions_table[[#This Row],[Processing at origin emissions kgCO2eq/tfeedstock dry matter]]/INDEX(Consignment_LHV,MATCH(Consignments_upstream_emissions_table[[#This Row],[Consignment '#]],Consignments_mass_balance_table[Consignment '#],0))*FF_feedstock_transport*FF_processing*FF_pellet_transport,Upstream_emissions_table[[#This Row],[Disaggregated default value gCO2eq/MJpellet dry matter]]),"") ->  | R47: =IFERROR(Upstream_emissions_table[[#This Row],[Transport emissions kgCO2eq/tfeedstock dry matter]]/INDEX(Consignment_LHV,MATCH(Consignments_upstream_emissions_table[[#This Row],[Consignment '#]],Consignments_mass_balance_table[Consignment '#],0))*FF_processing*FF_pellet_transport,"") ->  | W47: =IF(ISBLANK(Emissions!AA24),"",Emissions!AA24) ->  | Z47: =IF(ISBLANK(Upstream!E29),"",Upstream!E29/lperm3*Diesel_density*Diesel_LHV) ->  | AA47: =IFERROR(Feedstock_emissions_table[[#This Row],[Consignment delivered tonnesfeedstock fresh matter]]*Upstream_diesel_emissions_table[[#This Row],[Diesel use Cultivation, harvesting, extraction and chipping MJ/toutput]],"") ->  | AB47: =IF(ISBLANK(Upstream!I29),"",Upstream!I29) ->  | AC47: =IF(ISBLANK(Upstream!J29),"",Upstream!J29) ->  | AD47: =IF(ISBLANK(Upstream!K29),"",Upstream!K29) ->  | AE47: =IFERROR(Feedstock_emissions_table[[#This Row],[Consignment delivered tonnesfeedstock fresh matter]]*Journey_1_emissions_table[[#This Row],[Distance km weighted average]],"") ->  | AF47: =IFERROR(Journey_1_emissions_table[[#This Row],[Distance t.km weighted average]]*INDEX(Transport_efficiency,MATCH(Journey_1_emissions_table[[#This Row],[Transport mode]],Transport_mode,0)),"") ->  | AG47: =IF(ISBLANK(Upstream!L28),"",Upstream!L28) ->  | AH47: =IFERROR(Feedstock_emissions_table[[#This Row],[Consignment delivered tonnesfeedstock fresh matter]]*Journey_1_emissions_table[[#This Row],[Distance km maximum]],"") ->  | AI47: =IFERROR(Journey_1_emissions_table[[#This Row],[Distance t.km maximum]]*INDEX(Transport_efficiency,MATCH(Journey_1_emissions_table[[#This Row],[Transport mode]],Transport_mode,0)),"") ->  | AJ47: =IF(ISBLANK(Upstream!I30),"",Upstream!I30) ->  | AK47: =IF(ISBLANK(Upstream!J30),"",Upstream!J30) ->  | AL47: =IF(ISBLANK(Upstream!K30),"",Upstream!K30) ->  | AM47: =IFERROR(Feedstock_emissions_table[[#This Row],[Consignment delivered tonnesfeedstock fresh matter]]*Journey_2_emissions_table[[#This Row],[Distance km weighted average]],"") ->  | AN47: =IFERROR(Journey_2_emissions_table[[#This Row],[Distance t.km weighted average]]*INDEX(Transport_efficiency,MATCH(Journey_2_emissions_table[[#This Row],[Transport mode]],Transport_mode,0)),"") ->  | AO47: =IF(ISBLANK(Upstream!L29),"",Upstream!L29) ->  | AP47: =IFERROR(Feedstock_emissions_table[[#This Row],[Consignment delivered tonnesfeedstock fresh matter]]*Journey_2_emissions_table[[#This Row],[Distance km maximum]],"") ->  | AQ47: =IFERROR(Journey_2_emissions_table[[#This Row],[Distance t.km maximum]]*INDEX(Transport_efficiency,MATCH(Journey_2_emissions_table[[#This Row],[Transport mode]],Transport_mode,0)),"") ->  | AR47: =IFERROR((Upstream_diesel_emissions_table[[#This Row],[Diesel use Cultivation, harvesting, extraction and chipping MJ]]*Diesel_EF+Upstream_diesel_emissions_table[[#This Row],[Diesel use Cultivation, harvesting, extraction and chipping MJ]]*Diesel_combustion_CH4_N2O_emissions)/gperkg,"") ->  | AS47: =IFERROR((Journey_1_emissions_table[[#This Row],[Fuel consumption MJ weighted average]]*INDEX(Transport_fuels_gCO2eq,MATCH(Journey_1_emissions_table[[#This Row],[Transport fuel]],Transport_fuels,0))+Journey_1_emissions_table[[#This Row],[Distance km weighted average]]*INDEX(Transport_exhaust_emissions,MATCH(Journey_1_emissions_table[[#This Row],[Transport mode]],Transport_mode,)))/gperkg,"") ->  | AT47: =IFERROR((Journey_2_emissions_table[[#This Row],[Fuel consumption MJ weighted average]]*INDEX(Transport_fuels_gCO2eq,MATCH(Journey_2_emissions_table[[#This Row],[Transport fuel]],Transport_fuels,0))+Journey_2_emissions_table[[#This Row],[Distance km weighted average]]*INDEX(Transport_exhaust_emissions,MATCH(Journey_2_emissions_table[[#This Row],[Transport mode]],Transport_mode,)))/gperkg,"") ->  | AU47: =IFERROR((Journey_1_emissions_table[[#This Row],[Fuel consumption MJ maximum]]*INDEX(Transport_fuels_gCO2eq,MATCH(Journey_1_emissions_table[[#This Row],[Transport fuel]],Transport_fuels,0))+Journey_1_emissions_table[[#This Row],[Distance km maximum]]*INDEX(Transport_exhaust_emissions,MATCH(Journey_1_emissions_table[[#This Row],[Transport mode]],Transport_mode,)))/gperkg,"") ->  | AV47: =IFERROR((Journey_2_emissions_table[[#This Row],[Fuel consumption MJ maximum]]*INDEX(Transport_fuels_gCO2eq,MATCH(Journey_2_emissions_table[[#This Row],[Transport fuel]],Transport_fuels,0))+Journey_2_emissions_table[[#This Row],[Distance km maximum]]*INDEX(Transport_exhaust_emissions,MATCH(Journey_2_emissions_table[[#This Row],[Transport mode]],Transport_mode,)))/gperkg,"") -> 
D48: =IF(ISBLANK(Feedstock!B20),"",Feedstock!B20) -> 12 | E48: =IF(ISBLANK(Feedstock!D20),"",Feedstock!D20) ->  | G48: =IFERROR(Upstream_total_emissions_table[[#This Row],[Diesel emissions kgCO2eq]]/Feedstock_emissions_table[[#This Row],[Consignment delivered tonnesfeedstock dry matter]],0) -> 0 | H48: =IFERROR(Upstream!F31*U25/W25,"") ->  | I48: =IFERROR(Upstream_total_emissions_table[[#This Row],[Journey 1 average emissions kgCO2eq]]/Feedstock_emissions_table[[#This Row],[Consignment delivered tonnesfeedstock dry matter]],"") ->  | J48: =IFERROR(Upstream_total_emissions_table[[#This Row],[Journey 2 average emissions kgCO2eq]]/Feedstock_emissions_table[[#This Row],[Consignment delivered tonnesfeedstock dry matter]],"") ->  | K48: =IFERROR(Upstream_total_emissions_table[[#This Row],[Journey 1 max emissions kgCO2eq]]/Feedstock_emissions_table[[#This Row],[Consignment delivered tonnesfeedstock dry matter]],"") ->  | L48: =IFERROR(Upstream_total_emissions_table[[#This Row],[Journey 2 max emissions kgCO2eq]]/Feedstock_emissions_table[[#This Row],[Consignment delivered tonnesfeedstock dry matter]],"") ->  | M48: =IFERROR(Upstream_emissions_table[[#This Row],[Diesel emissions kgCO2eq/toutput dry matter]]+Upstream_emissions_table[[#This Row],[Additional emissions kgCO2eq/toutput dry matter]],0) -> 0 | N48: =IFERROR(IF(Distance_selector="weighted average distance",SUM(Upstream_emissions_table[[#This Row],[Journey 1 average emissions kgCO2eq/toutput dry matter]:[Journey 2 average emissions kgCO2eq/toutput dry matter]]),SUM(Upstream_emissions_table[[#This Row],[Journey 1 max emissions kgCO2eq/toutput dry matter]:[Journey 2 max emissions kgCO2eq/toutput dry matter]])),"") -> 0 | O48: =IFERROR(Upstream_emissions_table[[#This Row],[Processing at origin emissions kgCO2eq/tfeedstock dry matter]]*FF_feedstock_transport+Upstream_emissions_table[[#This Row],[Transport emissions kgCO2eq/tfeedstock dry matter]],"") -> 0 | P48: =Upstream!G31 -> 0 | Q48: =IFERROR(IF(Disaggregated_default_selector="actual values",Upstream_emissions_table[[#This Row],[Processing at origin emissions kgCO2eq/tfeedstock dry matter]]/INDEX(Consignment_LHV,MATCH(Consignments_upstream_emissions_table[[#This Row],[Consignment '#]],Consignments_mass_balance_table[Consignment '#],0))*FF_feedstock_transport*FF_processing*FF_pellet_transport,Upstream_emissions_table[[#This Row],[Disaggregated default value gCO2eq/MJpellet dry matter]]),"") ->  | R48: =IFERROR(Upstream_emissions_table[[#This Row],[Transport emissions kgCO2eq/tfeedstock dry matter]]/INDEX(Consignment_LHV,MATCH(Consignments_upstream_emissions_table[[#This Row],[Consignment '#]],Consignments_mass_balance_table[Consignment '#],0))*FF_processing*FF_pellet_transport,"") ->  | W48: =IF(ISBLANK(Emissions!AA25),"",Emissions!AA25) ->  | Z48: =IF(ISBLANK(Upstream!E31),"",Upstream!E31/lperm3*Diesel_density*Diesel_LHV) ->  | AA48: =IFERROR(Feedstock_emissions_table[[#This Row],[Consignment delivered tonnesfeedstock fresh matter]]*Upstream_diesel_emissions_table[[#This Row],[Diesel use Cultivation, harvesting, extraction and chipping MJ/toutput]],"") ->  | AB48: =IF(ISBLANK(Upstream!I31),"",Upstream!I31) ->  | AC48: =IF(ISBLANK(Upstream!J31),"",Upstream!J31) ->  | AD48: =IF(ISBLANK(Upstream!K31),"",Upstream!K31) ->  | AE48: =IFERROR(Feedstock_emissions_table[[#This Row],[Consignment delivered tonnesfeedstock fresh matter]]*Journey_1_emissions_table[[#This Row],[Distance km weighted average]],"") ->  | AF48: =IFERROR(Journey_1_emissions_table[[#This Row],[Distance t.km weighted average]]*INDEX(Transport_efficiency,MATCH(Journey_1_emissions_table[[#This Row],[Transport mode]],Transport_mode,0)),"") ->  | AG48: =IF(ISBLANK(Upstream!L29),"",Upstream!L29) ->  | AH48: =IFERROR(Feedstock_emissions_table[[#This Row],[Consignment delivered tonnesfeedstock fresh matter]]*Journey_1_emissions_table[[#This Row],[Distance km maximum]],"") ->  | AI48: =IFERROR(Journey_1_emissions_table[[#This Row],[Distance t.km maximum]]*INDEX(Transport_efficiency,MATCH(Journey_1_emissions_table[[#This Row],[Transport mode]],Transport_mode,0)),"") ->  | AJ48: =IF(ISBLANK(Upstream!I32),"",Upstream!I32) ->  | AK48: =IF(ISBLANK(Upstream!J32),"",Upstream!J32) ->  | AL48: =IF(ISBLANK(Upstream!K32),"",Upstream!K32) ->  | AM48: =IFERROR(Feedstock_emissions_table[[#This Row],[Consignment delivered tonnesfeedstock fresh matter]]*Journey_2_emissions_table[[#This Row],[Distance km weighted average]],"") ->  | AN48: =IFERROR(Journey_2_emissions_table[[#This Row],[Distance t.km weighted average]]*INDEX(Transport_efficiency,MATCH(Journey_2_emissions_table[[#This Row],[Transport mode]],Transport_mode,0)),"") ->  | AO48: =IF(ISBLANK(Upstream!L30),"",Upstream!L30) ->  | AP48: =IFERROR(Feedstock_emissions_table[[#This Row],[Consignment delivered tonnesfeedstock fresh matter]]*Journey_2_emissions_table[[#This Row],[Distance km maximum]],"") ->  | AQ48: =IFERROR(Journey_2_emissions_table[[#This Row],[Distance t.km maximum]]*INDEX(Transport_efficiency,MATCH(Journey_2_emissions_table[[#This Row],[Transport mode]],Transport_mode,0)),"") ->  | AR48: =IFERROR((Upstream_diesel_emissions_table[[#This Row],[Diesel use Cultivation, harvesting, extraction and chipping MJ]]*Diesel_EF+Upstream_diesel_emissions_table[[#This Row],[Diesel use Cultivation, harvesting, extraction and chipping MJ]]*Diesel_combustion_CH4_N2O_emissions)/gperkg,"") ->  | AS48: =IFERROR((Journey_1_emissions_table[[#This Row],[Fuel consumption MJ weighted average]]*INDEX(Transport_fuels_gCO2eq,MATCH(Journey_1_emissions_table[[#This Row],[Transport fuel]],Transport_fuels,0))+Journey_1_emissions_table[[#This Row],[Distance km weighted average]]*INDEX(Transport_exhaust_emissions,MATCH(Journey_1_emissions_table[[#This Row],[Transport mode]],Transport_mode,)))/gperkg,"") ->  | AT48: =IFERROR((Journey_2_emissions_table[[#This Row],[Fuel consumption MJ weighted average]]*INDEX(Transport_fuels_gCO2eq,MATCH(Journey_2_emissions_table[[#This Row],[Transport fuel]],Transport_fuels,0))+Journey_2_emissions_table[[#This Row],[Distance km weighted average]]*INDEX(Transport_exhaust_emissions,MATCH(Journey_2_emissions_table[[#This Row],[Transport mode]],Transport_mode,)))/gperkg,"") ->  | AU48: =IFERROR((Journey_1_emissions_table[[#This Row],[Fuel consumption MJ maximum]]*INDEX(Transport_fuels_gCO2eq,MATCH(Journey_1_emissions_table[[#This Row],[Transport fuel]],Transport_fuels,0))+Journey_1_emissions_table[[#This Row],[Distance km maximum]]*INDEX(Transport_exhaust_emissions,MATCH(Journey_1_emissions_table[[#This Row],[Transport mode]],Transport_mode,)))/gperkg,"") ->  | AV48: =IFERROR((Journey_2_emissions_table[[#This Row],[Fuel consumption MJ maximum]]*INDEX(Transport_fuels_gCO2eq,MATCH(Journey_2_emissions_table[[#This Row],[Transport fuel]],Transport_fuels,0))+Journey_2_emissions_table[[#This Row],[Distance km maximum]]*INDEX(Transport_exhaust_emissions,MATCH(Journey_2_emissions_table[[#This Row],[Transport mode]],Transport_mode,)))/gperkg,"") -> 
D49: =IF(ISBLANK(Feedstock!B21),"",Feedstock!B21) -> 13 | E49: =IF(ISBLANK(Feedstock!D21),"",Feedstock!D21) ->  | G49: =IFERROR(Upstream_total_emissions_table[[#This Row],[Diesel emissions kgCO2eq]]/Feedstock_emissions_table[[#This Row],[Consignment delivered tonnesfeedstock dry matter]],0) -> 0 | H49: =IFERROR(Upstream!F33*U26/W26,"") ->  | I49: =IFERROR(Upstream_total_emissions_table[[#This Row],[Journey 1 average emissions kgCO2eq]]/Feedstock_emissions_table[[#This Row],[Consignment delivered tonnesfeedstock dry matter]],"") ->  | J49: =IFERROR(Upstream_total_emissions_table[[#This Row],[Journey 2 average emissions kgCO2eq]]/Feedstock_emissions_table[[#This Row],[Consignment delivered tonnesfeedstock dry matter]],"") ->  | K49: =IFERROR(Upstream_total_emissions_table[[#This Row],[Journey 1 max emissions kgCO2eq]]/Feedstock_emissions_table[[#This Row],[Consignment delivered tonnesfeedstock dry matter]],"") ->  | L49: =IFERROR(Upstream_total_emissions_table[[#This Row],[Journey 2 max emissions kgCO2eq]]/Feedstock_emissions_table[[#This Row],[Consignment delivered tonnesfeedstock dry matter]],"") ->  | M49: =IFERROR(Upstream_emissions_table[[#This Row],[Diesel emissions kgCO2eq/toutput dry matter]]+Upstream_emissions_table[[#This Row],[Additional emissions kgCO2eq/toutput dry matter]],0) -> 0 | N49: =IFERROR(IF(Distance_selector="weighted average distance",SUM(Upstream_emissions_table[[#This Row],[Journey 1 average emissions kgCO2eq/toutput dry matter]:[Journey 2 average emissions kgCO2eq/toutput dry matter]]),SUM(Upstream_emissions_table[[#This Row],[Journey 1 max emissions kgCO2eq/toutput dry matter]:[Journey 2 max emissions kgCO2eq/toutput dry matter]])),"") -> 0 | O49: =IFERROR(Upstream_emissions_table[[#This Row],[Processing at origin emissions kgCO2eq/tfeedstock dry matter]]*FF_feedstock_transport+Upstream_emissions_table[[#This Row],[Transport emissions kgCO2eq/tfeedstock dry matter]],"") -> 0 | P49: =Upstream!G33 -> 0 | Q49: =IFERROR(IF(Disaggregated_default_selector="actual values",Upstream_emissions_table[[#This Row],[Processing at origin emissions kgCO2eq/tfeedstock dry matter]]/INDEX(Consignment_LHV,MATCH(Consignments_upstream_emissions_table[[#This Row],[Consignment '#]],Consignments_mass_balance_table[Consignment '#],0))*FF_feedstock_transport*FF_processing*FF_pellet_transport,Upstream_emissions_table[[#This Row],[Disaggregated default value gCO2eq/MJpellet dry matter]]),"") ->  | R49: =IFERROR(Upstream_emissions_table[[#This Row],[Transport emissions kgCO2eq/tfeedstock dry matter]]/INDEX(Consignment_LHV,MATCH(Consignments_upstream_emissions_table[[#This Row],[Consignment '#]],Consignments_mass_balance_table[Consignment '#],0))*FF_processing*FF_pellet_transport,"") ->  | W49: =IF(ISBLANK(Emissions!AA26),"",Emissions!AA26) ->  | Z49: =IF(ISBLANK(Upstream!E33),"",Upstream!E33/lperm3*Diesel_density*Diesel_LHV) ->  | AA49: =IFERROR(Feedstock_emissions_table[[#This Row],[Consignment delivered tonnesfeedstock fresh matter]]*Upstream_diesel_emissions_table[[#This Row],[Diesel use Cultivation, harvesting, extraction and chipping MJ/toutput]],"") ->  | AB49: =IF(ISBLANK(Upstream!I33),"",Upstream!I33) ->  | AC49: =IF(ISBLANK(Upstream!J33),"",Upstream!J33) ->  | AD49: =IF(ISBLANK(Upstream!K33),"",Upstream!K33) ->  | AE49: =IFERROR(Feedstock_emissions_table[[#This Row],[Consignment delivered tonnesfeedstock fresh matter]]*Journey_1_emissions_table[[#This Row],[Distance km weighted average]],"") ->  | AF49: =IFERROR(Journey_1_emissions_table[[#This Row],[Distance t.km weighted average]]*INDEX(Transport_efficiency,MATCH(Journey_1_emissions_table[[#This Row],[Transport mode]],Transport_mode,0)),"") ->  | AG49: =IF(ISBLANK(Upstream!L30),"",Upstream!L30) ->  | AH49: =IFERROR(Feedstock_emissions_table[[#This Row],[Consignment delivered tonnesfeedstock fresh matter]]*Journey_1_emissions_table[[#This Row],[Distance km maximum]],"") ->  | AI49: =IFERROR(Journey_1_emissions_table[[#This Row],[Distance t.km maximum]]*INDEX(Transport_efficiency,MATCH(Journey_1_emissions_table[[#This Row],[Transport mode]],Transport_mode,0)),"") ->  | AJ49: =IF(ISBLANK(Upstream!I34),"",Upstream!I34) ->  | AK49: =IF(ISBLANK(Upstream!J34),"",Upstream!J34) ->  | AL49: =IF(ISBLANK(Upstream!K34),"",Upstream!K34) ->  | AM49: =IFERROR(Feedstock_emissions_table[[#This Row],[Consignment delivered tonnesfeedstock fresh matter]]*Journey_2_emissions_table[[#This Row],[Distance km weighted average]],"") ->  | AN49: =IFERROR(Journey_2_emissions_table[[#This Row],[Distance t.km weighted average]]*INDEX(Transport_efficiency,MATCH(Journey_2_emissions_table[[#This Row],[Transport mode]],Transport_mode,0)),"") ->  | AO49: =IF(ISBLANK(Upstream!L31),"",Upstream!L31) ->  | AP49: =IFERROR(Feedstock_emissions_table[[#This Row],[Consignment delivered tonnesfeedstock fresh matter]]*Journey_2_emissions_table[[#This Row],[Distance km maximum]],"") ->  | AQ49: =IFERROR(Journey_2_emissions_table[[#This Row],[Distance t.km maximum]]*INDEX(Transport_efficiency,MATCH(Journey_2_emissions_table[[#This Row],[Transport mode]],Transport_mode,0)),"") ->  | AR49: =IFERROR((Upstream_diesel_emissions_table[[#This Row],[Diesel use Cultivation, harvesting, extraction and chipping MJ]]*Diesel_EF+Upstream_diesel_emissions_table[[#This Row],[Diesel use Cultivation, harvesting, extraction and chipping MJ]]*Diesel_combustion_CH4_N2O_emissions)/gperkg,"") ->  | AS49: =IFERROR((Journey_1_emissions_table[[#This Row],[Fuel consumption MJ weighted average]]*INDEX(Transport_fuels_gCO2eq,MATCH(Journey_1_emissions_table[[#This Row],[Transport fuel]],Transport_fuels,0))+Journey_1_emissions_table[[#This Row],[Distance km weighted average]]*INDEX(Transport_exhaust_emissions,MATCH(Journey_1_emissions_table[[#This Row],[Transport mode]],Transport_mode,)))/gperkg,"") ->  | AT49: =IFERROR((Journey_2_emissions_table[[#This Row],[Fuel consumption MJ weighted average]]*INDEX(Transport_fuels_gCO2eq,MATCH(Journey_2_emissions_table[[#This Row],[Transport fuel]],Transport_fuels,0))+Journey_2_emissions_table[[#This Row],[Distance km weighted average]]*INDEX(Transport_exhaust_emissions,MATCH(Journey_2_emissions_table[[#This Row],[Transport mode]],Transport_mode,)))/gperkg,"") ->  | AU49: =IFERROR((Journey_1_emissions_table[[#This Row],[Fuel consumption MJ maximum]]*INDEX(Transport_fuels_gCO2eq,MATCH(Journey_1_emissions_table[[#This Row],[Transport fuel]],Transport_fuels,0))+Journey_1_emissions_table[[#This Row],[Distance km maximum]]*INDEX(Transport_exhaust_emissions,MATCH(Journey_1_emissions_table[[#This Row],[Transport mode]],Transport_mode,)))/gperkg,"") ->  | AV49: =IFERROR((Journey_2_emissions_table[[#This Row],[Fuel consumption MJ maximum]]*INDEX(Transport_fuels_gCO2eq,MATCH(Journey_2_emissions_table[[#This Row],[Transport fuel]],Transport_fuels,0))+Journey_2_emissions_table[[#This Row],[Distance km maximum]]*INDEX(Transport_exhaust_emissions,MATCH(Journey_2_emissions_table[[#This Row],[Transport mode]],Transport_mode,)))/gperkg,"") -> 
D50: =IF(ISBLANK(Feedstock!B22),"",Feedstock!B22) -> 14 | E50: =IF(ISBLANK(Feedstock!D22),"",Feedstock!D22) ->  | G50: =IFERROR(Upstream_total_emissions_table[[#This Row],[Diesel emissions kgCO2eq]]/Feedstock_emissions_table[[#This Row],[Consignment delivered tonnesfeedstock dry matter]],0) -> 0 | H50: =IFERROR(Upstream!F35*U27/W27,"") ->  | I50: =IFERROR(Upstream_total_emissions_table[[#This Row],[Journey 1 average emissions kgCO2eq]]/Feedstock_emissions_table[[#This Row],[Consignment delivered tonnesfeedstock dry matter]],"") ->  | J50: =IFERROR(Upstream_total_emissions_table[[#This Row],[Journey 2 average emissions kgCO2eq]]/Feedstock_emissions_table[[#This Row],[Consignment delivered tonnesfeedstock dry matter]],"") ->  | K50: =IFERROR(Upstream_total_emissions_table[[#This Row],[Journey 1 max emissions kgCO2eq]]/Feedstock_emissions_table[[#This Row],[Consignment delivered tonnesfeedstock dry matter]],"") ->  | L50: =IFERROR(Upstream_total_emissions_table[[#This Row],[Journey 2 max emissions kgCO2eq]]/Feedstock_emissions_table[[#This Row],[Consignment delivered tonnesfeedstock dry matter]],"") ->  | M50: =IFERROR(Upstream_emissions_table[[#This Row],[Diesel emissions kgCO2eq/toutput dry matter]]+Upstream_emissions_table[[#This Row],[Additional emissions kgCO2eq/toutput dry matter]],0) -> 0 | N50: =IFERROR(IF(Distance_selector="weighted average distance",SUM(Upstream_emissions_table[[#This Row],[Journey 1 average emissions kgCO2eq/toutput dry matter]:[Journey 2 average emissions kgCO2eq/toutput dry matter]]),SUM(Upstream_emissions_table[[#This Row],[Journey 1 max emissions kgCO2eq/toutput dry matter]:[Journey 2 max emissions kgCO2eq/toutput dry matter]])),"") -> 0 | O50: =IFERROR(Upstream_emissions_table[[#This Row],[Processing at origin emissions kgCO2eq/tfeedstock dry matter]]*FF_feedstock_transport+Upstream_emissions_table[[#This Row],[Transport emissions kgCO2eq/tfeedstock dry matter]],"") -> 0 | P50: =Upstream!G35 -> 0 | Q50: =IFERROR(IF(Disaggregated_default_selector="actual values",Upstream_emissions_table[[#This Row],[Processing at origin emissions kgCO2eq/tfeedstock dry matter]]/INDEX(Consignment_LHV,MATCH(Consignments_upstream_emissions_table[[#This Row],[Consignment '#]],Consignments_mass_balance_table[Consignment '#],0))*FF_feedstock_transport*FF_processing*FF_pellet_transport,Upstream_emissions_table[[#This Row],[Disaggregated default value gCO2eq/MJpellet dry matter]]),"") ->  | R50: =IFERROR(Upstream_emissions_table[[#This Row],[Transport emissions kgCO2eq/tfeedstock dry matter]]/INDEX(Consignment_LHV,MATCH(Consignments_upstream_emissions_table[[#This Row],[Consignment '#]],Consignments_mass_balance_table[Consignment '#],0))*FF_processing*FF_pellet_transport,"") ->  | W50: =IF(ISBLANK(Emissions!AA27),"",Emissions!AA27) ->  | Z50: =IF(ISBLANK(Upstream!E35),"",Upstream!E35/lperm3*Diesel_density*Diesel_LHV) ->  | AA50: =IFERROR(Feedstock_emissions_table[[#This Row],[Consignment delivered tonnesfeedstock fresh matter]]*Upstream_diesel_emissions_table[[#This Row],[Diesel use Cultivation, harvesting, extraction and chipping MJ/toutput]],"") ->  | AB50: =IF(ISBLANK(Upstream!I35),"",Upstream!I35) ->  | AC50: =IF(ISBLANK(Upstream!J35),"",Upstream!J35) ->  | AD50: =IF(ISBLANK(Upstream!K35),"",Upstream!K35) ->  | AE50: =IFERROR(Feedstock_emissions_table[[#This Row],[Consignment delivered tonnesfeedstock fresh matter]]*Journey_1_emissions_table[[#This Row],[Distance km weighted average]],"") ->  | AF50: =IFERROR(Journey_1_emissions_table[[#This Row],[Distance t.km weighted average]]*INDEX(Transport_efficiency,MATCH(Journey_1_emissions_table[[#This Row],[Transport mode]],Transport_mode,0)),"") ->  | AG50: =IF(ISBLANK(Upstream!L31),"",Upstream!L31) ->  | AH50: =IFERROR(Feedstock_emissions_table[[#This Row],[Consignment delivered tonnesfeedstock fresh matter]]*Journey_1_emissions_table[[#This Row],[Distance km maximum]],"") ->  | AI50: =IFERROR(Journey_1_emissions_table[[#This Row],[Distance t.km maximum]]*INDEX(Transport_efficiency,MATCH(Journey_1_emissions_table[[#This Row],[Transport mode]],Transport_mode,0)),"") ->  | AJ50: =IF(ISBLANK(Upstream!I36),"",Upstream!I36) ->  | AK50: =IF(ISBLANK(Upstream!J36),"",Upstream!J36) ->  | AL50: =IF(ISBLANK(Upstream!K36),"",Upstream!K36) ->  | AM50: =IFERROR(Feedstock_emissions_table[[#This Row],[Consignment delivered tonnesfeedstock fresh matter]]*Journey_2_emissions_table[[#This Row],[Distance km weighted average]],"") ->  | AN50: =IFERROR(Journey_2_emissions_table[[#This Row],[Distance t.km weighted average]]*INDEX(Transport_efficiency,MATCH(Journey_2_emissions_table[[#This Row],[Transport mode]],Transport_mode,0)),"") ->  | AO50: =IF(ISBLANK(Upstream!L32),"",Upstream!L32) ->  | AP50: =IFERROR(Feedstock_emissions_table[[#This Row],[Consignment delivered tonnesfeedstock fresh matter]]*Journey_2_emissions_table[[#This Row],[Distance km maximum]],"") ->  | AQ50: =IFERROR(Journey_2_emissions_table[[#This Row],[Distance t.km maximum]]*INDEX(Transport_efficiency,MATCH(Journey_2_emissions_table[[#This Row],[Transport mode]],Transport_mode,0)),"") ->  | AR50: =IFERROR((Upstream_diesel_emissions_table[[#This Row],[Diesel use Cultivation, harvesting, extraction and chipping MJ]]*Diesel_EF+Upstream_diesel_emissions_table[[#This Row],[Diesel use Cultivation, harvesting, extraction and chipping MJ]]*Diesel_combustion_CH4_N2O_emissions)/gperkg,"") ->  | AS50: =IFERROR((Journey_1_emissions_table[[#This Row],[Fuel consumption MJ weighted average]]*INDEX(Transport_fuels_gCO2eq,MATCH(Journey_1_emissions_table[[#This Row],[Transport fuel]],Transport_fuels,0))+Journey_1_emissions_table[[#This Row],[Distance km weighted average]]*INDEX(Transport_exhaust_emissions,MATCH(Journey_1_emissions_table[[#This Row],[Transport mode]],Transport_mode,)))/gperkg,"") ->  | AT50: =IFERROR((Journey_2_emissions_table[[#This Row],[Fuel consumption MJ weighted average]]*INDEX(Transport_fuels_gCO2eq,MATCH(Journey_2_emissions_table[[#This Row],[Transport fuel]],Transport_fuels,0))+Journey_2_emissions_table[[#This Row],[Distance km weighted average]]*INDEX(Transport_exhaust_emissions,MATCH(Journey_2_emissions_table[[#This Row],[Transport mode]],Transport_mode,)))/gperkg,"") ->  | AU50: =IFERROR((Journey_1_emissions_table[[#This Row],[Fuel consumption MJ maximum]]*INDEX(Transport_fuels_gCO2eq,MATCH(Journey_1_emissions_table[[#This Row],[Transport fuel]],Transport_fuels,0))+Journey_1_emissions_table[[#This Row],[Distance km maximum]]*INDEX(Transport_exhaust_emissions,MATCH(Journey_1_emissions_table[[#This Row],[Transport mode]],Transport_mode,)))/gperkg,"") ->  | AV50: =IFERROR((Journey_2_emissions_table[[#This Row],[Fuel consumption MJ maximum]]*INDEX(Transport_fuels_gCO2eq,MATCH(Journey_2_emissions_table[[#This Row],[Transport fuel]],Transport_fuels,0))+Journey_2_emissions_table[[#This Row],[Distance km maximum]]*INDEX(Transport_exhaust_emissions,MATCH(Journey_2_emissions_table[[#This Row],[Transport mode]],Transport_mode,)))/gperkg,"") -> 
D51: =IF(ISBLANK(Feedstock!B23),"",Feedstock!B23) -> 15 | E51: =IF(ISBLANK(Feedstock!D23),"",Feedstock!D23) ->  | G51: =IFERROR(Upstream_total_emissions_table[[#This Row],[Diesel emissions kgCO2eq]]/Feedstock_emissions_table[[#This Row],[Consignment delivered tonnesfeedstock dry matter]],0) -> 0 | H51: =IFERROR(Upstream!F37*U28/W28,"") ->  | I51: =IFERROR(Upstream_total_emissions_table[[#This Row],[Journey 1 average emissions kgCO2eq]]/Feedstock_emissions_table[[#This Row],[Consignment delivered tonnesfeedstock dry matter]],"") ->  | J51: =IFERROR(Upstream_total_emissions_table[[#This Row],[Journey 2 average emissions kgCO2eq]]/Feedstock_emissions_table[[#This Row],[Consignment delivered tonnesfeedstock dry matter]],"") ->  | K51: =IFERROR(Upstream_total_emissions_table[[#This Row],[Journey 1 max emissions kgCO2eq]]/Feedstock_emissions_table[[#This Row],[Consignment delivered tonnesfeedstock dry matter]],"") ->  | L51: =IFERROR(Upstream_total_emissions_table[[#This Row],[Journey 2 max emissions kgCO2eq]]/Feedstock_emissions_table[[#This Row],[Consignment delivered tonnesfeedstock dry matter]],"") ->  | M51: =IFERROR(Upstream_emissions_table[[#This Row],[Diesel emissions kgCO2eq/toutput dry matter]]+Upstream_emissions_table[[#This Row],[Additional emissions kgCO2eq/toutput dry matter]],0) -> 0 | N51: =IFERROR(IF(Distance_selector="weighted average distance",SUM(Upstream_emissions_table[[#This Row],[Journey 1 average emissions kgCO2eq/toutput dry matter]:[Journey 2 average emissions kgCO2eq/toutput dry matter]]),SUM(Upstream_emissions_table[[#This Row],[Journey 1 max emissions kgCO2eq/toutput dry matter]:[Journey 2 max emissions kgCO2eq/toutput dry matter]])),"") -> 0 | O51: =IFERROR(Upstream_emissions_table[[#This Row],[Processing at origin emissions kgCO2eq/tfeedstock dry matter]]*FF_feedstock_transport+Upstream_emissions_table[[#This Row],[Transport emissions kgCO2eq/tfeedstock dry matter]],"") -> 0 | P51: =Upstream!G37 -> 0 | Q51: =IFERROR(IF(Disaggregated_default_selector="actual values",Upstream_emissions_table[[#This Row],[Processing at origin emissions kgCO2eq/tfeedstock dry matter]]/INDEX(Consignment_LHV,MATCH(Consignments_upstream_emissions_table[[#This Row],[Consignment '#]],Consignments_mass_balance_table[Consignment '#],0))*FF_feedstock_transport*FF_processing*FF_pellet_transport,Upstream_emissions_table[[#This Row],[Disaggregated default value gCO2eq/MJpellet dry matter]]),"") ->  | R51: =IFERROR(Upstream_emissions_table[[#This Row],[Transport emissions kgCO2eq/tfeedstock dry matter]]/INDEX(Consignment_LHV,MATCH(Consignments_upstream_emissions_table[[#This Row],[Consignment '#]],Consignments_mass_balance_table[Consignment '#],0))*FF_processing*FF_pellet_transport,"") ->  | W51: =IF(ISBLANK(Emissions!AA28),"",Emissions!AA28) ->  | Z51: =IF(ISBLANK(Upstream!E37),"",Upstream!E37/lperm3*Diesel_density*Diesel_LHV) ->  | AA51: =IFERROR(Feedstock_emissions_table[[#This Row],[Consignment delivered tonnesfeedstock fresh matter]]*Upstream_diesel_emissions_table[[#This Row],[Diesel use Cultivation, harvesting, extraction and chipping MJ/toutput]],"") ->  | AB51: =IF(ISBLANK(Upstream!I37),"",Upstream!I37) ->  | AC51: =IF(ISBLANK(Upstream!J37),"",Upstream!J37) ->  | AD51: =IF(ISBLANK(Upstream!K37),"",Upstream!K37) ->  | AE51: =IFERROR(Feedstock_emissions_table[[#This Row],[Consignment delivered tonnesfeedstock fresh matter]]*Journey_1_emissions_table[[#This Row],[Distance km weighted average]],"") ->  | AF51: =IFERROR(Journey_1_emissions_table[[#This Row],[Distance t.km weighted average]]*INDEX(Transport_efficiency,MATCH(Journey_1_emissions_table[[#This Row],[Transport mode]],Transport_mode,0)),"") ->  | AG51: =IF(ISBLANK(Upstream!L32),"",Upstream!L32) ->  | AH51: =IFERROR(Feedstock_emissions_table[[#This Row],[Consignment delivered tonnesfeedstock fresh matter]]*Journey_1_emissions_table[[#This Row],[Distance km maximum]],"") ->  | AI51: =IFERROR(Journey_1_emissions_table[[#This Row],[Distance t.km maximum]]*INDEX(Transport_efficiency,MATCH(Journey_1_emissions_table[[#This Row],[Transport mode]],Transport_mode,0)),"") ->  | AJ51: =IF(ISBLANK(Upstream!I38),"",Upstream!I38) ->  | AK51: =IF(ISBLANK(Upstream!J38),"",Upstream!J38) ->  | AL51: =IF(ISBLANK(Upstream!K38),"",Upstream!K38) ->  | AM51: =IFERROR(Feedstock_emissions_table[[#This Row],[Consignment delivered tonnesfeedstock fresh matter]]*Journey_2_emissions_table[[#This Row],[Distance km weighted average]],"") ->  | AN51: =IFERROR(Journey_2_emissions_table[[#This Row],[Distance t.km weighted average]]*INDEX(Transport_efficiency,MATCH(Journey_2_emissions_table[[#This Row],[Transport mode]],Transport_mode,0)),"") ->  | AO51: =IF(ISBLANK(Upstream!L33),"",Upstream!L33) ->  | AP51: =IFERROR(Feedstock_emissions_table[[#This Row],[Consignment delivered tonnesfeedstock fresh matter]]*Journey_2_emissions_table[[#This Row],[Distance km maximum]],"") ->  | AQ51: =IFERROR(Journey_2_emissions_table[[#This Row],[Distance t.km maximum]]*INDEX(Transport_efficiency,MATCH(Journey_2_emissions_table[[#This Row],[Transport mode]],Transport_mode,0)),"") ->  | AR51: =IFERROR((Upstream_diesel_emissions_table[[#This Row],[Diesel use Cultivation, harvesting, extraction and chipping MJ]]*Diesel_EF+Upstream_diesel_emissions_table[[#This Row],[Diesel use Cultivation, harvesting, extraction and chipping MJ]]*Diesel_combustion_CH4_N2O_emissions)/gperkg,"") ->  | AS51: =IFERROR((Journey_1_emissions_table[[#This Row],[Fuel consumption MJ weighted average]]*INDEX(Transport_fuels_gCO2eq,MATCH(Journey_1_emissions_table[[#This Row],[Transport fuel]],Transport_fuels,0))+Journey_1_emissions_table[[#This Row],[Distance km weighted average]]*INDEX(Transport_exhaust_emissions,MATCH(Journey_1_emissions_table[[#This Row],[Transport mode]],Transport_mode,)))/gperkg,"") ->  | AT51: =IFERROR((Journey_2_emissions_table[[#This Row],[Fuel consumption MJ weighted average]]*INDEX(Transport_fuels_gCO2eq,MATCH(Journey_2_emissions_table[[#This Row],[Transport fuel]],Transport_fuels,0))+Journey_2_emissions_table[[#This Row],[Distance km weighted average]]*INDEX(Transport_exhaust_emissions,MATCH(Journey_2_emissions_table[[#This Row],[Transport mode]],Transport_mode,)))/gperkg,"") ->  | AU51: =IFERROR((Journey_1_emissions_table[[#This Row],[Fuel consumption MJ maximum]]*INDEX(Transport_fuels_gCO2eq,MATCH(Journey_1_emissions_table[[#This Row],[Transport fuel]],Transport_fuels,0))+Journey_1_emissions_table[[#This Row],[Distance km maximum]]*INDEX(Transport_exhaust_emissions,MATCH(Journey_1_emissions_table[[#This Row],[Transport mode]],Transport_mode,)))/gperkg,"") ->  | AV51: =IFERROR((Journey_2_emissions_table[[#This Row],[Fuel consumption MJ maximum]]*INDEX(Transport_fuels_gCO2eq,MATCH(Journey_2_emissions_table[[#This Row],[Transport fuel]],Transport_fuels,0))+Journey_2_emissions_table[[#This Row],[Distance km maximum]]*INDEX(Transport_exhaust_emissions,MATCH(Journey_2_emissions_table[[#This Row],[Transport mode]],Transport_mode,)))/gperkg,"") -> 
D52: =IF(ISBLANK(Feedstock!B24),"",Feedstock!B24) -> 16 | E52: =IF(ISBLANK(Feedstock!D24),"",Feedstock!D24) ->  | G52: =IFERROR(Upstream_total_emissions_table[[#This Row],[Diesel emissions kgCO2eq]]/Feedstock_emissions_table[[#This Row],[Consignment delivered tonnesfeedstock dry matter]],0) -> 0 | H52: =IFERROR(Upstream!F39*U29/W29,"") ->  | I52: =IFERROR(Upstream_total_emissions_table[[#This Row],[Journey 1 average emissions kgCO2eq]]/Feedstock_emissions_table[[#This Row],[Consignment delivered tonnesfeedstock dry matter]],"") ->  | J52: =IFERROR(Upstream_total_emissions_table[[#This Row],[Journey 2 average emissions kgCO2eq]]/Feedstock_emissions_table[[#This Row],[Consignment delivered tonnesfeedstock dry matter]],"") ->  | K52: =IFERROR(Upstream_total_emissions_table[[#This Row],[Journey 1 max emissions kgCO2eq]]/Feedstock_emissions_table[[#This Row],[Consignment delivered tonnesfeedstock dry matter]],"") ->  | L52: =IFERROR(Upstream_total_emissions_table[[#This Row],[Journey 2 max emissions kgCO2eq]]/Feedstock_emissions_table[[#This Row],[Consignment delivered tonnesfeedstock dry matter]],"") ->  | M52: =IFERROR(Upstream_emissions_table[[#This Row],[Diesel emissions kgCO2eq/toutput dry matter]]+Upstream_emissions_table[[#This Row],[Additional emissions kgCO2eq/toutput dry matter]],0) -> 0 | N52: =IFERROR(IF(Distance_selector="weighted average distance",SUM(Upstream_emissions_table[[#This Row],[Journey 1 average emissions kgCO2eq/toutput dry matter]:[Journey 2 average emissions kgCO2eq/toutput dry matter]]),SUM(Upstream_emissions_table[[#This Row],[Journey 1 max emissions kgCO2eq/toutput dry matter]:[Journey 2 max emissions kgCO2eq/toutput dry matter]])),"") -> 0 | O52: =IFERROR(Upstream_emissions_table[[#This Row],[Processing at origin emissions kgCO2eq/tfeedstock dry matter]]*FF_feedstock_transport+Upstream_emissions_table[[#This Row],[Transport emissions kgCO2eq/tfeedstock dry matter]],"") -> 0 | P52: =Upstream!G39 -> 0 | Q52: =IFERROR(IF(Disaggregated_default_selector="actual values",Upstream_emissions_table[[#This Row],[Processing at origin emissions kgCO2eq/tfeedstock dry matter]]/INDEX(Consignment_LHV,MATCH(Consignments_upstream_emissions_table[[#This Row],[Consignment '#]],Consignments_mass_balance_table[Consignment '#],0))*FF_feedstock_transport*FF_processing*FF_pellet_transport,Upstream_emissions_table[[#This Row],[Disaggregated default value gCO2eq/MJpellet dry matter]]),"") ->  | R52: =IFERROR(Upstream_emissions_table[[#This Row],[Transport emissions kgCO2eq/tfeedstock dry matter]]/INDEX(Consignment_LHV,MATCH(Consignments_upstream_emissions_table[[#This Row],[Consignment '#]],Consignments_mass_balance_table[Consignment '#],0))*FF_processing*FF_pellet_transport,"") ->  | W52: =IF(ISBLANK(Emissions!AA29),"",Emissions!AA29) ->  | Z52: =IF(ISBLANK(Upstream!E39),"",Upstream!E39/lperm3*Diesel_density*Diesel_LHV) ->  | AA52: =IFERROR(Feedstock_emissions_table[[#This Row],[Consignment delivered tonnesfeedstock fresh matter]]*Upstream_diesel_emissions_table[[#This Row],[Diesel use Cultivation, harvesting, extraction and chipping MJ/toutput]],"") ->  | AB52: =IF(ISBLANK(Upstream!I39),"",Upstream!I39) ->  | AC52: =IF(ISBLANK(Upstream!J39),"",Upstream!J39) ->  | AD52: =IF(ISBLANK(Upstream!K39),"",Upstream!K39) ->  | AE52: =IFERROR(Feedstock_emissions_table[[#This Row],[Consignment delivered tonnesfeedstock fresh matter]]*Journey_1_emissions_table[[#This Row],[Distance km weighted average]],"") ->  | AF52: =IFERROR(Journey_1_emissions_table[[#This Row],[Distance t.km weighted average]]*INDEX(Transport_efficiency,MATCH(Journey_1_emissions_table[[#This Row],[Transport mode]],Transport_mode,0)),"") ->  | AG52: =IF(ISBLANK(Upstream!L33),"",Upstream!L33) ->  | AH52: =IFERROR(Feedstock_emissions_table[[#This Row],[Consignment delivered tonnesfeedstock fresh matter]]*Journey_1_emissions_table[[#This Row],[Distance km maximum]],"") ->  | AI52: =IFERROR(Journey_1_emissions_table[[#This Row],[Distance t.km maximum]]*INDEX(Transport_efficiency,MATCH(Journey_1_emissions_table[[#This Row],[Transport mode]],Transport_mode,0)),"") ->  | AJ52: =IF(ISBLANK(Upstream!I40),"",Upstream!I40) ->  | AK52: =IF(ISBLANK(Upstream!J40),"",Upstream!J40) ->  | AL52: =IF(ISBLANK(Upstream!K40),"",Upstream!K40) ->  | AM52: =IFERROR(Feedstock_emissions_table[[#This Row],[Consignment delivered tonnesfeedstock fresh matter]]*Journey_2_emissions_table[[#This Row],[Distance km weighted average]],"") ->  | AN52: =IFERROR(Journey_2_emissions_table[[#This Row],[Distance t.km weighted average]]*INDEX(Transport_efficiency,MATCH(Journey_2_emissions_table[[#This Row],[Transport mode]],Transport_mode,0)),"") ->  | AO52: =IF(ISBLANK(Upstream!L34),"",Upstream!L34) ->  | AP52: =IFERROR(Feedstock_emissions_table[[#This Row],[Consignment delivered tonnesfeedstock fresh matter]]*Journey_2_emissions_table[[#This Row],[Distance km maximum]],"") ->  | AQ52: =IFERROR(Journey_2_emissions_table[[#This Row],[Distance t.km maximum]]*INDEX(Transport_efficiency,MATCH(Journey_2_emissions_table[[#This Row],[Transport mode]],Transport_mode,0)),"") ->  | AR52: =IFERROR((Upstream_diesel_emissions_table[[#This Row],[Diesel use Cultivation, harvesting, extraction and chipping MJ]]*Diesel_EF+Upstream_diesel_emissions_table[[#This Row],[Diesel use Cultivation, harvesting, extraction and chipping MJ]]*Diesel_combustion_CH4_N2O_emissions)/gperkg,"") ->  | AS52: =IFERROR((Journey_1_emissions_table[[#This Row],[Fuel consumption MJ weighted average]]*INDEX(Transport_fuels_gCO2eq,MATCH(Journey_1_emissions_table[[#This Row],[Transport fuel]],Transport_fuels,0))+Journey_1_emissions_table[[#This Row],[Distance km weighted average]]*INDEX(Transport_exhaust_emissions,MATCH(Journey_1_emissions_table[[#This Row],[Transport mode]],Transport_mode,)))/gperkg,"") ->  | AT52: =IFERROR((Journey_2_emissions_table[[#This Row],[Fuel consumption MJ weighted average]]*INDEX(Transport_fuels_gCO2eq,MATCH(Journey_2_emissions_table[[#This Row],[Transport fuel]],Transport_fuels,0))+Journey_2_emissions_table[[#This Row],[Distance km weighted average]]*INDEX(Transport_exhaust_emissions,MATCH(Journey_2_emissions_table[[#This Row],[Transport mode]],Transport_mode,)))/gperkg,"") ->  | AU52: =IFERROR((Journey_1_emissions_table[[#This Row],[Fuel consumption MJ maximum]]*INDEX(Transport_fuels_gCO2eq,MATCH(Journey_1_emissions_table[[#This Row],[Transport fuel]],Transport_fuels,0))+Journey_1_emissions_table[[#This Row],[Distance km maximum]]*INDEX(Transport_exhaust_emissions,MATCH(Journey_1_emissions_table[[#This Row],[Transport mode]],Transport_mode,)))/gperkg,"") ->  | AV52: =IFERROR((Journey_2_emissions_table[[#This Row],[Fuel consumption MJ maximum]]*INDEX(Transport_fuels_gCO2eq,MATCH(Journey_2_emissions_table[[#This Row],[Transport fuel]],Transport_fuels,0))+Journey_2_emissions_table[[#This Row],[Distance km maximum]]*INDEX(Transport_exhaust_emissions,MATCH(Journey_2_emissions_table[[#This Row],[Transport mode]],Transport_mode,)))/gperkg,"") -> 
D53: =IF(ISBLANK(Feedstock!B25),"",Feedstock!B25) -> 17 | E53: =IF(ISBLANK(Feedstock!D25),"",Feedstock!D25) ->  | G53: =IFERROR(Upstream_total_emissions_table[[#This Row],[Diesel emissions kgCO2eq]]/Feedstock_emissions_table[[#This Row],[Consignment delivered tonnesfeedstock dry matter]],0) -> 0 | H53: =IFERROR(Upstream!F41*U30/W30,"") ->  | I53: =IFERROR(Upstream_total_emissions_table[[#This Row],[Journey 1 average emissions kgCO2eq]]/Feedstock_emissions_table[[#This Row],[Consignment delivered tonnesfeedstock dry matter]],"") ->  | J53: =IFERROR(Upstream_total_emissions_table[[#This Row],[Journey 2 average emissions kgCO2eq]]/Feedstock_emissions_table[[#This Row],[Consignment delivered tonnesfeedstock dry matter]],"") ->  | K53: =IFERROR(Upstream_total_emissions_table[[#This Row],[Journey 1 max emissions kgCO2eq]]/Feedstock_emissions_table[[#This Row],[Consignment delivered tonnesfeedstock dry matter]],"") ->  | L53: =IFERROR(Upstream_total_emissions_table[[#This Row],[Journey 2 max emissions kgCO2eq]]/Feedstock_emissions_table[[#This Row],[Consignment delivered tonnesfeedstock dry matter]],"") ->  | M53: =IFERROR(Upstream_emissions_table[[#This Row],[Diesel emissions kgCO2eq/toutput dry matter]]+Upstream_emissions_table[[#This Row],[Additional emissions kgCO2eq/toutput dry matter]],0) -> 0 | N53: =IFERROR(IF(Distance_selector="weighted average distance",SUM(Upstream_emissions_table[[#This Row],[Journey 1 average emissions kgCO2eq/toutput dry matter]:[Journey 2 average emissions kgCO2eq/toutput dry matter]]),SUM(Upstream_emissions_table[[#This Row],[Journey 1 max emissions kgCO2eq/toutput dry matter]:[Journey 2 max emissions kgCO2eq/toutput dry matter]])),"") -> 0 | O53: =IFERROR(Upstream_emissions_table[[#This Row],[Processing at origin emissions kgCO2eq/tfeedstock dry matter]]*FF_feedstock_transport+Upstream_emissions_table[[#This Row],[Transport emissions kgCO2eq/tfeedstock dry matter]],"") -> 0 | P53: =Upstream!G41 -> 0 | Q53: =IFERROR(IF(Disaggregated_default_selector="actual values",Upstream_emissions_table[[#This Row],[Processing at origin emissions kgCO2eq/tfeedstock dry matter]]/INDEX(Consignment_LHV,MATCH(Consignments_upstream_emissions_table[[#This Row],[Consignment '#]],Consignments_mass_balance_table[Consignment '#],0))*FF_feedstock_transport*FF_processing*FF_pellet_transport,Upstream_emissions_table[[#This Row],[Disaggregated default value gCO2eq/MJpellet dry matter]]),"") ->  | R53: =IFERROR(Upstream_emissions_table[[#This Row],[Transport emissions kgCO2eq/tfeedstock dry matter]]/INDEX(Consignment_LHV,MATCH(Consignments_upstream_emissions_table[[#This Row],[Consignment '#]],Consignments_mass_balance_table[Consignment '#],0))*FF_processing*FF_pellet_transport,"") ->  | W53: =IF(ISBLANK(Emissions!AA30),"",Emissions!AA30) ->  | Z53: =IF(ISBLANK(Upstream!E41),"",Upstream!E41/lperm3*Diesel_density*Diesel_LHV) ->  | AA53: =IFERROR(Feedstock_emissions_table[[#This Row],[Consignment delivered tonnesfeedstock fresh matter]]*Upstream_diesel_emissions_table[[#This Row],[Diesel use Cultivation, harvesting, extraction and chipping MJ/toutput]],"") ->  | AB53: =IF(ISBLANK(Upstream!I41),"",Upstream!I41) ->  | AC53: =IF(ISBLANK(Upstream!J41),"",Upstream!J41) ->  | AD53: =IF(ISBLANK(Upstream!K41),"",Upstream!K41) ->  | AE53: =IFERROR(Feedstock_emissions_table[[#This Row],[Consignment delivered tonnesfeedstock fresh matter]]*Journey_1_emissions_table[[#This Row],[Distance km weighted average]],"") ->  | AF53: =IFERROR(Journey_1_emissions_table[[#This Row],[Distance t.km weighted average]]*INDEX(Transport_efficiency,MATCH(Journey_1_emissions_table[[#This Row],[Transport mode]],Transport_mode,0)),"") ->  | AG53: =IF(ISBLANK(Upstream!L34),"",Upstream!L34) ->  | AH53: =IFERROR(Feedstock_emissions_table[[#This Row],[Consignment delivered tonnesfeedstock fresh matter]]*Journey_1_emissions_table[[#This Row],[Distance km maximum]],"") ->  | AI53: =IFERROR(Journey_1_emissions_table[[#This Row],[Distance t.km maximum]]*INDEX(Transport_efficiency,MATCH(Journey_1_emissions_table[[#This Row],[Transport mode]],Transport_mode,0)),"") ->  | AJ53: =IF(ISBLANK(Upstream!I42),"",Upstream!I42) ->  | AK53: =IF(ISBLANK(Upstream!J42),"",Upstream!J42) ->  | AL53: =IF(ISBLANK(Upstream!K42),"",Upstream!K42) ->  | AM53: =IFERROR(Feedstock_emissions_table[[#This Row],[Consignment delivered tonnesfeedstock fresh matter]]*Journey_2_emissions_table[[#This Row],[Distance km weighted average]],"") ->  | AN53: =IFERROR(Journey_2_emissions_table[[#This Row],[Distance t.km weighted average]]*INDEX(Transport_efficiency,MATCH(Journey_2_emissions_table[[#This Row],[Transport mode]],Transport_mode,0)),"") ->  | AO53: =IF(ISBLANK(Upstream!L35),"",Upstream!L35) ->  | AP53: =IFERROR(Feedstock_emissions_table[[#This Row],[Consignment delivered tonnesfeedstock fresh matter]]*Journey_2_emissions_table[[#This Row],[Distance km maximum]],"") ->  | AQ53: =IFERROR(Journey_2_emissions_table[[#This Row],[Distance t.km maximum]]*INDEX(Transport_efficiency,MATCH(Journey_2_emissions_table[[#This Row],[Transport mode]],Transport_mode,0)),"") ->  | AR53: =IFERROR((Upstream_diesel_emissions_table[[#This Row],[Diesel use Cultivation, harvesting, extraction and chipping MJ]]*Diesel_EF+Upstream_diesel_emissions_table[[#This Row],[Diesel use Cultivation, harvesting, extraction and chipping MJ]]*Diesel_combustion_CH4_N2O_emissions)/gperkg,"") ->  | AS53: =IFERROR((Journey_1_emissions_table[[#This Row],[Fuel consumption MJ weighted average]]*INDEX(Transport_fuels_gCO2eq,MATCH(Journey_1_emissions_table[[#This Row],[Transport fuel]],Transport_fuels,0))+Journey_1_emissions_table[[#This Row],[Distance km weighted average]]*INDEX(Transport_exhaust_emissions,MATCH(Journey_1_emissions_table[[#This Row],[Transport mode]],Transport_mode,)))/gperkg,"") ->  | AT53: =IFERROR((Journey_2_emissions_table[[#This Row],[Fuel consumption MJ weighted average]]*INDEX(Transport_fuels_gCO2eq,MATCH(Journey_2_emissions_table[[#This Row],[Transport fuel]],Transport_fuels,0))+Journey_2_emissions_table[[#This Row],[Distance km weighted average]]*INDEX(Transport_exhaust_emissions,MATCH(Journey_2_emissions_table[[#This Row],[Transport mode]],Transport_mode,)))/gperkg,"") ->  | AU53: =IFERROR((Journey_1_emissions_table[[#This Row],[Fuel consumption MJ maximum]]*INDEX(Transport_fuels_gCO2eq,MATCH(Journey_1_emissions_table[[#This Row],[Transport fuel]],Transport_fuels,0))+Journey_1_emissions_table[[#This Row],[Distance km maximum]]*INDEX(Transport_exhaust_emissions,MATCH(Journey_1_emissions_table[[#This Row],[Transport mode]],Transport_mode,)))/gperkg,"") ->  | AV53: =IFERROR((Journey_2_emissions_table[[#This Row],[Fuel consumption MJ maximum]]*INDEX(Transport_fuels_gCO2eq,MATCH(Journey_2_emissions_table[[#This Row],[Transport fuel]],Transport_fuels,0))+Journey_2_emissions_table[[#This Row],[Distance km maximum]]*INDEX(Transport_exhaust_emissions,MATCH(Journey_2_emissions_table[[#This Row],[Transport mode]],Transport_mode,)))/gperkg,"") -> 
D54: =IF(ISBLANK(Feedstock!B26),"",Feedstock!B26) -> 18 | E54: =IF(ISBLANK(Feedstock!D26),"",Feedstock!D26) ->  | G54: =IFERROR(Upstream_total_emissions_table[[#This Row],[Diesel emissions kgCO2eq]]/Feedstock_emissions_table[[#This Row],[Consignment delivered tonnesfeedstock dry matter]],0) -> 0 | H54: =IFERROR(Upstream!F43*U31/W31,"") ->  | I54: =IFERROR(Upstream_total_emissions_table[[#This Row],[Journey 1 average emissions kgCO2eq]]/Feedstock_emissions_table[[#This Row],[Consignment delivered tonnesfeedstock dry matter]],"") ->  | J54: =IFERROR(Upstream_total_emissions_table[[#This Row],[Journey 2 average emissions kgCO2eq]]/Feedstock_emissions_table[[#This Row],[Consignment delivered tonnesfeedstock dry matter]],"") ->  | K54: =IFERROR(Upstream_total_emissions_table[[#This Row],[Journey 1 max emissions kgCO2eq]]/Feedstock_emissions_table[[#This Row],[Consignment delivered tonnesfeedstock dry matter]],"") ->  | L54: =IFERROR(Upstream_total_emissions_table[[#This Row],[Journey 2 max emissions kgCO2eq]]/Feedstock_emissions_table[[#This Row],[Consignment delivered tonnesfeedstock dry matter]],"") ->  | M54: =IFERROR(Upstream_emissions_table[[#This Row],[Diesel emissions kgCO2eq/toutput dry matter]]+Upstream_emissions_table[[#This Row],[Additional emissions kgCO2eq/toutput dry matter]],0) -> 0 | N54: =IFERROR(IF(Distance_selector="weighted average distance",SUM(Upstream_emissions_table[[#This Row],[Journey 1 average emissions kgCO2eq/toutput dry matter]:[Journey 2 average emissions kgCO2eq/toutput dry matter]]),SUM(Upstream_emissions_table[[#This Row],[Journey 1 max emissions kgCO2eq/toutput dry matter]:[Journey 2 max emissions kgCO2eq/toutput dry matter]])),"") -> 0 | O54: =IFERROR(Upstream_emissions_table[[#This Row],[Processing at origin emissions kgCO2eq/tfeedstock dry matter]]*FF_feedstock_transport+Upstream_emissions_table[[#This Row],[Transport emissions kgCO2eq/tfeedstock dry matter]],"") -> 0 | P54: =Upstream!G43 -> 0 | Q54: =IFERROR(IF(Disaggregated_default_selector="actual values",Upstream_emissions_table[[#This Row],[Processing at origin emissions kgCO2eq/tfeedstock dry matter]]/INDEX(Consignment_LHV,MATCH(Consignments_upstream_emissions_table[[#This Row],[Consignment '#]],Consignments_mass_balance_table[Consignment '#],0))*FF_feedstock_transport*FF_processing*FF_pellet_transport,Upstream_emissions_table[[#This Row],[Disaggregated default value gCO2eq/MJpellet dry matter]]),"") ->  | R54: =IFERROR(Upstream_emissions_table[[#This Row],[Transport emissions kgCO2eq/tfeedstock dry matter]]/INDEX(Consignment_LHV,MATCH(Consignments_upstream_emissions_table[[#This Row],[Consignment '#]],Consignments_mass_balance_table[Consignment '#],0))*FF_processing*FF_pellet_transport,"") ->  | W54: =IF(ISBLANK(Emissions!AA31),"",Emissions!AA31) ->  | Z54: =IF(ISBLANK(Upstream!E43),"",Upstream!E43/lperm3*Diesel_density*Diesel_LHV) ->  | AA54: =IFERROR(Feedstock_emissions_table[[#This Row],[Consignment delivered tonnesfeedstock fresh matter]]*Upstream_diesel_emissions_table[[#This Row],[Diesel use Cultivation, harvesting, extraction and chipping MJ/toutput]],"") ->  | AB54: =IF(ISBLANK(Upstream!I43),"",Upstream!I43) ->  | AC54: =IF(ISBLANK(Upstream!J43),"",Upstream!J43) ->  | AD54: =IF(ISBLANK(Upstream!K43),"",Upstream!K43) ->  | AE54: =IFERROR(Feedstock_emissions_table[[#This Row],[Consignment delivered tonnesfeedstock fresh matter]]*Journey_1_emissions_table[[#This Row],[Distance km weighted average]],"") ->  | AF54: =IFERROR(Journey_1_emissions_table[[#This Row],[Distance t.km weighted average]]*INDEX(Transport_efficiency,MATCH(Journey_1_emissions_table[[#This Row],[Transport mode]],Transport_mode,0)),"") ->  | AG54: =IF(ISBLANK(Upstream!L35),"",Upstream!L35) ->  | AH54: =IFERROR(Feedstock_emissions_table[[#This Row],[Consignment delivered tonnesfeedstock fresh matter]]*Journey_1_emissions_table[[#This Row],[Distance km maximum]],"") ->  | AI54: =IFERROR(Journey_1_emissions_table[[#This Row],[Distance t.km maximum]]*INDEX(Transport_efficiency,MATCH(Journey_1_emissions_table[[#This Row],[Transport mode]],Transport_mode,0)),"") ->  | AJ54: =IF(ISBLANK(Upstream!I44),"",Upstream!I44) ->  | AK54: =IF(ISBLANK(Upstream!J44),"",Upstream!J44) ->  | AL54: =IF(ISBLANK(Upstream!K44),"",Upstream!K44) ->  | AM54: =IFERROR(Feedstock_emissions_table[[#This Row],[Consignment delivered tonnesfeedstock fresh matter]]*Journey_2_emissions_table[[#This Row],[Distance km weighted average]],"") ->  | AN54: =IFERROR(Journey_2_emissions_table[[#This Row],[Distance t.km weighted average]]*INDEX(Transport_efficiency,MATCH(Journey_2_emissions_table[[#This Row],[Transport mode]],Transport_mode,0)),"") ->  | AO54: =IF(ISBLANK(Upstream!L36),"",Upstream!L36) ->  | AP54: =IFERROR(Feedstock_emissions_table[[#This Row],[Consignment delivered tonnesfeedstock fresh matter]]*Journey_2_emissions_table[[#This Row],[Distance km maximum]],"") ->  | AQ54: =IFERROR(Journey_2_emissions_table[[#This Row],[Distance t.km maximum]]*INDEX(Transport_efficiency,MATCH(Journey_2_emissions_table[[#This Row],[Transport mode]],Transport_mode,0)),"") ->  | AR54: =IFERROR((Upstream_diesel_emissions_table[[#This Row],[Diesel use Cultivation, harvesting, extraction and chipping MJ]]*Diesel_EF+Upstream_diesel_emissions_table[[#This Row],[Diesel use Cultivation, harvesting, extraction and chipping MJ]]*Diesel_combustion_CH4_N2O_emissions)/gperkg,"") ->  | AS54: =IFERROR((Journey_1_emissions_table[[#This Row],[Fuel consumption MJ weighted average]]*INDEX(Transport_fuels_gCO2eq,MATCH(Journey_1_emissions_table[[#This Row],[Transport fuel]],Transport_fuels,0))+Journey_1_emissions_table[[#This Row],[Distance km weighted average]]*INDEX(Transport_exhaust_emissions,MATCH(Journey_1_emissions_table[[#This Row],[Transport mode]],Transport_mode,)))/gperkg,"") ->  | AT54: =IFERROR((Journey_2_emissions_table[[#This Row],[Fuel consumption MJ weighted average]]*INDEX(Transport_fuels_gCO2eq,MATCH(Journey_2_emissions_table[[#This Row],[Transport fuel]],Transport_fuels,0))+Journey_2_emissions_table[[#This Row],[Distance km weighted average]]*INDEX(Transport_exhaust_emissions,MATCH(Journey_2_emissions_table[[#This Row],[Transport mode]],Transport_mode,)))/gperkg,"") ->  | AU54: =IFERROR((Journey_1_emissions_table[[#This Row],[Fuel consumption MJ maximum]]*INDEX(Transport_fuels_gCO2eq,MATCH(Journey_1_emissions_table[[#This Row],[Transport fuel]],Transport_fuels,0))+Journey_1_emissions_table[[#This Row],[Distance km maximum]]*INDEX(Transport_exhaust_emissions,MATCH(Journey_1_emissions_table[[#This Row],[Transport mode]],Transport_mode,)))/gperkg,"") ->  | AV54: =IFERROR((Journey_2_emissions_table[[#This Row],[Fuel consumption MJ maximum]]*INDEX(Transport_fuels_gCO2eq,MATCH(Journey_2_emissions_table[[#This Row],[Transport fuel]],Transport_fuels,0))+Journey_2_emissions_table[[#This Row],[Distance km maximum]]*INDEX(Transport_exhaust_emissions,MATCH(Journey_2_emissions_table[[#This Row],[Transport mode]],Transport_mode,)))/gperkg,"") -> 
D55: =IF(ISBLANK(Feedstock!B27),"",Feedstock!B27) -> 19 | E55: =IF(ISBLANK(Feedstock!D27),"",Feedstock!D27) ->  | G55: =IFERROR(Upstream_total_emissions_table[[#This Row],[Diesel emissions kgCO2eq]]/Feedstock_emissions_table[[#This Row],[Consignment delivered tonnesfeedstock dry matter]],0) -> 0 | H55: =IFERROR(Upstream!F45*U32/W32,"") ->  | I55: =IFERROR(Upstream_total_emissions_table[[#This Row],[Journey 1 average emissions kgCO2eq]]/Feedstock_emissions_table[[#This Row],[Consignment delivered tonnesfeedstock dry matter]],"") ->  | J55: =IFERROR(Upstream_total_emissions_table[[#This Row],[Journey 2 average emissions kgCO2eq]]/Feedstock_emissions_table[[#This Row],[Consignment delivered tonnesfeedstock dry matter]],"") ->  | K55: =IFERROR(Upstream_total_emissions_table[[#This Row],[Journey 1 max emissions kgCO2eq]]/Feedstock_emissions_table[[#This Row],[Consignment delivered tonnesfeedstock dry matter]],"") ->  | L55: =IFERROR(Upstream_total_emissions_table[[#This Row],[Journey 2 max emissions kgCO2eq]]/Feedstock_emissions_table[[#This Row],[Consignment delivered tonnesfeedstock dry matter]],"") ->  | M55: =IFERROR(Upstream_emissions_table[[#This Row],[Diesel emissions kgCO2eq/toutput dry matter]]+Upstream_emissions_table[[#This Row],[Additional emissions kgCO2eq/toutput dry matter]],0) -> 0 | N55: =IFERROR(IF(Distance_selector="weighted average distance",SUM(Upstream_emissions_table[[#This Row],[Journey 1 average emissions kgCO2eq/toutput dry matter]:[Journey 2 average emissions kgCO2eq/toutput dry matter]]),SUM(Upstream_emissions_table[[#This Row],[Journey 1 max emissions kgCO2eq/toutput dry matter]:[Journey 2 max emissions kgCO2eq/toutput dry matter]])),"") -> 0 | O55: =IFERROR(Upstream_emissions_table[[#This Row],[Processing at origin emissions kgCO2eq/tfeedstock dry matter]]*FF_feedstock_transport+Upstream_emissions_table[[#This Row],[Transport emissions kgCO2eq/tfeedstock dry matter]],"") -> 0 | P55: =Upstream!G45 -> 0 | Q55: =IFERROR(IF(Disaggregated_default_selector="actual values",Upstream_emissions_table[[#This Row],[Processing at origin emissions kgCO2eq/tfeedstock dry matter]]/INDEX(Consignment_LHV,MATCH(Consignments_upstream_emissions_table[[#This Row],[Consignment '#]],Consignments_mass_balance_table[Consignment '#],0))*FF_feedstock_transport*FF_processing*FF_pellet_transport,Upstream_emissions_table[[#This Row],[Disaggregated default value gCO2eq/MJpellet dry matter]]),"") ->  | R55: =IFERROR(Upstream_emissions_table[[#This Row],[Transport emissions kgCO2eq/tfeedstock dry matter]]/INDEX(Consignment_LHV,MATCH(Consignments_upstream_emissions_table[[#This Row],[Consignment '#]],Consignments_mass_balance_table[Consignment '#],0))*FF_processing*FF_pellet_transport,"") ->  | W55: =IF(ISBLANK(Emissions!AA32),"",Emissions!AA32) ->  | Z55: =IF(ISBLANK(Upstream!E45),"",Upstream!E45/lperm3*Diesel_density*Diesel_LHV) ->  | AA55: =IFERROR(Feedstock_emissions_table[[#This Row],[Consignment delivered tonnesfeedstock fresh matter]]*Upstream_diesel_emissions_table[[#This Row],[Diesel use Cultivation, harvesting, extraction and chipping MJ/toutput]],"") ->  | AB55: =IF(ISBLANK(Upstream!I45),"",Upstream!I45) ->  | AC55: =IF(ISBLANK(Upstream!J45),"",Upstream!J45) ->  | AD55: =IF(ISBLANK(Upstream!K45),"",Upstream!K45) ->  | AE55: =IFERROR(Feedstock_emissions_table[[#This Row],[Consignment delivered tonnesfeedstock fresh matter]]*Journey_1_emissions_table[[#This Row],[Distance km weighted average]],"") ->  | AF55: =IFERROR(Journey_1_emissions_table[[#This Row],[Distance t.km weighted average]]*INDEX(Transport_efficiency,MATCH(Journey_1_emissions_table[[#This Row],[Transport mode]],Transport_mode,0)),"") ->  | AG55: =IF(ISBLANK(Upstream!L36),"",Upstream!L36) ->  | AH55: =IFERROR(Feedstock_emissions_table[[#This Row],[Consignment delivered tonnesfeedstock fresh matter]]*Journey_1_emissions_table[[#This Row],[Distance km maximum]],"") ->  | AI55: =IFERROR(Journey_1_emissions_table[[#This Row],[Distance t.km maximum]]*INDEX(Transport_efficiency,MATCH(Journey_1_emissions_table[[#This Row],[Transport mode]],Transport_mode,0)),"") ->  | AJ55: =IF(ISBLANK(Upstream!I46),"",Upstream!I46) ->  | AK55: =IF(ISBLANK(Upstream!J46),"",Upstream!J46) ->  | AL55: =IF(ISBLANK(Upstream!K46),"",Upstream!K46) ->  | AM55: =IFERROR(Feedstock_emissions_table[[#This Row],[Consignment delivered tonnesfeedstock fresh matter]]*Journey_2_emissions_table[[#This Row],[Distance km weighted average]],"") ->  | AN55: =IFERROR(Journey_2_emissions_table[[#This Row],[Distance t.km weighted average]]*INDEX(Transport_efficiency,MATCH(Journey_2_emissions_table[[#This Row],[Transport mode]],Transport_mode,0)),"") ->  | AO55: =IF(ISBLANK(Upstream!L37),"",Upstream!L37) ->  | AP55: =IFERROR(Feedstock_emissions_table[[#This Row],[Consignment delivered tonnesfeedstock fresh matter]]*Journey_2_emissions_table[[#This Row],[Distance km maximum]],"") ->  | AQ55: =IFERROR(Journey_2_emissions_table[[#This Row],[Distance t.km maximum]]*INDEX(Transport_efficiency,MATCH(Journey_2_emissions_table[[#This Row],[Transport mode]],Transport_mode,0)),"") ->  | AR55: =IFERROR((Upstream_diesel_emissions_table[[#This Row],[Diesel use Cultivation, harvesting, extraction and chipping MJ]]*Diesel_EF+Upstream_diesel_emissions_table[[#This Row],[Diesel use Cultivation, harvesting, extraction and chipping MJ]]*Diesel_combustion_CH4_N2O_emissions)/gperkg,"") ->  | AS55: =IFERROR((Journey_1_emissions_table[[#This Row],[Fuel consumption MJ weighted average]]*INDEX(Transport_fuels_gCO2eq,MATCH(Journey_1_emissions_table[[#This Row],[Transport fuel]],Transport_fuels,0))+Journey_1_emissions_table[[#This Row],[Distance km weighted average]]*INDEX(Transport_exhaust_emissions,MATCH(Journey_1_emissions_table[[#This Row],[Transport mode]],Transport_mode,)))/gperkg,"") ->  | AT55: =IFERROR((Journey_2_emissions_table[[#This Row],[Fuel consumption MJ weighted average]]*INDEX(Transport_fuels_gCO2eq,MATCH(Journey_2_emissions_table[[#This Row],[Transport fuel]],Transport_fuels,0))+Journey_2_emissions_table[[#This Row],[Distance km weighted average]]*INDEX(Transport_exhaust_emissions,MATCH(Journey_2_emissions_table[[#This Row],[Transport mode]],Transport_mode,)))/gperkg,"") ->  | AU55: =IFERROR((Journey_1_emissions_table[[#This Row],[Fuel consumption MJ maximum]]*INDEX(Transport_fuels_gCO2eq,MATCH(Journey_1_emissions_table[[#This Row],[Transport fuel]],Transport_fuels,0))+Journey_1_emissions_table[[#This Row],[Distance km maximum]]*INDEX(Transport_exhaust_emissions,MATCH(Journey_1_emissions_table[[#This Row],[Transport mode]],Transport_mode,)))/gperkg,"") ->  | AV55: =IFERROR((Journey_2_emissions_table[[#This Row],[Fuel consumption MJ maximum]]*INDEX(Transport_fuels_gCO2eq,MATCH(Journey_2_emissions_table[[#This Row],[Transport fuel]],Transport_fuels,0))+Journey_2_emissions_table[[#This Row],[Distance km maximum]]*INDEX(Transport_exhaust_emissions,MATCH(Journey_2_emissions_table[[#This Row],[Transport mode]],Transport_mode,)))/gperkg,"") -> 
D56: =IF(ISBLANK(Feedstock!B28),"",Feedstock!B28) -> 20 | E56: =IF(ISBLANK(Feedstock!D28),"",Feedstock!D28) ->  | G56: =IFERROR(Upstream_total_emissions_table[[#This Row],[Diesel emissions kgCO2eq]]/Feedstock_emissions_table[[#This Row],[Consignment delivered tonnesfeedstock dry matter]],0) -> 0 | H56: =IFERROR(Upstream!F47*U33/W33,"") ->  | I56: =IFERROR(Upstream_total_emissions_table[[#This Row],[Journey 1 average emissions kgCO2eq]]/Feedstock_emissions_table[[#This Row],[Consignment delivered tonnesfeedstock dry matter]],"") ->  | J56: =IFERROR(Upstream_total_emissions_table[[#This Row],[Journey 2 average emissions kgCO2eq]]/Feedstock_emissions_table[[#This Row],[Consignment delivered tonnesfeedstock dry matter]],"") ->  | K56: =IFERROR(Upstream_total_emissions_table[[#This Row],[Journey 1 max emissions kgCO2eq]]/Feedstock_emissions_table[[#This Row],[Consignment delivered tonnesfeedstock dry matter]],"") ->  | L56: =IFERROR(Upstream_total_emissions_table[[#This Row],[Journey 2 max emissions kgCO2eq]]/Feedstock_emissions_table[[#This Row],[Consignment delivered tonnesfeedstock dry matter]],"") ->  | M56: =IFERROR(Upstream_emissions_table[[#This Row],[Diesel emissions kgCO2eq/toutput dry matter]]+Upstream_emissions_table[[#This Row],[Additional emissions kgCO2eq/toutput dry matter]],0) -> 0 | N56: =IFERROR(IF(Distance_selector="weighted average distance",SUM(Upstream_emissions_table[[#This Row],[Journey 1 average emissions kgCO2eq/toutput dry matter]:[Journey 2 average emissions kgCO2eq/toutput dry matter]]),SUM(Upstream_emissions_table[[#This Row],[Journey 1 max emissions kgCO2eq/toutput dry matter]:[Journey 2 max emissions kgCO2eq/toutput dry matter]])),"") -> 0 | O56: =IFERROR(Upstream_emissions_table[[#This Row],[Processing at origin emissions kgCO2eq/tfeedstock dry matter]]*FF_feedstock_transport+Upstream_emissions_table[[#This Row],[Transport emissions kgCO2eq/tfeedstock dry matter]],"") -> 0 | P56: =Upstream!G47 -> 0 | Q56: =IFERROR(IF(Disaggregated_default_selector="actual values",Upstream_emissions_table[[#This Row],[Processing at origin emissions kgCO2eq/tfeedstock dry matter]]/INDEX(Consignment_LHV,MATCH(Consignments_upstream_emissions_table[[#This Row],[Consignment '#]],Consignments_mass_balance_table[Consignment '#],0))*FF_feedstock_transport*FF_processing*FF_pellet_transport,Upstream_emissions_table[[#This Row],[Disaggregated default value gCO2eq/MJpellet dry matter]]),"") ->  | R56: =IFERROR(Upstream_emissions_table[[#This Row],[Transport emissions kgCO2eq/tfeedstock dry matter]]/INDEX(Consignment_LHV,MATCH(Consignments_upstream_emissions_table[[#This Row],[Consignment '#]],Consignments_mass_balance_table[Consignment '#],0))*FF_processing*FF_pellet_transport,"") ->  | W56: =IF(ISBLANK(Emissions!AA33),"",Emissions!AA33) ->  | Z56: =IF(ISBLANK(Upstream!E47),"",Upstream!E47/lperm3*Diesel_density*Diesel_LHV) ->  | AA56: =IFERROR(Feedstock_emissions_table[[#This Row],[Consignment delivered tonnesfeedstock fresh matter]]*Upstream_diesel_emissions_table[[#This Row],[Diesel use Cultivation, harvesting, extraction and chipping MJ/toutput]],"") ->  | AB56: =IF(ISBLANK(Upstream!I47),"",Upstream!I47) ->  | AC56: =IF(ISBLANK(Upstream!J47),"",Upstream!J47) ->  | AD56: =IF(ISBLANK(Upstream!K47),"",Upstream!K47) ->  | AE56: =IFERROR(Feedstock_emissions_table[[#This Row],[Consignment delivered tonnesfeedstock fresh matter]]*Journey_1_emissions_table[[#This Row],[Distance km weighted average]],"") ->  | AF56: =IFERROR(Journey_1_emissions_table[[#This Row],[Distance t.km weighted average]]*INDEX(Transport_efficiency,MATCH(Journey_1_emissions_table[[#This Row],[Transport mode]],Transport_mode,0)),"") ->  | AG56: =IF(ISBLANK(Upstream!L37),"",Upstream!L37) ->  | AH56: =IFERROR(Feedstock_emissions_table[[#This Row],[Consignment delivered tonnesfeedstock fresh matter]]*Journey_1_emissions_table[[#This Row],[Distance km maximum]],"") ->  | AI56: =IFERROR(Journey_1_emissions_table[[#This Row],[Distance t.km maximum]]*INDEX(Transport_efficiency,MATCH(Journey_1_emissions_table[[#This Row],[Transport mode]],Transport_mode,0)),"") ->  | AJ56: =IF(ISBLANK(Upstream!I48),"",Upstream!I48) ->  | AK56: =IF(ISBLANK(Upstream!J48),"",Upstream!J48) ->  | AL56: =IF(ISBLANK(Upstream!K48),"",Upstream!K48) ->  | AM56: =IFERROR(Feedstock_emissions_table[[#This Row],[Consignment delivered tonnesfeedstock fresh matter]]*Journey_2_emissions_table[[#This Row],[Distance km weighted average]],"") ->  | AN56: =IFERROR(Journey_2_emissions_table[[#This Row],[Distance t.km weighted average]]*INDEX(Transport_efficiency,MATCH(Journey_2_emissions_table[[#This Row],[Transport mode]],Transport_mode,0)),"") ->  | AO56: =IF(ISBLANK(Upstream!L38),"",Upstream!L38) ->  | AP56: =IFERROR(Feedstock_emissions_table[[#This Row],[Consignment delivered tonnesfeedstock fresh matter]]*Journey_2_emissions_table[[#This Row],[Distance km maximum]],"") ->  | AQ56: =IFERROR(Journey_2_emissions_table[[#This Row],[Distance t.km maximum]]*INDEX(Transport_efficiency,MATCH(Journey_2_emissions_table[[#This Row],[Transport mode]],Transport_mode,0)),"") ->  | AR56: =IFERROR((Upstream_diesel_emissions_table[[#This Row],[Diesel use Cultivation, harvesting, extraction and chipping MJ]]*Diesel_EF+Upstream_diesel_emissions_table[[#This Row],[Diesel use Cultivation, harvesting, extraction and chipping MJ]]*Diesel_combustion_CH4_N2O_emissions)/gperkg,"") ->  | AS56: =IFERROR((Journey_1_emissions_table[[#This Row],[Fuel consumption MJ weighted average]]*INDEX(Transport_fuels_gCO2eq,MATCH(Journey_1_emissions_table[[#This Row],[Transport fuel]],Transport_fuels,0))+Journey_1_emissions_table[[#This Row],[Distance km weighted average]]*INDEX(Transport_exhaust_emissions,MATCH(Journey_1_emissions_table[[#This Row],[Transport mode]],Transport_mode,)))/gperkg,"") ->  | AT56: =IFERROR((Journey_2_emissions_table[[#This Row],[Fuel consumption MJ weighted average]]*INDEX(Transport_fuels_gCO2eq,MATCH(Journey_2_emissions_table[[#This Row],[Transport fuel]],Transport_fuels,0))+Journey_2_emissions_table[[#This Row],[Distance km weighted average]]*INDEX(Transport_exhaust_emissions,MATCH(Journey_2_emissions_table[[#This Row],[Transport mode]],Transport_mode,)))/gperkg,"") ->  | AU56: =IFERROR((Journey_1_emissions_table[[#This Row],[Fuel consumption MJ maximum]]*INDEX(Transport_fuels_gCO2eq,MATCH(Journey_1_emissions_table[[#This Row],[Transport fuel]],Transport_fuels,0))+Journey_1_emissions_table[[#This Row],[Distance km maximum]]*INDEX(Transport_exhaust_emissions,MATCH(Journey_1_emissions_table[[#This Row],[Transport mode]],Transport_mode,)))/gperkg,"") ->  | AV56: =IFERROR((Journey_2_emissions_table[[#This Row],[Fuel consumption MJ maximum]]*INDEX(Transport_fuels_gCO2eq,MATCH(Journey_2_emissions_table[[#This Row],[Transport fuel]],Transport_fuels,0))+Journey_2_emissions_table[[#This Row],[Distance km maximum]]*INDEX(Transport_exhaust_emissions,MATCH(Journey_2_emissions_table[[#This Row],[Transport mode]],Transport_mode,)))/gperkg,"") -> 
B58: Drying | D58: Consignment | G58: Drying emissions | U58: Drying | AF58: Biomass inputs - boiler/burner (drying) | AS58: Biomass inputs - CHP
D59: Consignment # | E59: Feedstock origin | G59: Consignment input tfeedstock dry matter | H59: Consignment output tpellet dry matter | I59: Total emissions kgCO2eq/tpellet dry matter | J59: Total emissions gCO2eq/MJpellet dry matter | U59: Consignment # | V59: Consignment delivered tfeedstock fresh matter | W59: Moisture % | X59: Consignment delivered tfeedstock dry matter | Y59: Consignment for hog fuel tfeedstock dry matter | Z59: Consignment input tfeedstock dry matter | AA59: Consignment input tfeedstock fresh matter | AB59: Drying required | AC59: Water removed by drying for consignment t | AD59: % total heat for drying | AF59: Fuel | AG59: Consignment # derived from | AH59: Consumption t | AI59: Moisture % | AJ59: LHV MJ/kg dry matter | AK59: Consumption t dry matter | AL59: Consumption MJ | AM59: Fuel emissions kgCO2eq | AN59: Flue gas Emissions kgCO2eq | AO59: Total emissions kgCO2eq | AP59: Drying heat emissions kgCO2eq | AQ59: Other processing heat emissions kgCO2eq | AS59: Fuel | AT59: Consignment # derived from | AU59: Consumption t | AV59: Moisture % | AW59: LHV MJ/kg | AX59: Consumption t dry matter | AY59: Consumption MJ | AZ59: Fuel emissions kgCO2eq | BA59: Flue gas Emissions kgCO2eq | BB59: Total emissions kgCO2eq | BC59: Allocated emissionstotal heat kgCO2eq | BD59: Allocated emissionselectricity kgCO2eq | BE59: Allocated emissionsdrying heat kgCO2eq | BF59: Allocated emissionsother heat kgCO2eq | BG59: Allocated emissionsprocessing electricity kgCO2eq
D60: =IF(ISBLANK(Feedstock!B9),"",Feedstock!B9) -> 1 | E60: =IF(ISBLANK(Feedstock!D9),"",Feedstock!D9) ->  | G60: =Drying_calculations_table[[#This Row],[Consignment input tfeedstock dry matter]] ->  | H60: =Z14 ->  | I60: =IFERROR(SUM(Biomass_boiler_emissions_drying,Fossil_boiler_emissions_drying,Biomass_CHP_emissions_drying_heat,Fossil_CHP_emissions_drying_heat)*Drying_calculations_table[[#This Row],[% total heat for drying]]/Drying_allocations_table[[#This Row],[Consignment output tpellet dry matter]],"") ->  | J60: =IFERROR(Drying_allocations_table[[#This Row],[Total emissions kgCO2eq/tpellet dry matter]]/Pellet_lhv_dry*FF_pellet_transport,"") ->  | U60: =IF(ISBLANK(Feedstock!B9),"",Feedstock!B9) -> 1 | V60: =U14 ->  | W60: =IF(ISBLANK(Feedstock!J9),(IF(ISBLANK(Feedstock!H9),"",Feedstock!H9)),Feedstock!J9) ->  | X60: =W14 ->  | Y60: =IFERROR(SUMPRODUCT(--(Biomass_inputs_burner_emissions_table[Consignment '# derived from]=Drying_calculations_table[[#This Row],[Consignment '#]]),Biomass_inputs_burner_emissions_table[Consumption t dry matter])+SUMPRODUCT(--(Biomass_inputs_CHP_emissions_table[Consignment '# derived from]=Drying_calculations_table[[#This Row],[Consignment '#]]),Biomass_inputs_CHP_emissions_table[Consumption t dry matter]),"") -> 0 | Z60: =Y14 ->  | AA60: =IFERROR(Drying_calculations_table[[#This Row],[Consignment input tfeedstock dry matter]]/(1-Drying_calculations_table[[#This Row],[Moisture %]]),"N/A") -> N/A | AB60: =IFERROR(INDEX(Drying_required,MATCH(Drying_calculations_table[[#This Row],[Consignment '#]],Feedstock_table[Consignment '#],0)),"") -> 0 | AC60: =IFERROR(IF(Drying_calculations_table[[#This Row],[Drying required]]="No",0, IF(Drying_calculations_table[[#This Row],[Consignment input tfeedstock fresh matter]]-(Drying_calculations_table[[#This Row],[Consignment input tfeedstock dry matter]]/(1-Moisture_dryer_outlet))<0,0,Drying_calculations_table[[#This Row],[Consignment input tfeedstock fresh matter]]-(Drying_calculations_table[[#This Row],[Consignment input tfeedstock dry matter]]/(1-Moisture_dryer_outlet)))),"") ->  | AD60: =IF(Drying_calculations_table[[#This Row],[Drying required]]="Yes",Drying_calculations_table[[#This Row],[Water removed by drying for consignment t]]/SUMIF(Drying_calculations_table[Drying required],"yes",Drying_calculations_table[Water removed by drying for consignment t]),IF(Drying_calculations_table[[#This Row],[Drying required]]="No",0,"")) ->  | AF60: =IF(ISBLANK('Pellet plant'!B50),"",'Pellet plant'!B50) ->  | AG60: =IF(ISBLANK('Pellet plant'!C50),"",'Pellet plant'!C50) ->  | AH60: =IF(ISBLANK('Pellet plant'!D50),"",'Pellet plant'!D50) ->  | AI60: =IF(ISBLANK('Pellet plant'!E50),"",'Pellet plant'!E50) ->  | AJ60: =IFERROR(INDEX(Mass_balance_table[Feedstock LHV MJ/kg dry matter],MATCH(Biomass_inputs_burner_emissions_table[[#This Row],[Consignment '# derived from]],Consignments_mass_balance_table[Consignment '#],0)),"") ->  | AK60: =IFERROR(AH60*(1-AI60),"") ->  | AL60: =IFERROR(Biomass_inputs_burner_emissions_table[[#This Row],[Consumption t dry matter]]*Biomass_inputs_burner_emissions_table[[#This Row],[LHV MJ/kg dry matter]]*kgpert,"") ->  | AM60: =IFERROR(Biomass_inputs_burner_emissions_table[[#This Row],[Consumption t dry matter]]*INDEX(Upstream_emissions,MATCH(Biomass_inputs_burner_emissions_table[[#This Row],[Consignment '# derived from]],Consignments_upstream_emissions_table[Consignment '#],0)),"") ->  | AN60: =IFERROR(Biomass_inputs_burner_emissions_table[[#This Row],[Consumption MJ]]*INDEX(Biomass_CHP_flue_emissions,MATCH(Biomass_inputs_burner_emissions_table[[#This Row],[Fuel]],Biomass_fuels_for_CHP,0))/gperkg,"") ->  | AO60: =IFERROR(Biomass_inputs_burner_emissions_table[[#This Row],[Fuel emissions kgCO2eq]]+Biomass_inputs_burner_emissions_table[[#This Row],[Flue gas Emissions kgCO2eq]],"") ->  | AP60: =IFERROR(IF(ISBLANK(Biomass_boiler_other_heat),Biomass_inputs_burner_emissions_table[[#This Row],[Total emissions kgCO2eq]],Biomass_inputs_burner_emissions_table[[#This Row],[Total emissions kgCO2eq]]*Biomass_boiler_drying_heat/Biomass_boiler_total_heat),"") ->  | AQ60: =IFERROR(Biomass_inputs_burner_emissions_table[[#This Row],[Total emissions kgCO2eq]]*Biomass_boiler_other_heat/Biomass_boiler_total_heat,"") ->  | AS60: =IF(ISBLANK('Pellet plant'!B76),"",'Pellet plant'!B76) ->  | AT60: =IF(ISBLANK('Pellet plant'!C76),"",'Pellet plant'!C76) ->  | AU60: =IF(ISBLANK('Pellet plant'!D76),"",'Pellet plant'!D76) ->  | AV60: =IF(ISBLANK('Pellet plant'!E76),"",'Pellet plant'!E76) ->  | AW60: =IFERROR(INDEX(Mass_balance_table[Feedstock LHV MJ/kg dry matter],MATCH(Biomass_inputs_CHP_emissions_table[[#This Row],[Consignment '# derived from]],Consignments_mass_balance_table[Consignment '#],0)),"") ->  | AX60: =IFERROR(AU60*(1-AV60),"") ->  | AY60: =IFERROR(Biomass_inputs_CHP_emissions_table[[#This Row],[LHV MJ/kg]]*Biomass_inputs_CHP_emissions_table[[#This Row],[Consumption t dry matter]]*kgpert,"") ->  | AZ60: =IFERROR(Biomass_inputs_CHP_emissions_table[[#This Row],[Consumption t dry matter]]*INDEX(Upstream_emissions,MATCH(Biomass_inputs_CHP_emissions_table[[#This Row],[Consignment '# derived from]],Consignments_upstream_emissions_table[Consignment '#],0)),"") ->  | BA60: =IFERROR(Biomass_inputs_CHP_emissions_table[[#This Row],[Consumption MJ]]*INDEX(Biomass_CHP_flue_emissions,MATCH(Biomass_inputs_CHP_emissions_table[[#This Row],[Fuel]],Biomass_CHP_flue_emissions_table[Fuel],0))/gperkg,"") ->  | BB60: =IFERROR(Biomass_inputs_CHP_emissions_table[[#This Row],[Fuel emissions kgCO2eq]]+Biomass_inputs_CHP_emissions_table[[#This Row],[Flue gas Emissions kgCO2eq]],"") ->  | BC60: =IFERROR(Biomass_inputs_CHP_emissions_table[[#This Row],[Total emissions kgCO2eq]]*Biomass_CHP_heat_allocation,"") ->  | BD60: =IFERROR(Biomass_inputs_CHP_emissions_table[[#This Row],[Total emissions kgCO2eq]]*Biomass_CHP_electricity_allocation,"") ->  | BE60: =IFERROR(IF(ISBLANK(Biomass_CHP_other_heat),Biomass_inputs_CHP_emissions_table[[#This Row],[Allocated emissionstotal heat kgCO2eq]],Biomass_inputs_CHP_emissions_table[[#This Row],[Allocated emissionstotal heat kgCO2eq]]*Biomass_CHP_drying_heat/Biomass_CHP_total_heat),"") ->  | BF60: =IFERROR(Biomass_inputs_CHP_emissions_table[[#This Row],[Allocated emissionstotal heat kgCO2eq]]*Biomass_CHP_other_heat/Biomass_CHP_total_heat,"") ->  | BG60: =IFERROR(IF(ISBLANK(Biomass_CHP_electricity_processing),Biomass_inputs_CHP_emissions_table[[#This Row],[Allocated emissionselectricity kgCO2eq]],Biomass_inputs_CHP_emissions_table[[#This Row],[Allocated emissionselectricity kgCO2eq]]*Biomass_CHP_electricity_processing/Biomass_CHP_total_electricity),"") -> 
D61: =IF(ISBLANK(Feedstock!B10),"",Feedstock!B10) -> 2 | E61: =IF(ISBLANK(Feedstock!D10),"",Feedstock!D10) ->  | G61: =Drying_calculations_table[[#This Row],[Consignment input tfeedstock dry matter]] ->  | I61: =IFERROR(SUM(Biomass_boiler_emissions_drying,Fossil_boiler_emissions_drying,Biomass_CHP_emissions_drying_heat,Fossil_CHP_emissions_drying_heat)*Drying_calculations_table[[#This Row],[% total heat for drying]]/Drying_allocations_table[[#This Row],[Consignment output tpellet dry matter]],"") ->  | J61: =IFERROR(Drying_allocations_table[[#This Row],[Total emissions kgCO2eq/tpellet dry matter]]/Pellet_lhv_dry*FF_pellet_transport,"") ->  | U61: =IF(ISBLANK(Feedstock!B10),"",Feedstock!B10) -> 2 | W61: =IF(ISBLANK(Feedstock!J10),(IF(ISBLANK(Feedstock!H10),"",Feedstock!H10)),Feedstock!J10) ->  | Y61: =IFERROR(SUMPRODUCT(--(Biomass_inputs_burner_emissions_table[Consignment '# derived from]=Drying_calculations_table[[#This Row],[Consignment '#]]),Biomass_inputs_burner_emissions_table[Consumption t dry matter])+SUMPRODUCT(--(Biomass_inputs_CHP_emissions_table[Consignment '# derived from]=Drying_calculations_table[[#This Row],[Consignment '#]]),Biomass_inputs_CHP_emissions_table[Consumption t dry matter]),"") -> 0 | AA61: =IFERROR(Drying_calculations_table[[#This Row],[Consignment input tfeedstock dry matter]]/(1-Drying_calculations_table[[#This Row],[Moisture %]]),"N/A") -> N/A | AB61: =IFERROR(INDEX(Drying_required,MATCH(Drying_calculations_table[[#This Row],[Consignment '#]],Feedstock_table[Consignment '#],0)),"") -> 0 | AC61: =IFERROR(IF(Drying_calculations_table[[#This Row],[Drying required]]="No",0, IF(Drying_calculations_table[[#This Row],[Consignment input tfeedstock fresh matter]]-(Drying_calculations_table[[#This Row],[Consignment input tfeedstock dry matter]]/(1-Moisture_dryer_outlet))<0,0,Drying_calculations_table[[#This Row],[Consignment input tfeedstock fresh matter]]-(Drying_calculations_table[[#This Row],[Consignment input tfeedstock dry matter]]/(1-Moisture_dryer_outlet)))),"") ->  | AD61: =IF(Drying_calculations_table[[#This Row],[Drying required]]="Yes",Drying_calculations_table[[#This Row],[Water removed by drying for consignment t]]/SUMIF(Drying_calculations_table[Drying required],"yes",Drying_calculations_table[Water removed by drying for consignment t]),IF(Drying_calculations_table[[#This Row],[Drying required]]="No",0,"")) ->  | AF61: =IF(ISBLANK('Pellet plant'!B51),"",'Pellet plant'!B51) ->  | AG61: =IF(ISBLANK('Pellet plant'!C51),"",'Pellet plant'!C51) ->  | AH61: =IF(ISBLANK('Pellet plant'!D51),"",'Pellet plant'!D51) ->  | AI61: =IF(ISBLANK('Pellet plant'!E51),"",'Pellet plant'!E51) ->  | AJ61: =IFERROR(INDEX(Mass_balance_table[Feedstock LHV MJ/kg dry matter],MATCH(Biomass_inputs_burner_emissions_table[[#This Row],[Consignment '# derived from]],Consignments_mass_balance_table[Consignment '#],0)),"") ->  | AL61: =IFERROR(Biomass_inputs_burner_emissions_table[[#This Row],[Consumption t dry matter]]*Biomass_inputs_burner_emissions_table[[#This Row],[LHV MJ/kg dry matter]]*kgpert,"") ->  | AM61: =IFERROR(Biomass_inputs_burner_emissions_table[[#This Row],[Consumption t dry matter]]*INDEX(Upstream_emissions,MATCH(Biomass_inputs_burner_emissions_table[[#This Row],[Consignment '# derived from]],Consignments_upstream_emissions_table[Consignment '#],0)),"") ->  | AN61: =IFERROR(Biomass_inputs_burner_emissions_table[[#This Row],[Consumption MJ]]*INDEX(Biomass_CHP_flue_emissions,MATCH(Biomass_inputs_burner_emissions_table[[#This Row],[Fuel]],Biomass_fuels_for_CHP,0))/gperkg,"") ->  | AO61: =IFERROR(Biomass_inputs_burner_emissions_table[[#This Row],[Fuel emissions kgCO2eq]]+Biomass_inputs_burner_emissions_table[[#This Row],[Flue gas Emissions kgCO2eq]],"") ->  | AP61: =IFERROR(IF(ISBLANK(Biomass_boiler_other_heat),Biomass_inputs_burner_emissions_table[[#This Row],[Total emissions kgCO2eq]],Biomass_inputs_burner_emissions_table[[#This Row],[Total emissions kgCO2eq]]*Biomass_boiler_drying_heat/Biomass_boiler_total_heat),"") ->  | AQ61: =IFERROR(Biomass_inputs_burner_emissions_table[[#This Row],[Total emissions kgCO2eq]]*Biomass_boiler_other_heat/Biomass_boiler_total_heat,"") ->  | AS61: =IF(ISBLANK('Pellet plant'!B77),"",'Pellet plant'!B77) ->  | AT61: =IF(ISBLANK('Pellet plant'!C77),"",'Pellet plant'!C77) ->  | AU61: =IF(ISBLANK('Pellet plant'!D77),"",'Pellet plant'!D77) ->  | AV61: =IF(ISBLANK('Pellet plant'!E77),"",'Pellet plant'!E77) ->  | AW61: =IFERROR(INDEX(Mass_balance_table[Feedstock LHV MJ/kg dry matter],MATCH(Biomass_inputs_CHP_emissions_table[[#This Row],[Consignment '# derived from]],Consignments_mass_balance_table[Consignment '#],0)),"") ->  | AY61: =IFERROR(Biomass_inputs_CHP_emissions_table[[#This Row],[LHV MJ/kg]]*Biomass_inputs_CHP_emissions_table[[#This Row],[Consumption t dry matter]]*kgpert,"") ->  | AZ61: =IFERROR(Biomass_inputs_CHP_emissions_table[[#This Row],[Consumption t dry matter]]*INDEX(Upstream_emissions,MATCH(Biomass_inputs_CHP_emissions_table[[#This Row],[Consignment '# derived from]],Consignments_upstream_emissions_table[Consignment '#],0)),"") ->  | BA61: =IFERROR(Biomass_inputs_CHP_emissions_table[[#This Row],[Consumption MJ]]*INDEX(Biomass_CHP_flue_emissions,MATCH(Biomass_inputs_CHP_emissions_table[[#This Row],[Fuel]],Biomass_CHP_flue_emissions_table[Fuel],0))/gperkg,"") ->  | BB61: =IFERROR(Biomass_inputs_CHP_emissions_table[[#This Row],[Fuel emissions kgCO2eq]]+Biomass_inputs_CHP_emissions_table[[#This Row],[Flue gas Emissions kgCO2eq]],"") ->  | BC61: =IFERROR(Biomass_inputs_CHP_emissions_table[[#This Row],[Total emissions kgCO2eq]]*Biomass_CHP_heat_allocation,"") ->  | BD61: =IFERROR(Biomass_inputs_CHP_emissions_table[[#This Row],[Total emissions kgCO2eq]]*Biomass_CHP_electricity_allocation,"") ->  | BE61: =IFERROR(IF(ISBLANK(Biomass_CHP_other_heat),Biomass_inputs_CHP_emissions_table[[#This Row],[Allocated emissionstotal heat kgCO2eq]],Biomass_inputs_CHP_emissions_table[[#This Row],[Allocated emissionstotal heat kgCO2eq]]*Biomass_CHP_drying_heat/Biomass_CHP_total_heat),"") ->  | BF61: =IFERROR(Biomass_inputs_CHP_emissions_table[[#This Row],[Allocated emissionstotal heat kgCO2eq]]*Biomass_CHP_other_heat/Biomass_CHP_total_heat,"") ->  | BG61: =IFERROR(IF(ISBLANK(Biomass_CHP_electricity_processing),Biomass_inputs_CHP_emissions_table[[#This Row],[Allocated emissionselectricity kgCO2eq]],Biomass_inputs_CHP_emissions_table[[#This Row],[Allocated emissionselectricity kgCO2eq]]*Biomass_CHP_electricity_processing/Biomass_CHP_total_electricity),"") -> 
D62: =IF(ISBLANK(Feedstock!B11),"",Feedstock!B11) -> 3 | E62: =IF(ISBLANK(Feedstock!D11),"",Feedstock!D11) ->  | G62: =Drying_calculations_table[[#This Row],[Consignment input tfeedstock dry matter]] ->  | I62: =IFERROR(SUM(Biomass_boiler_emissions_drying,Fossil_boiler_emissions_drying,Biomass_CHP_emissions_drying_heat,Fossil_CHP_emissions_drying_heat)*Drying_calculations_table[[#This Row],[% total heat for drying]]/Drying_allocations_table[[#This Row],[Consignment output tpellet dry matter]],"") ->  | J62: =IFERROR(Drying_allocations_table[[#This Row],[Total emissions kgCO2eq/tpellet dry matter]]/Pellet_lhv_dry*FF_pellet_transport,"") ->  | U62: =IF(ISBLANK(Feedstock!B11),"",Feedstock!B11) -> 3 | W62: =IF(ISBLANK(Feedstock!J11),(IF(ISBLANK(Feedstock!H11),"",Feedstock!H11)),Feedstock!J11) ->  | Y62: =IFERROR(SUMPRODUCT(--(Biomass_inputs_burner_emissions_table[Consignment '# derived from]=Drying_calculations_table[[#This Row],[Consignment '#]]),Biomass_inputs_burner_emissions_table[Consumption t dry matter])+SUMPRODUCT(--(Biomass_inputs_CHP_emissions_table[Consignment '# derived from]=Drying_calculations_table[[#This Row],[Consignment '#]]),Biomass_inputs_CHP_emissions_table[Consumption t dry matter]),"") -> 0 | AA62: =IFERROR(Drying_calculations_table[[#This Row],[Consignment input tfeedstock dry matter]]/(1-Drying_calculations_table[[#This Row],[Moisture %]]),"N/A") -> N/A | AB62: =IFERROR(INDEX(Drying_required,MATCH(Drying_calculations_table[[#This Row],[Consignment '#]],Feedstock_table[Consignment '#],0)),"") -> 0 | AC62: =IFERROR(IF(Drying_calculations_table[[#This Row],[Drying required]]="No",0, IF(Drying_calculations_table[[#This Row],[Consignment input tfeedstock fresh matter]]-(Drying_calculations_table[[#This Row],[Consignment input tfeedstock dry matter]]/(1-Moisture_dryer_outlet))<0,0,Drying_calculations_table[[#This Row],[Consignment input tfeedstock fresh matter]]-(Drying_calculations_table[[#This Row],[Consignment input tfeedstock dry matter]]/(1-Moisture_dryer_outlet)))),"") ->  | AD62: =IF(Drying_calculations_table[[#This Row],[Drying required]]="Yes",Drying_calculations_table[[#This Row],[Water removed by drying for consignment t]]/SUMIF(Drying_calculations_table[Drying required],"yes",Drying_calculations_table[Water removed by drying for consignment t]),IF(Drying_calculations_table[[#This Row],[Drying required]]="No",0,"")) ->  | AF62: =IF(ISBLANK('Pellet plant'!B52),"",'Pellet plant'!B52) ->  | AG62: =IF(ISBLANK('Pellet plant'!C52),"",'Pellet plant'!C52) ->  | AH62: =IF(ISBLANK('Pellet plant'!D52),"",'Pellet plant'!D52) ->  | AI62: =IF(ISBLANK('Pellet plant'!E52),"",'Pellet plant'!E52) ->  | AJ62: =IFERROR(INDEX(Mass_balance_table[Feedstock LHV MJ/kg dry matter],MATCH(Biomass_inputs_burner_emissions_table[[#This Row],[Consignment '# derived from]],Consignments_mass_balance_table[Consignment '#],0)),"") ->  | AL62: =IFERROR(Biomass_inputs_burner_emissions_table[[#This Row],[Consumption t dry matter]]*Biomass_inputs_burner_emissions_table[[#This Row],[LHV MJ/kg dry matter]]*kgpert,"") ->  | AM62: =IFERROR(Biomass_inputs_burner_emissions_table[[#This Row],[Consumption t dry matter]]*INDEX(Upstream_emissions,MATCH(Biomass_inputs_burner_emissions_table[[#This Row],[Consignment '# derived from]],Consignments_upstream_emissions_table[Consignment '#],0)),"") ->  | AN62: =IFERROR(Biomass_inputs_burner_emissions_table[[#This Row],[Consumption MJ]]*INDEX(Biomass_CHP_flue_emissions,MATCH(Biomass_inputs_burner_emissions_table[[#This Row],[Fuel]],Biomass_fuels_for_CHP,0))/gperkg,"") ->  | AO62: =IFERROR(Biomass_inputs_burner_emissions_table[[#This Row],[Fuel emissions kgCO2eq]]+Biomass_inputs_burner_emissions_table[[#This Row],[Flue gas Emissions kgCO2eq]],"") ->  | AP62: =IFERROR(IF(ISBLANK(Biomass_boiler_other_heat),Biomass_inputs_burner_emissions_table[[#This Row],[Total emissions kgCO2eq]],Biomass_inputs_burner_emissions_table[[#This Row],[Total emissions kgCO2eq]]*Biomass_boiler_drying_heat/Biomass_boiler_total_heat),"") ->  | AQ62: =IFERROR(Biomass_inputs_burner_emissions_table[[#This Row],[Total emissions kgCO2eq]]*Biomass_boiler_other_heat/Biomass_boiler_total_heat,"") ->  | AS62: =IF(ISBLANK('Pellet plant'!B78),"",'Pellet plant'!B78) ->  | AT62: =IF(ISBLANK('Pellet plant'!C78),"",'Pellet plant'!C78) ->  | AU62: =IF(ISBLANK('Pellet plant'!D78),"",'Pellet plant'!D78) ->  | AV62: =IF(ISBLANK('Pellet plant'!E78),"",'Pellet plant'!E78) ->  | AW62: =IFERROR(INDEX(Mass_balance_table[Feedstock LHV MJ/kg dry matter],MATCH(Biomass_inputs_CHP_emissions_table[[#This Row],[Consignment '# derived from]],Consignments_mass_balance_table[Consignment '#],0)),"") ->  | AY62: =IFERROR(Biomass_inputs_CHP_emissions_table[[#This Row],[LHV MJ/kg]]*Biomass_inputs_CHP_emissions_table[[#This Row],[Consumption t dry matter]]*kgpert,"") ->  | AZ62: =IFERROR(Biomass_inputs_CHP_emissions_table[[#This Row],[Consumption t dry matter]]*INDEX(Upstream_emissions,MATCH(Biomass_inputs_CHP_emissions_table[[#This Row],[Consignment '# derived from]],Consignments_upstream_emissions_table[Consignment '#],0)),"") ->  | BA62: =IFERROR(Biomass_inputs_CHP_emissions_table[[#This Row],[Consumption MJ]]*INDEX(Biomass_CHP_flue_emissions,MATCH(Biomass_inputs_CHP_emissions_table[[#This Row],[Fuel]],Biomass_CHP_flue_emissions_table[Fuel],0))/gperkg,"") ->  | BB62: =IFERROR(Biomass_inputs_CHP_emissions_table[[#This Row],[Fuel emissions kgCO2eq]]+Biomass_inputs_CHP_emissions_table[[#This Row],[Flue gas Emissions kgCO2eq]],"") ->  | BC62: =IFERROR(Biomass_inputs_CHP_emissions_table[[#This Row],[Total emissions kgCO2eq]]*Biomass_CHP_heat_allocation,"") ->  | BD62: =IFERROR(Biomass_inputs_CHP_emissions_table[[#This Row],[Total emissions kgCO2eq]]*Biomass_CHP_electricity_allocation,"") ->  | BE62: =IFERROR(IF(ISBLANK(Biomass_CHP_other_heat),Biomass_inputs_CHP_emissions_table[[#This Row],[Allocated emissionstotal heat kgCO2eq]],Biomass_inputs_CHP_emissions_table[[#This Row],[Allocated emissionstotal heat kgCO2eq]]*Biomass_CHP_drying_heat/Biomass_CHP_total_heat),"") ->  | BF62: =IFERROR(Biomass_inputs_CHP_emissions_table[[#This Row],[Allocated emissionstotal heat kgCO2eq]]*Biomass_CHP_other_heat/Biomass_CHP_total_heat,"") ->  | BG62: =IFERROR(IF(ISBLANK(Biomass_CHP_electricity_processing),Biomass_inputs_CHP_emissions_table[[#This Row],[Allocated emissionselectricity kgCO2eq]],Biomass_inputs_CHP_emissions_table[[#This Row],[Allocated emissionselectricity kgCO2eq]]*Biomass_CHP_electricity_processing/Biomass_CHP_total_electricity),"") -> 
D63: =IF(ISBLANK(Feedstock!B12),"",Feedstock!B12) -> 4 | E63: =IF(ISBLANK(Feedstock!D12),"",Feedstock!D12) ->  | G63: =Drying_calculations_table[[#This Row],[Consignment input tfeedstock dry matter]] ->  | I63: =IFERROR(SUM(Biomass_boiler_emissions_drying,Fossil_boiler_emissions_drying,Biomass_CHP_emissions_drying_heat,Fossil_CHP_emissions_drying_heat)*Drying_calculations_table[[#This Row],[% total heat for drying]]/Drying_allocations_table[[#This Row],[Consignment output tpellet dry matter]],"") ->  | J63: =IFERROR(Drying_allocations_table[[#This Row],[Total emissions kgCO2eq/tpellet dry matter]]/Pellet_lhv_dry*FF_pellet_transport,"") ->  | U63: =IF(ISBLANK(Feedstock!B12),"",Feedstock!B12) -> 4 | W63: =IF(ISBLANK(Feedstock!J12),(IF(ISBLANK(Feedstock!H12),"",Feedstock!H12)),Feedstock!J12) ->  | Y63: =IFERROR(SUMPRODUCT(--(Biomass_inputs_burner_emissions_table[Consignment '# derived from]=Drying_calculations_table[[#This Row],[Consignment '#]]),Biomass_inputs_burner_emissions_table[Consumption t dry matter])+SUMPRODUCT(--(Biomass_inputs_CHP_emissions_table[Consignment '# derived from]=Drying_calculations_table[[#This Row],[Consignment '#]]),Biomass_inputs_CHP_emissions_table[Consumption t dry matter]),"") -> 0 | AA63: =IFERROR(Drying_calculations_table[[#This Row],[Consignment input tfeedstock dry matter]]/(1-Drying_calculations_table[[#This Row],[Moisture %]]),"N/A") -> N/A | AB63: =IFERROR(INDEX(Drying_required,MATCH(Drying_calculations_table[[#This Row],[Consignment '#]],Feedstock_table[Consignment '#],0)),"") -> 0 | AC63: =IFERROR(IF(Drying_calculations_table[[#This Row],[Drying required]]="No",0, IF(Drying_calculations_table[[#This Row],[Consignment input tfeedstock fresh matter]]-(Drying_calculations_table[[#This Row],[Consignment input tfeedstock dry matter]]/(1-Moisture_dryer_outlet))<0,0,Drying_calculations_table[[#This Row],[Consignment input tfeedstock fresh matter]]-(Drying_calculations_table[[#This Row],[Consignment input tfeedstock dry matter]]/(1-Moisture_dryer_outlet)))),"") ->  | AD63: =IF(Drying_calculations_table[[#This Row],[Drying required]]="Yes",Drying_calculations_table[[#This Row],[Water removed by drying for consignment t]]/SUMIF(Drying_calculations_table[Drying required],"yes",Drying_calculations_table[Water removed by drying for consignment t]),IF(Drying_calculations_table[[#This Row],[Drying required]]="No",0,"")) ->  | AF63: =IF(ISBLANK('Pellet plant'!B53),"",'Pellet plant'!B53) ->  | AG63: =IF(ISBLANK('Pellet plant'!C53),"",'Pellet plant'!C53) ->  | AH63: =IF(ISBLANK('Pellet plant'!D53),"",'Pellet plant'!D53) ->  | AI63: =IF(ISBLANK('Pellet plant'!E53),"",'Pellet plant'!E53) ->  | AJ63: =IFERROR(INDEX(Mass_balance_table[Feedstock LHV MJ/kg dry matter],MATCH(Biomass_inputs_burner_emissions_table[[#This Row],[Consignment '# derived from]],Consignments_mass_balance_table[Consignment '#],0)),"") ->  | AL63: =IFERROR(Biomass_inputs_burner_emissions_table[[#This Row],[Consumption t dry matter]]*Biomass_inputs_burner_emissions_table[[#This Row],[LHV MJ/kg dry matter]]*kgpert,"") ->  | AM63: =IFERROR(Biomass_inputs_burner_emissions_table[[#This Row],[Consumption t dry matter]]*INDEX(Upstream_emissions,MATCH(Biomass_inputs_burner_emissions_table[[#This Row],[Consignment '# derived from]],Consignments_upstream_emissions_table[Consignment '#],0)),"") ->  | AN63: =IFERROR(Biomass_inputs_burner_emissions_table[[#This Row],[Consumption MJ]]*INDEX(Biomass_CHP_flue_emissions,MATCH(Biomass_inputs_burner_emissions_table[[#This Row],[Fuel]],Biomass_fuels_for_CHP,0))/gperkg,"") ->  | AO63: =IFERROR(Biomass_inputs_burner_emissions_table[[#This Row],[Fuel emissions kgCO2eq]]+Biomass_inputs_burner_emissions_table[[#This Row],[Flue gas Emissions kgCO2eq]],"") ->  | AP63: =IFERROR(IF(ISBLANK(Biomass_boiler_other_heat),Biomass_inputs_burner_emissions_table[[#This Row],[Total emissions kgCO2eq]],Biomass_inputs_burner_emissions_table[[#This Row],[Total emissions kgCO2eq]]*Biomass_boiler_drying_heat/Biomass_boiler_total_heat),"") ->  | AQ63: =IFERROR(Biomass_inputs_burner_emissions_table[[#This Row],[Total emissions kgCO2eq]]*Biomass_boiler_other_heat/Biomass_boiler_total_heat,"") ->  | AS63: =IF(ISBLANK('Pellet plant'!B79),"",'Pellet plant'!B79) ->  | AT63: =IF(ISBLANK('Pellet plant'!C79),"",'Pellet plant'!C79) ->  | AU63: =IF(ISBLANK('Pellet plant'!D79),"",'Pellet plant'!D79) ->  | AV63: =IF(ISBLANK('Pellet plant'!E79),"",'Pellet plant'!E79) ->  | AW63: =IFERROR(INDEX(Mass_balance_table[Feedstock LHV MJ/kg dry matter],MATCH(Biomass_inputs_CHP_emissions_table[[#This Row],[Consignment '# derived from]],Consignments_mass_balance_table[Consignment '#],0)),"") ->  | AY63: =IFERROR(Biomass_inputs_CHP_emissions_table[[#This Row],[LHV MJ/kg]]*Biomass_inputs_CHP_emissions_table[[#This Row],[Consumption t dry matter]]*kgpert,"") ->  | AZ63: =IFERROR(Biomass_inputs_CHP_emissions_table[[#This Row],[Consumption t dry matter]]*INDEX(Upstream_emissions,MATCH(Biomass_inputs_CHP_emissions_table[[#This Row],[Consignment '# derived from]],Consignments_upstream_emissions_table[Consignment '#],0)),"") ->  | BA63: =IFERROR(Biomass_inputs_CHP_emissions_table[[#This Row],[Consumption MJ]]*INDEX(Biomass_CHP_flue_emissions,MATCH(Biomass_inputs_CHP_emissions_table[[#This Row],[Fuel]],Biomass_CHP_flue_emissions_table[Fuel],0))/gperkg,"") ->  | BB63: =IFERROR(Biomass_inputs_CHP_emissions_table[[#This Row],[Fuel emissions kgCO2eq]]+Biomass_inputs_CHP_emissions_table[[#This Row],[Flue gas Emissions kgCO2eq]],"") ->  | BC63: =IFERROR(Biomass_inputs_CHP_emissions_table[[#This Row],[Total emissions kgCO2eq]]*Biomass_CHP_heat_allocation,"") ->  | BD63: =IFERROR(Biomass_inputs_CHP_emissions_table[[#This Row],[Total emissions kgCO2eq]]*Biomass_CHP_electricity_allocation,"") ->  | BE63: =IFERROR(IF(ISBLANK(Biomass_CHP_other_heat),Biomass_inputs_CHP_emissions_table[[#This Row],[Allocated emissionstotal heat kgCO2eq]],Biomass_inputs_CHP_emissions_table[[#This Row],[Allocated emissionstotal heat kgCO2eq]]*Biomass_CHP_drying_heat/Biomass_CHP_total_heat),"") ->  | BF63: =IFERROR(Biomass_inputs_CHP_emissions_table[[#This Row],[Allocated emissionstotal heat kgCO2eq]]*Biomass_CHP_other_heat/Biomass_CHP_total_heat,"") ->  | BG63: =IFERROR(IF(ISBLANK(Biomass_CHP_electricity_processing),Biomass_inputs_CHP_emissions_table[[#This Row],[Allocated emissionselectricity kgCO2eq]],Biomass_inputs_CHP_emissions_table[[#This Row],[Allocated emissionselectricity kgCO2eq]]*Biomass_CHP_electricity_processing/Biomass_CHP_total_electricity),"") -> 
D64: =IF(ISBLANK(Feedstock!B13),"",Feedstock!B13) -> 5 | E64: =IF(ISBLANK(Feedstock!D13),"",Feedstock!D13) ->  | G64: =Drying_calculations_table[[#This Row],[Consignment input tfeedstock dry matter]] ->  | I64: =IFERROR(SUM(Biomass_boiler_emissions_drying,Fossil_boiler_emissions_drying,Biomass_CHP_emissions_drying_heat,Fossil_CHP_emissions_drying_heat)*Drying_calculations_table[[#This Row],[% total heat for drying]]/Drying_allocations_table[[#This Row],[Consignment output tpellet dry matter]],"") ->  | J64: =IFERROR(Drying_allocations_table[[#This Row],[Total emissions kgCO2eq/tpellet dry matter]]/Pellet_lhv_dry*FF_pellet_transport,"") ->  | U64: =IF(ISBLANK(Feedstock!B13),"",Feedstock!B13) -> 5 | W64: =IF(ISBLANK(Feedstock!J13),(IF(ISBLANK(Feedstock!H13),"",Feedstock!H13)),Feedstock!J13) ->  | Y64: =IFERROR(SUMPRODUCT(--(Biomass_inputs_burner_emissions_table[Consignment '# derived from]=Drying_calculations_table[[#This Row],[Consignment '#]]),Biomass_inputs_burner_emissions_table[Consumption t dry matter])+SUMPRODUCT(--(Biomass_inputs_CHP_emissions_table[Consignment '# derived from]=Drying_calculations_table[[#This Row],[Consignment '#]]),Biomass_inputs_CHP_emissions_table[Consumption t dry matter]),"") -> 0 | AA64: =IFERROR(Drying_calculations_table[[#This Row],[Consignment input tfeedstock dry matter]]/(1-Drying_calculations_table[[#This Row],[Moisture %]]),"N/A") -> N/A | AB64: =IFERROR(INDEX(Drying_required,MATCH(Drying_calculations_table[[#This Row],[Consignment '#]],Feedstock_table[Consignment '#],0)),"") -> 0 | AC64: =IFERROR(IF(Drying_calculations_table[[#This Row],[Drying required]]="No",0, IF(Drying_calculations_table[[#This Row],[Consignment input tfeedstock fresh matter]]-(Drying_calculations_table[[#This Row],[Consignment input tfeedstock dry matter]]/(1-Moisture_dryer_outlet))<0,0,Drying_calculations_table[[#This Row],[Consignment input tfeedstock fresh matter]]-(Drying_calculations_table[[#This Row],[Consignment input tfeedstock dry matter]]/(1-Moisture_dryer_outlet)))),"") ->  | AD64: =IF(Drying_calculations_table[[#This Row],[Drying required]]="Yes",Drying_calculations_table[[#This Row],[Water removed by drying for consignment t]]/SUMIF(Drying_calculations_table[Drying required],"yes",Drying_calculations_table[Water removed by drying for consignment t]),IF(Drying_calculations_table[[#This Row],[Drying required]]="No",0,"")) ->  | AF64: =IF(ISBLANK('Pellet plant'!B54),"",'Pellet plant'!B54) ->  | AG64: =IF(ISBLANK('Pellet plant'!C54),"",'Pellet plant'!C54) ->  | AH64: =IF(ISBLANK('Pellet plant'!D54),"",'Pellet plant'!D54) ->  | AI64: =IF(ISBLANK('Pellet plant'!E54),"",'Pellet plant'!E54) ->  | AJ64: =IFERROR(INDEX(Mass_balance_table[Feedstock LHV MJ/kg dry matter],MATCH(Biomass_inputs_burner_emissions_table[[#This Row],[Consignment '# derived from]],Consignments_mass_balance_table[Consignment '#],0)),"") ->  | AL64: =IFERROR(Biomass_inputs_burner_emissions_table[[#This Row],[Consumption t dry matter]]*Biomass_inputs_burner_emissions_table[[#This Row],[LHV MJ/kg dry matter]]*kgpert,"") ->  | AM64: =IFERROR(Biomass_inputs_burner_emissions_table[[#This Row],[Consumption t dry matter]]*INDEX(Upstream_emissions,MATCH(Biomass_inputs_burner_emissions_table[[#This Row],[Consignment '# derived from]],Consignments_upstream_emissions_table[Consignment '#],0)),"") ->  | AN64: =IFERROR(Biomass_inputs_burner_emissions_table[[#This Row],[Consumption MJ]]*INDEX(Biomass_CHP_flue_emissions,MATCH(Biomass_inputs_burner_emissions_table[[#This Row],[Fuel]],Biomass_fuels_for_CHP,0))/gperkg,"") ->  | AO64: =IFERROR(Biomass_inputs_burner_emissions_table[[#This Row],[Fuel emissions kgCO2eq]]+Biomass_inputs_burner_emissions_table[[#This Row],[Flue gas Emissions kgCO2eq]],"") ->  | AP64: =IFERROR(IF(ISBLANK(Biomass_boiler_other_heat),Biomass_inputs_burner_emissions_table[[#This Row],[Total emissions kgCO2eq]],Biomass_inputs_burner_emissions_table[[#This Row],[Total emissions kgCO2eq]]*Biomass_boiler_drying_heat/Biomass_boiler_total_heat),"") ->  | AQ64: =IFERROR(Biomass_inputs_burner_emissions_table[[#This Row],[Total emissions kgCO2eq]]*Biomass_boiler_other_heat/Biomass_boiler_total_heat,"") ->  | AS64: =IF(ISBLANK('Pellet plant'!B80),"",'Pellet plant'!B80) ->  | AT64: =IF(ISBLANK('Pellet plant'!C80),"",'Pellet plant'!C80) ->  | AU64: =IF(ISBLANK('Pellet plant'!D80),"",'Pellet plant'!D80) ->  | AV64: =IF(ISBLANK('Pellet plant'!E80),"",'Pellet plant'!E80) ->  | AW64: =IFERROR(INDEX(Mass_balance_table[Feedstock LHV MJ/kg dry matter],MATCH(Biomass_inputs_CHP_emissions_table[[#This Row],[Consignment '# derived from]],Consignments_mass_balance_table[Consignment '#],0)),"") ->  | AY64: =IFERROR(Biomass_inputs_CHP_emissions_table[[#This Row],[LHV MJ/kg]]*Biomass_inputs_CHP_emissions_table[[#This Row],[Consumption t dry matter]]*kgpert,"") ->  | AZ64: =IFERROR(Biomass_inputs_CHP_emissions_table[[#This Row],[Consumption t dry matter]]*INDEX(Upstream_emissions,MATCH(Biomass_inputs_CHP_emissions_table[[#This Row],[Consignment '# derived from]],Consignments_upstream_emissions_table[Consignment '#],0)),"") ->  | BA64: =IFERROR(Biomass_inputs_CHP_emissions_table[[#This Row],[Consumption MJ]]*INDEX(Biomass_CHP_flue_emissions,MATCH(Biomass_inputs_CHP_emissions_table[[#This Row],[Fuel]],Biomass_CHP_flue_emissions_table[Fuel],0))/gperkg,"") ->  | BB64: =IFERROR(Biomass_inputs_CHP_emissions_table[[#This Row],[Fuel emissions kgCO2eq]]+Biomass_inputs_CHP_emissions_table[[#This Row],[Flue gas Emissions kgCO2eq]],"") ->  | BC64: =IFERROR(Biomass_inputs_CHP_emissions_table[[#This Row],[Total emissions kgCO2eq]]*Biomass_CHP_heat_allocation,"") ->  | BD64: =IFERROR(Biomass_inputs_CHP_emissions_table[[#This Row],[Total emissions kgCO2eq]]*Biomass_CHP_electricity_allocation,"") ->  | BE64: =IFERROR(IF(ISBLANK(Biomass_CHP_other_heat),Biomass_inputs_CHP_emissions_table[[#This Row],[Allocated emissionstotal heat kgCO2eq]],Biomass_inputs_CHP_emissions_table[[#This Row],[Allocated emissionstotal heat kgCO2eq]]*Biomass_CHP_drying_heat/Biomass_CHP_total_heat),"") ->  | BF64: =IFERROR(Biomass_inputs_CHP_emissions_table[[#This Row],[Allocated emissionstotal heat kgCO2eq]]*Biomass_CHP_other_heat/Biomass_CHP_total_heat,"") ->  | BG64: =IFERROR(IF(ISBLANK(Biomass_CHP_electricity_processing),Biomass_inputs_CHP_emissions_table[[#This Row],[Allocated emissionselectricity kgCO2eq]],Biomass_inputs_CHP_emissions_table[[#This Row],[Allocated emissionselectricity kgCO2eq]]*Biomass_CHP_electricity_processing/Biomass_CHP_total_electricity),"") -> 
D65: =IF(ISBLANK(Feedstock!B14),"",Feedstock!B14) -> 6 | E65: =IF(ISBLANK(Feedstock!D14),"",Feedstock!D14) ->  | G65: =Drying_calculations_table[[#This Row],[Consignment input tfeedstock dry matter]] ->  | I65: =IFERROR(SUM(Biomass_boiler_emissions_drying,Fossil_boiler_emissions_drying,Biomass_CHP_emissions_drying_heat,Fossil_CHP_emissions_drying_heat)*Drying_calculations_table[[#This Row],[% total heat for drying]]/Drying_allocations_table[[#This Row],[Consignment output tpellet dry matter]],"") ->  | J65: =IFERROR(Drying_allocations_table[[#This Row],[Total emissions kgCO2eq/tpellet dry matter]]/Pellet_lhv_dry*FF_pellet_transport,"") ->  | U65: =IF(ISBLANK(Feedstock!B14),"",Feedstock!B14) -> 6 | W65: =IF(ISBLANK(Feedstock!J14),(IF(ISBLANK(Feedstock!H14),"",Feedstock!H14)),Feedstock!J14) ->  | Y65: =IFERROR(SUMPRODUCT(--(Biomass_inputs_burner_emissions_table[Consignment '# derived from]=Drying_calculations_table[[#This Row],[Consignment '#]]),Biomass_inputs_burner_emissions_table[Consumption t dry matter])+SUMPRODUCT(--(Biomass_inputs_CHP_emissions_table[Consignment '# derived from]=Drying_calculations_table[[#This Row],[Consignment '#]]),Biomass_inputs_CHP_emissions_table[Consumption t dry matter]),"") -> 0 | AA65: =IFERROR(Drying_calculations_table[[#This Row],[Consignment input tfeedstock dry matter]]/(1-Drying_calculations_table[[#This Row],[Moisture %]]),"N/A") -> N/A | AB65: =IFERROR(INDEX(Drying_required,MATCH(Drying_calculations_table[[#This Row],[Consignment '#]],Feedstock_table[Consignment '#],0)),"") -> 0 | AC65: =IFERROR(IF(Drying_calculations_table[[#This Row],[Drying required]]="No",0, IF(Drying_calculations_table[[#This Row],[Consignment input tfeedstock fresh matter]]-(Drying_calculations_table[[#This Row],[Consignment input tfeedstock dry matter]]/(1-Moisture_dryer_outlet))<0,0,Drying_calculations_table[[#This Row],[Consignment input tfeedstock fresh matter]]-(Drying_calculations_table[[#This Row],[Consignment input tfeedstock dry matter]]/(1-Moisture_dryer_outlet)))),"") ->  | AD65: =IF(Drying_calculations_table[[#This Row],[Drying required]]="Yes",Drying_calculations_table[[#This Row],[Water removed by drying for consignment t]]/SUMIF(Drying_calculations_table[Drying required],"yes",Drying_calculations_table[Water removed by drying for consignment t]),IF(Drying_calculations_table[[#This Row],[Drying required]]="No",0,"")) ->  | AF65: =IF(ISBLANK('Pellet plant'!B55),"",'Pellet plant'!B55) ->  | AG65: =IF(ISBLANK('Pellet plant'!C55),"",'Pellet plant'!C55) ->  | AH65: =IF(ISBLANK('Pellet plant'!D55),"",'Pellet plant'!D55) ->  | AI65: =IF(ISBLANK('Pellet plant'!E55),"",'Pellet plant'!E55) ->  | AJ65: =IFERROR(INDEX(Mass_balance_table[Feedstock LHV MJ/kg dry matter],MATCH(Biomass_inputs_burner_emissions_table[[#This Row],[Consignment '# derived from]],Consignments_mass_balance_table[Consignment '#],0)),"") ->  | AL65: =IFERROR(Biomass_inputs_burner_emissions_table[[#This Row],[Consumption t dry matter]]*Biomass_inputs_burner_emissions_table[[#This Row],[LHV MJ/kg dry matter]]*kgpert,"") ->  | AM65: =IFERROR(Biomass_inputs_burner_emissions_table[[#This Row],[Consumption t dry matter]]*INDEX(Upstream_emissions,MATCH(Biomass_inputs_burner_emissions_table[[#This Row],[Consignment '# derived from]],Consignments_upstream_emissions_table[Consignment '#],0)),"") ->  | AN65: =IFERROR(Biomass_inputs_burner_emissions_table[[#This Row],[Consumption MJ]]*INDEX(Biomass_CHP_flue_emissions,MATCH(Biomass_inputs_burner_emissions_table[[#This Row],[Fuel]],Biomass_fuels_for_CHP,0))/gperkg,"") ->  | AO65: =IFERROR(Biomass_inputs_burner_emissions_table[[#This Row],[Fuel emissions kgCO2eq]]+Biomass_inputs_burner_emissions_table[[#This Row],[Flue gas Emissions kgCO2eq]],"") ->  | AP65: =IFERROR(IF(ISBLANK(Biomass_boiler_other_heat),Biomass_inputs_burner_emissions_table[[#This Row],[Total emissions kgCO2eq]],Biomass_inputs_burner_emissions_table[[#This Row],[Total emissions kgCO2eq]]*Biomass_boiler_drying_heat/Biomass_boiler_total_heat),"") ->  | AQ65: =IFERROR(Biomass_inputs_burner_emissions_table[[#This Row],[Total emissions kgCO2eq]]*Biomass_boiler_other_heat/Biomass_boiler_total_heat,"") ->  | AS65: =IF(ISBLANK('Pellet plant'!B81),"",'Pellet plant'!B81) ->  | AT65: =IF(ISBLANK('Pellet plant'!C81),"",'Pellet plant'!C81) ->  | AU65: =IF(ISBLANK('Pellet plant'!D81),"",'Pellet plant'!D81) ->  | AV65: =IF(ISBLANK('Pellet plant'!E81),"",'Pellet plant'!E81) ->  | AW65: =IFERROR(INDEX(Mass_balance_table[Feedstock LHV MJ/kg dry matter],MATCH(Biomass_inputs_CHP_emissions_table[[#This Row],[Consignment '# derived from]],Consignments_mass_balance_table[Consignment '#],0)),"") ->  | AY65: =IFERROR(Biomass_inputs_CHP_emissions_table[[#This Row],[LHV MJ/kg]]*Biomass_inputs_CHP_emissions_table[[#This Row],[Consumption t dry matter]]*kgpert,"") ->  | AZ65: =IFERROR(Biomass_inputs_CHP_emissions_table[[#This Row],[Consumption t dry matter]]*INDEX(Upstream_emissions,MATCH(Biomass_inputs_CHP_emissions_table[[#This Row],[Consignment '# derived from]],Consignments_upstream_emissions_table[Consignment '#],0)),"") ->  | BA65: =IFERROR(Biomass_inputs_CHP_emissions_table[[#This Row],[Consumption MJ]]*INDEX(Biomass_CHP_flue_emissions,MATCH(Biomass_inputs_CHP_emissions_table[[#This Row],[Fuel]],Biomass_CHP_flue_emissions_table[Fuel],0))/gperkg,"") ->  | BB65: =IFERROR(Biomass_inputs_CHP_emissions_table[[#This Row],[Fuel emissions kgCO2eq]]+Biomass_inputs_CHP_emissions_table[[#This Row],[Flue gas Emissions kgCO2eq]],"") ->  | BC65: =IFERROR(Biomass_inputs_CHP_emissions_table[[#This Row],[Total emissions kgCO2eq]]*Biomass_CHP_heat_allocation,"") ->  | BD65: =IFERROR(Biomass_inputs_CHP_emissions_table[[#This Row],[Total emissions kgCO2eq]]*Biomass_CHP_electricity_allocation,"") ->  | BE65: =IFERROR(IF(ISBLANK(Biomass_CHP_other_heat),Biomass_inputs_CHP_emissions_table[[#This Row],[Allocated emissionstotal heat kgCO2eq]],Biomass_inputs_CHP_emissions_table[[#This Row],[Allocated emissionstotal heat kgCO2eq]]*Biomass_CHP_drying_heat/Biomass_CHP_total_heat),"") ->  | BF65: =IFERROR(Biomass_inputs_CHP_emissions_table[[#This Row],[Allocated emissionstotal heat kgCO2eq]]*Biomass_CHP_other_heat/Biomass_CHP_total_heat,"") ->  | BG65: =IFERROR(IF(ISBLANK(Biomass_CHP_electricity_processing),Biomass_inputs_CHP_emissions_table[[#This Row],[Allocated emissionselectricity kgCO2eq]],Biomass_inputs_CHP_emissions_table[[#This Row],[Allocated emissionselectricity kgCO2eq]]*Biomass_CHP_electricity_processing/Biomass_CHP_total_electricity),"") -> 
D66: =IF(ISBLANK(Feedstock!B15),"",Feedstock!B15) -> 7 | E66: =IF(ISBLANK(Feedstock!D15),"",Feedstock!D15) ->  | G66: =Drying_calculations_table[[#This Row],[Consignment input tfeedstock dry matter]] ->  | I66: =IFERROR(SUM(Biomass_boiler_emissions_drying,Fossil_boiler_emissions_drying,Biomass_CHP_emissions_drying_heat,Fossil_CHP_emissions_drying_heat)*Drying_calculations_table[[#This Row],[% total heat for drying]]/Drying_allocations_table[[#This Row],[Consignment output tpellet dry matter]],"") ->  | J66: =IFERROR(Drying_allocations_table[[#This Row],[Total emissions kgCO2eq/tpellet dry matter]]/Pellet_lhv_dry*FF_pellet_transport,"") ->  | U66: =IF(ISBLANK(Feedstock!B15),"",Feedstock!B15) -> 7 | W66: =IF(ISBLANK(Feedstock!J15),(IF(ISBLANK(Feedstock!H15),"",Feedstock!H15)),Feedstock!J15) ->  | Y66: =IFERROR(SUMPRODUCT(--(Biomass_inputs_burner_emissions_table[Consignment '# derived from]=Drying_calculations_table[[#This Row],[Consignment '#]]),Biomass_inputs_burner_emissions_table[Consumption t dry matter])+SUMPRODUCT(--(Biomass_inputs_CHP_emissions_table[Consignment '# derived from]=Drying_calculations_table[[#This Row],[Consignment '#]]),Biomass_inputs_CHP_emissions_table[Consumption t dry matter]),"") -> 0 | AA66: =IFERROR(Drying_calculations_table[[#This Row],[Consignment input tfeedstock dry matter]]/(1-Drying_calculations_table[[#This Row],[Moisture %]]),"N/A") -> N/A | AB66: =IFERROR(INDEX(Drying_required,MATCH(Drying_calculations_table[[#This Row],[Consignment '#]],Feedstock_table[Consignment '#],0)),"") -> 0 | AC66: =IFERROR(IF(Drying_calculations_table[[#This Row],[Drying required]]="No",0, IF(Drying_calculations_table[[#This Row],[Consignment input tfeedstock fresh matter]]-(Drying_calculations_table[[#This Row],[Consignment input tfeedstock dry matter]]/(1-Moisture_dryer_outlet))<0,0,Drying_calculations_table[[#This Row],[Consignment input tfeedstock fresh matter]]-(Drying_calculations_table[[#This Row],[Consignment input tfeedstock dry matter]]/(1-Moisture_dryer_outlet)))),"") ->  | AD66: =IF(Drying_calculations_table[[#This Row],[Drying required]]="Yes",Drying_calculations_table[[#This Row],[Water removed by drying for consignment t]]/SUMIF(Drying_calculations_table[Drying required],"yes",Drying_calculations_table[Water removed by drying for consignment t]),IF(Drying_calculations_table[[#This Row],[Drying required]]="No",0,"")) ->  | AF66: =IF(ISBLANK('Pellet plant'!B56),"",'Pellet plant'!B56) ->  | AG66: =IF(ISBLANK('Pellet plant'!C56),"",'Pellet plant'!C56) ->  | AH66: =IF(ISBLANK('Pellet plant'!D56),"",'Pellet plant'!D56) ->  | AI66: =IF(ISBLANK('Pellet plant'!E56),"",'Pellet plant'!E56) ->  | AJ66: =IFERROR(INDEX(Mass_balance_table[Feedstock LHV MJ/kg dry matter],MATCH(Biomass_inputs_burner_emissions_table[[#This Row],[Consignment '# derived from]],Consignments_mass_balance_table[Consignment '#],0)),"") ->  | AK66: =IFERROR(AH66*(1-AI66),"") ->  | AL66: =IFERROR(Biomass_inputs_burner_emissions_table[[#This Row],[Consumption t dry matter]]*Biomass_inputs_burner_emissions_table[[#This Row],[LHV MJ/kg dry matter]]*kgpert,"") ->  | AM66: =IFERROR(Biomass_inputs_burner_emissions_table[[#This Row],[Consumption t dry matter]]*INDEX(Upstream_emissions,MATCH(Biomass_inputs_burner_emissions_table[[#This Row],[Consignment '# derived from]],Consignments_upstream_emissions_table[Consignment '#],0)),"") ->  | AN66: =IFERROR(Biomass_inputs_burner_emissions_table[[#This Row],[Consumption MJ]]*INDEX(Biomass_CHP_flue_emissions,MATCH(Biomass_inputs_burner_emissions_table[[#This Row],[Fuel]],Biomass_fuels_for_CHP,0))/gperkg,"") ->  | AO66: =IFERROR(Biomass_inputs_burner_emissions_table[[#This Row],[Fuel emissions kgCO2eq]]+Biomass_inputs_burner_emissions_table[[#This Row],[Flue gas Emissions kgCO2eq]],"") ->  | AP66: =IFERROR(IF(ISBLANK(Biomass_boiler_other_heat),Biomass_inputs_burner_emissions_table[[#This Row],[Total emissions kgCO2eq]],Biomass_inputs_burner_emissions_table[[#This Row],[Total emissions kgCO2eq]]*Biomass_boiler_drying_heat/Biomass_boiler_total_heat),"") ->  | AQ66: =IFERROR(Biomass_inputs_burner_emissions_table[[#This Row],[Total emissions kgCO2eq]]*Biomass_boiler_other_heat/Biomass_boiler_total_heat,"") ->  | AS66: =IF(ISBLANK('Pellet plant'!B82),"",'Pellet plant'!B82) ->  | AT66: =IF(ISBLANK('Pellet plant'!C82),"",'Pellet plant'!C82) ->  | AU66: =IF(ISBLANK('Pellet plant'!D82),"",'Pellet plant'!D82) ->  | AV66: =IF(ISBLANK('Pellet plant'!E82),"",'Pellet plant'!E82) ->  | AW66: =IFERROR(INDEX(Mass_balance_table[Feedstock LHV MJ/kg dry matter],MATCH(Biomass_inputs_CHP_emissions_table[[#This Row],[Consignment '# derived from]],Consignments_mass_balance_table[Consignment '#],0)),"") ->  | AX66: =IFERROR(AU66*(1-AV66),"") ->  | AY66: =IFERROR(Biomass_inputs_CHP_emissions_table[[#This Row],[LHV MJ/kg]]*Biomass_inputs_CHP_emissions_table[[#This Row],[Consumption t dry matter]]*kgpert,"") ->  | AZ66: =IFERROR(Biomass_inputs_CHP_emissions_table[[#This Row],[Consumption t dry matter]]*INDEX(Upstream_emissions,MATCH(Biomass_inputs_CHP_emissions_table[[#This Row],[Consignment '# derived from]],Consignments_upstream_emissions_table[Consignment '#],0)),"") ->  | BA66: =IFERROR(Biomass_inputs_CHP_emissions_table[[#This Row],[Consumption MJ]]*INDEX(Biomass_CHP_flue_emissions,MATCH(Biomass_inputs_CHP_emissions_table[[#This Row],[Fuel]],Biomass_CHP_flue_emissions_table[Fuel],0))/gperkg,"") ->  | BB66: =IFERROR(Biomass_inputs_CHP_emissions_table[[#This Row],[Fuel emissions kgCO2eq]]+Biomass_inputs_CHP_emissions_table[[#This Row],[Flue gas Emissions kgCO2eq]],"") ->  | BC66: =IFERROR(Biomass_inputs_CHP_emissions_table[[#This Row],[Total emissions kgCO2eq]]*Biomass_CHP_heat_allocation,"") ->  | BD66: =IFERROR(Biomass_inputs_CHP_emissions_table[[#This Row],[Total emissions kgCO2eq]]*Biomass_CHP_electricity_allocation,"") ->  | BE66: =IFERROR(IF(ISBLANK(Biomass_CHP_other_heat),Biomass_inputs_CHP_emissions_table[[#This Row],[Allocated emissionstotal heat kgCO2eq]],Biomass_inputs_CHP_emissions_table[[#This Row],[Allocated emissionstotal heat kgCO2eq]]*Biomass_CHP_drying_heat/Biomass_CHP_total_heat),"") ->  | BF66: =IFERROR(Biomass_inputs_CHP_emissions_table[[#This Row],[Allocated emissionstotal heat kgCO2eq]]*Biomass_CHP_other_heat/Biomass_CHP_total_heat,"") ->  | BG66: =IFERROR(IF(ISBLANK(Biomass_CHP_electricity_processing),Biomass_inputs_CHP_emissions_table[[#This Row],[Allocated emissionselectricity kgCO2eq]],Biomass_inputs_CHP_emissions_table[[#This Row],[Allocated emissionselectricity kgCO2eq]]*Biomass_CHP_electricity_processing/Biomass_CHP_total_electricity),"") -> 
D67: =IF(ISBLANK(Feedstock!B16),"",Feedstock!B16) -> 8 | E67: =IF(ISBLANK(Feedstock!D16),"",Feedstock!D16) ->  | G67: =Drying_calculations_table[[#This Row],[Consignment input tfeedstock dry matter]] ->  | I67: =IFERROR(SUM(Biomass_boiler_emissions_drying,Fossil_boiler_emissions_drying,Biomass_CHP_emissions_drying_heat,Fossil_CHP_emissions_drying_heat)*Drying_calculations_table[[#This Row],[% total heat for drying]]/Drying_allocations_table[[#This Row],[Consignment output tpellet dry matter]],"") ->  | J67: =IFERROR(Drying_allocations_table[[#This Row],[Total emissions kgCO2eq/tpellet dry matter]]/Pellet_lhv_dry*FF_pellet_transport,"") ->  | U67: =IF(ISBLANK(Feedstock!B16),"",Feedstock!B16) -> 8 | W67: =IF(ISBLANK(Feedstock!J16),(IF(ISBLANK(Feedstock!H16),"",Feedstock!H16)),Feedstock!J16) ->  | Y67: =IFERROR(SUMPRODUCT(--(Biomass_inputs_burner_emissions_table[Consignment '# derived from]=Drying_calculations_table[[#This Row],[Consignment '#]]),Biomass_inputs_burner_emissions_table[Consumption t dry matter])+SUMPRODUCT(--(Biomass_inputs_CHP_emissions_table[Consignment '# derived from]=Drying_calculations_table[[#This Row],[Consignment '#]]),Biomass_inputs_CHP_emissions_table[Consumption t dry matter]),"") -> 0 | AA67: =IFERROR(Drying_calculations_table[[#This Row],[Consignment input tfeedstock dry matter]]/(1-Drying_calculations_table[[#This Row],[Moisture %]]),"N/A") -> N/A | AB67: =IFERROR(INDEX(Drying_required,MATCH(Drying_calculations_table[[#This Row],[Consignment '#]],Feedstock_table[Consignment '#],0)),"") -> 0 | AC67: =IFERROR(IF(Drying_calculations_table[[#This Row],[Drying required]]="No",0, IF(Drying_calculations_table[[#This Row],[Consignment input tfeedstock fresh matter]]-(Drying_calculations_table[[#This Row],[Consignment input tfeedstock dry matter]]/(1-Moisture_dryer_outlet))<0,0,Drying_calculations_table[[#This Row],[Consignment input tfeedstock fresh matter]]-(Drying_calculations_table[[#This Row],[Consignment input tfeedstock dry matter]]/(1-Moisture_dryer_outlet)))),"") ->  | AD67: =IF(Drying_calculations_table[[#This Row],[Drying required]]="Yes",Drying_calculations_table[[#This Row],[Water removed by drying for consignment t]]/SUMIF(Drying_calculations_table[Drying required],"yes",Drying_calculations_table[Water removed by drying for consignment t]),IF(Drying_calculations_table[[#This Row],[Drying required]]="No",0,"")) ->  | AF67: =IF(ISBLANK('Pellet plant'!B57),"",'Pellet plant'!B57) ->  | AG67: =IF(ISBLANK('Pellet plant'!C57),"",'Pellet plant'!C57) ->  | AH67: =IF(ISBLANK('Pellet plant'!D57),"",'Pellet plant'!D57) ->  | AI67: =IF(ISBLANK('Pellet plant'!E57),"",'Pellet plant'!E57) ->  | AJ67: =IFERROR(INDEX(Mass_balance_table[Feedstock LHV MJ/kg dry matter],MATCH(Biomass_inputs_burner_emissions_table[[#This Row],[Consignment '# derived from]],Consignments_mass_balance_table[Consignment '#],0)),"") ->  | AL67: =IFERROR(Biomass_inputs_burner_emissions_table[[#This Row],[Consumption t dry matter]]*Biomass_inputs_burner_emissions_table[[#This Row],[LHV MJ/kg dry matter]]*kgpert,"") ->  | AM67: =IFERROR(Biomass_inputs_burner_emissions_table[[#This Row],[Consumption t dry matter]]*INDEX(Upstream_emissions,MATCH(Biomass_inputs_burner_emissions_table[[#This Row],[Consignment '# derived from]],Consignments_upstream_emissions_table[Consignment '#],0)),"") ->  | AN67: =IFERROR(Biomass_inputs_burner_emissions_table[[#This Row],[Consumption MJ]]*INDEX(Biomass_CHP_flue_emissions,MATCH(Biomass_inputs_burner_emissions_table[[#This Row],[Fuel]],Biomass_fuels_for_CHP,0))/gperkg,"") ->  | AO67: =IFERROR(Biomass_inputs_burner_emissions_table[[#This Row],[Fuel emissions kgCO2eq]]+Biomass_inputs_burner_emissions_table[[#This Row],[Flue gas Emissions kgCO2eq]],"") ->  | AP67: =IFERROR(IF(ISBLANK(Biomass_boiler_other_heat),Biomass_inputs_burner_emissions_table[[#This Row],[Total emissions kgCO2eq]],Biomass_inputs_burner_emissions_table[[#This Row],[Total emissions kgCO2eq]]*Biomass_boiler_drying_heat/Biomass_boiler_total_heat),"") ->  | AQ67: =IFERROR(Biomass_inputs_burner_emissions_table[[#This Row],[Total emissions kgCO2eq]]*Biomass_boiler_other_heat/Biomass_boiler_total_heat,"") ->  | AS67: =IF(ISBLANK('Pellet plant'!B83),"",'Pellet plant'!B83) ->  | AT67: =IF(ISBLANK('Pellet plant'!C83),"",'Pellet plant'!C83) ->  | AU67: =IF(ISBLANK('Pellet plant'!D83),"",'Pellet plant'!D83) ->  | AV67: =IF(ISBLANK('Pellet plant'!E83),"",'Pellet plant'!E83) ->  | AW67: =IFERROR(INDEX(Mass_balance_table[Feedstock LHV MJ/kg dry matter],MATCH(Biomass_inputs_CHP_emissions_table[[#This Row],[Consignment '# derived from]],Consignments_mass_balance_table[Consignment '#],0)),"") ->  | AY67: =IFERROR(Biomass_inputs_CHP_emissions_table[[#This Row],[LHV MJ/kg]]*Biomass_inputs_CHP_emissions_table[[#This Row],[Consumption t dry matter]]*kgpert,"") ->  | AZ67: =IFERROR(Biomass_inputs_CHP_emissions_table[[#This Row],[Consumption t dry matter]]*INDEX(Upstream_emissions,MATCH(Biomass_inputs_CHP_emissions_table[[#This Row],[Consignment '# derived from]],Consignments_upstream_emissions_table[Consignment '#],0)),"") ->  | BA67: =IFERROR(Biomass_inputs_CHP_emissions_table[[#This Row],[Consumption MJ]]*INDEX(Biomass_CHP_flue_emissions,MATCH(Biomass_inputs_CHP_emissions_table[[#This Row],[Fuel]],Biomass_CHP_flue_emissions_table[Fuel],0))/gperkg,"") ->  | BB67: =IFERROR(Biomass_inputs_CHP_emissions_table[[#This Row],[Fuel emissions kgCO2eq]]+Biomass_inputs_CHP_emissions_table[[#This Row],[Flue gas Emissions kgCO2eq]],"") ->  | BC67: =IFERROR(Biomass_inputs_CHP_emissions_table[[#This Row],[Total emissions kgCO2eq]]*Biomass_CHP_heat_allocation,"") ->  | BD67: =IFERROR(Biomass_inputs_CHP_emissions_table[[#This Row],[Total emissions kgCO2eq]]*Biomass_CHP_electricity_allocation,"") ->  | BE67: =IFERROR(IF(ISBLANK(Biomass_CHP_other_heat),Biomass_inputs_CHP_emissions_table[[#This Row],[Allocated emissionstotal heat kgCO2eq]],Biomass_inputs_CHP_emissions_table[[#This Row],[Allocated emissionstotal heat kgCO2eq]]*Biomass_CHP_drying_heat/Biomass_CHP_total_heat),"") ->  | BF67: =IFERROR(Biomass_inputs_CHP_emissions_table[[#This Row],[Allocated emissionstotal heat kgCO2eq]]*Biomass_CHP_other_heat/Biomass_CHP_total_heat,"") ->  | BG67: =IFERROR(IF(ISBLANK(Biomass_CHP_electricity_processing),Biomass_inputs_CHP_emissions_table[[#This Row],[Allocated emissionselectricity kgCO2eq]],Biomass_inputs_CHP_emissions_table[[#This Row],[Allocated emissionselectricity kgCO2eq]]*Biomass_CHP_electricity_processing/Biomass_CHP_total_electricity),"") -> 
